Workbook

Sheet eniwhv (hidden)

Sheet Sheet1 (hidden)
D1: 4,500.00
D2: 7,800.00
D3: 20,000.00
D4: 6,800.00
D5: 21,000.00
D6: 9,050.00
D7: 160,000.00
D8: 100,000.00
D9: 3,000.00
D10: 6,920.00
D11: 1,180.00
D12: 760.00
D13: 2,258.00
D14: 3,000.00
D15: 2,850.00
D16: 10,000.00
D17: 5,800.00
D18: 4,600.00
D19: 3,020.00
D20: 3,200.00
D21: 2,000.00
D22: 3,000.00
D23: 4,080.00
D24: 3,000.00
D25: 89,000.00
D26: 6,500.00
D27: 8,500.00
D28: 62,000.00
D29: 5,800.00
D30: 4,500.00 | I30: 31360
D31: 2,800.00
D32: 7,500.00
D33: 1,000.00
D34: 58,000.00
D35: 3,100.00
D36: 8,300.00 | I36: 12040
D37: 1,800.00
D38: 2,900.00
D39: 900.00
D40: 2,000.00
D41: 7,900.00
D42: 4,300.00
D43: 16,000.00
D44: 13,900.00 | I44: 10980
D45: 2,300.00
D46: 120,000.00
D47: 20,993.00
D48: 7,140.00 | I48: 18370
D49: 9,580.00
D50: 21,600.00
D51: 20,696.00
D52: 19,600.00
D53: 48,300.00 | I53: 4100
D54: 2,145.00 | I54: 9720
D55: 1,790.00 | I55: 4200
D56: 3,200.00 | I56: 450
D57: 3,998.00 | I57: 2480
D58: 795.00
D59: 2,400.00 | I59: 6840
D60: 1,580.00 | I60: 2270
D61: 9,360.00 | I61: 2340
D62: 1,340.00 | I62: 17820
D63: 7,900.00
D64: 5,980.00 | I64: 35260
D65: 580.00 | I65: 17850
D66: 45,000.00 | I66: 2950
D67: 4,650.00
D68: 2,600.00 | I68: 15050
D69: 19,800.00 | I69: 0
D70: 13,950.00 | I70: 15520
D71: 4,950.00 | I71: 0
D72: 17,000.00 | I72: 420
D73: 9,690.00
D74: 1,490.00 | I74: 5760
D75: 9,027.00 | I75: 5760
D76: 8,400.00 | I76: 680
D77: 3,500.00 | I77: 16900
D78: 4,900.00
D79: 23,000.00
D80: 4,300.00
D81: 6,269.00
D82: 2,500.00
D83: 1,850.00
D84: 21,000.00
D85: 1,850.00
D86: 49,500.00
D87: 3,400.00
D88: 3,500.00
D89: 100.00
D90: 790.00
D91: 19,600.00
D92: 3,900.00
D93: 1,100.00
D94: 3,500.00
D95: 4,300.00
D96: 1,700.00
D97: 1,790.00
D98: 3,500.00
D99: 5,200.00
D100: 1,500.00
D101: 20,000.00
D102: 1,800.00
D103: 1,980.00
D104: 976.00
D105: 2,697.00
D106: 698.00
D107: 1,560.00
D108: 3,200.00
D109: 3,280.00
D110: 1,098.00
D111: 399.00
D112: 6,800.00
D113: 2,923.00
D114: 2,850.00
D115: 1,868.00
D116: 1,450.00
D117: 5,798.00
D118: 5,498.00
D119: 299.00
D120: 3,000.00
D121: 1,750.00
D122: 3,500.00
D123: 1,000.00
D124: 620.00
D125: 2,925.00
D126: 1,850.00
D127: 17,395.00
D128: 16,225.00
D129: 1,170.00
D130: 150.00
D131: 55,000.00
D132: 7,600.00
D133: 13,600.00
D134: 3,280.00
D135: 199.00
D136: 198.00
D137: 680.00

Sheet 索引目录 (hidden)
A1: 资产评估申报表索引目录
B2: 评估申报表封面
B3: 评估申报表说明（填表前请先阅读）
B4: 基本情况表 | C4: 资产负债表 | D4: 汇总表 | E4: 分类汇总表
C6: 流动资产 | D6: 货币资金 | E6: 现金 | G6: 流动负债 | I6: 短期借款
E7: 银行存款 | I7: 交易性金融负债
E8: 其他货币资金 | I8: 应付票据
D9: 交易性金融资产 | E9: 股票投资 | I9: 应付账款
E10: 债券投资 | I10: 预收款项
E11: 基金投资 | I11: 应付职工薪酬
D12: 应收票据 | I12: 应交税费
D13: 应收账款 | I13: 应付利息
D14: 预付账款 | I14: 应付股利（应付利润）
D15: 应收利息 | I15: 其他应付款
D16: 应收股利 | I16: 一年内到期的非流动负债
D17: 其他应收款 | I17: 其他流动负债
D18: 存货 | E18: 材料采购（在途物资）
E19: 原材料
E20: 在库周转材料 | G20: 非流动负债 | I20: 长期借款
E21: 委托加工物资 | I21: 应付债券
E22: 产成品（库存商品） | I22: 长期应付款
E23: 在产品（自制半成品） | I23: 专项应付款
E24: 发出商品 | I24: 预计负债
E25: 在用周转材料 | I25: 递延所得税负债
D26: 一年到期非流动资产 | I26: 其他非流动负债
D27: 其他流动资产
C28: 长期投资 | D28: 可供出售金融资产 | E28: 股票投资
E29: 债券投资
E30: 其他投资
D31: 持有至到期投资
D32: 长期应收款
D33: 长期股权投资
D34: 投资性房地产
C35: 固定资产 | D35: 固定资产 | E35: 房屋建筑物
E36: 构筑物及其他辅助设施
E37: 管道及沟槽
E38: 机器设备
E39: 车辆
E40: 电子设备
E41: 土地
D42: 在建工程 | E42: 在建工程-土建工程
E43: 在建工程-设备安装工程
D44: 工程物资
D45: 固定资产清理
D46: 生产性生物资产
D47: 油气资产
C48: 无形资产 | D48: 无形资产 | E48: 土地使用权
E49: 其他无形资产
D50: 开发支出
D51: 商誉
C52: 其他资产 | D52: 长期待摊费用
D53: 递延所得税资产
D54: 其他非流动资产

Sheet 填表说明 (hidden)
A1: 评估申报表填表说明
A2: 返回索引页
A3: 1、 | B3: 本工作簿用于资产评估委托方或资产占有方对评估基准日下的委估资产及负债的账面价值的申报；
B4: 请贵单位填表人员按要求对工作表中账面价值及其以左各栏次或项目据实填写
B5: （此外，应收账款、其他应收款还需要填写账龄分析内容）；
A6: 2、 | B6: 此表各科目明细的合计数，应与本次资产评估范围内的资产评估基准日的资产负债表的数据相符；
A7: 3、 | B7: 如有债权、债务性资产的未达、坏账及实物性资产的毁损、报废等的项目应在其备注中说明；
A8: 4、 | B8: 明细表中如有日期档，除各明细表中有具体要求外，其格式应为“XXXX-XX”；
B9: 例：“2000年09月10日”应填为“2000-09”
B10: 如无法确定具体月份，请将月份填为01月；
B11: 例：“2000年”应填为“2000-01”
B12: 如为累计发生的业务，请将发生日期填为最后一笔业务的发生日期；
A13: 5、 | B13: 如明细表的行数不够时，请填表人员在“合计”的上两行进行插入行。
A14: 6、 | B14: 填表人可通过“资产评估申报表索引目录”来选择要查看或修改的科目,通过“返回索引页”按纽可返回“选择目录”
A15: 7、 | B15: 填表人可通过点击各汇总表中的“科目名称”进入各明细表，再通过点击各工作表左上角的“返回”来返回上一级汇总表。
A16: 注： | B16: 除以上要求企业填写的或按具体情况评估人员另作要求填写的栏目或项外，企业不应对此套表的其它部分
B17: 作任何修改变动，谢谢合作！
A19: 核心提示：不适用的工作表可以隐藏，但不可删除！
C20: 工作表标签不能更改！
B22: 如有疑问请与我公司项目组或我公司现场人员联系
B23: 公司电话：010-68365066 传真：010-68365038

Sheet 基本情况 (hidden)
A1: 返回索引页
A2: 基本情况表
A3: =CONCATENATE(#REF!,#REF!,#REF!,#REF!,#REF!,#REF!,#REF!) -> 
A4: 企业填写以下内容: | K4: 金额单位：人民币元
A5: 被评估单位（产权持有单位）: | B5: 中文 | H5: 法定代表人 | I5: 隋毅 | J5: 手机号码
B6: 英文
A7: 法定地址 | F7: 邮政编码 | H7: 总经理 | I7: 隋毅 | J7: 手机号码
A8: 办公地址 | F8: 邮政编码 | H8: 财务负责人 | I8: 梁宝柱 | J8: 手机号码
A9: 办公电话 | C9: 传真 | E9: E-mail | H9: 项目联系人 | I9: 陈春艳 | J9: 手机号码
A10: 经营范围 | H10: 企业会计 | I10: 陈春艳 | J10: 手机号码
A11: 经济性质 | C11: 总资产额 | E11: 营业收入 | G11: 主管工商机关 | H11: 唐山市工商行政管理局 | I11: 营业执照号码
A12: 所属行业 | C12: 净资产额 | E12: 税后利润 | G12: 主管税务机关 | H12: 唐山市路北区国家税务局长宁道分局 /唐山市地方税务局路北分局 | I12: 批准机关及证书号码
A13: 开业日期 | C13: 休假日 | E13: 财务结账日 | G13: 执行会计制度 | H13: 新会计制度
A14: 前五名投资者（股东）名称 | H14: 注册资本 | J14: 实收资本
H15: 金额 | I15: 出资比例 | J15: 金额 | K15: 出资比例
A16: 1 | H16: 255,100,000.00 | I16: 100% | J16: 255,100,000.00 | K16: 100%
A17: 2
A18: 3
A19: 4
A20: 5
A21: 合计
A22: 主要长期投资单位（或异地分支机构）名称 | F22: 地址 | I22: 注册资金 | J22: 持股比例 | K22: 核算方式
A23: 1 | B23: 唐山冀通大型货物运输有限责任公司 | F23: 路北区大庆道一号 | I23: 1550000 | J23: 96.77%
A24: 2 | B24: 唐山盾石机械维修有限公司 | F24: 路北区大庆道一号 | I24: 3600000 | J24: 100.00%
A25: 3
A26: 4
A27: 5
A28: 6
A29: 7
A30: 8
A31: 9
A32: 10
A33: 前注册会计师审计结论
A34: 前评估情况
A35: 评估机构填写以下内容:
A36: 委托项目 | B36: 类别 | F36: 项目编号 | I36: 作业日期
B37: 目的 | C37: 股权收购 | F37: 报告编号 | I37: 填表日期
B38: 范围 | C38: 全部资产及相关负债 | F38: 项目负责人： | G38: 0 | I38: 法定代表人： | J38: 胡智
A39: 评估机构： | B39: 中联资产评估集团有限公司 | F39: 签字注册资产评估师： | G39: 0
C40: 流动资产 | E40: 设备 | G40: 房屋 | I40: 土地 | J40: 无形资产
A41: 被评估单位填表人: | B41: 陈春艳
A42: 评估人员:

Sheet 资产负债表 (hidden)
A1: 返回索引页
A2: 资产负债表
A3: =#REF! -> 
J4: 金额单位：人民币元
A5: 资产 | B5: 序号 | C5: 期初数 | D5: 期末数 | E5: 备注 | F5: 负债及所有者权益 | G5: 序号 | H5: 期初数 | I5: 期末数 | J5: 备注
A6: 流动资产： | B6: 1 | F6: 流动负债： | G6: 34
A7: 货币资金 | B7: 2 | F7: 短期借款 | G7: 35
A8: 交易性金融资产 | B8: 3 | F8: 交易性金融负债 | G8: 36
A9: 应收票据 | B9: 4 | F9: 应付票据 | G9: 37
A10: 应收账款 | B10: 5 | F10: 应付账款 | G10: 38
A11: 预付款项 | B11: 6 | F11: 预收款项 | G11: 39
A12: 应收利息 | B12: 7 | F12: 应付职工薪酬 | G12: 40
A13: 应收股利 | B13: 8 | F13: 应交税费 | G13: 41
A14: 其他应收款 | B14: 9 | F14: 应付利息 | G14: 42
A15: 存货 | B15: 10 | F15: 应付股利 | G15: 43
A16: 一年内到期的非流动资产 | B16: 11 | F16: 其他应付款 | G16: 44
A17: 其他流动资产 | B17: 12 | F17: 一年内到期的非流动负债 | G17: 45
A18: 流动资产合计 | B18: 13 | C18: =SUM(C7:C17) -> 0.00 | D18: =SUM(D7:D17) -> 0.00 | F18: 其他流动负债 | G18: 46
A19: 非流动资产： | B19: 14 | F19: 流动负债合计 | G19: 47 | H19: =SUM(H7:H16) -> 0.00 | I19: =SUM(I7:I18) -> 0.00
A20: 可供出售金融资产 | B20: 15 | F20: 非流动负债： | G20: 48
A21: 持有至到期投资 | B21: 16 | F21: 长期借款 | G21: 49
A22: 长期应收款 | B22: 17 | F22: 应付债券 | G22: 50
A23: 长期股权投资 | B23: 18 | F23: 长期应付款 | G23: 51
A24: 投资性房地产 | B24: 19 | F24: 专项应付款 | G24: 52
A25: 固定资产 | B25: 20 | F25: 预计负债 | G25: 53
A26: 在建工程 | B26: 21 | F26: 递延所得税负债 | G26: 54
A27: 工程物资 | B27: 22 | F27: 其他非流动负债 | G27: 55
A28: 固定资产清理 | B28: 23 | F28: 非流动负债合计 | G28: 56 | H28: =SUM(H21:H27) -> 0.00 | I28: =SUM(I21:I27) -> 0.00
A29: 生产性生物资产 | B29: 24 | F29: 负债合计 | G29: 57 | H29: =H19+H28 -> 0.00 | I29: =I19+I28 -> 0.00
A30: 油气资产 | B30: 25 | F30: 所有者权益： | G30: 58
A31: 无形资产 | B31: 26 | F31: 实收资本 | G31: 59
A32: 开发支出 | B32: 27 | F32: 资本公积 | G32: 60
A33: 商誉 | B33: 28 | F33: 减：库存股 | G33: 61
A34: 长期待摊费用 | B34: 29 | F34: 专项储备 | G34: 62
A35: 递延所得税资产 | B35: 30 | F35: 盈余公积 | G35: 63
A36: 其他非流动资产 | B36: 31 | F36: 未分配利润 | G36: 64
F37: 归属于母公司所有者权益合计（合并） | G37: 65
A38: 非流动资产合计 | B38: 32 | C38: =SUM(C20:C36) -> 0.00 | D38: =SUM(D20:D36) -> 0.00 | F38: 所有者权益合计 | G38: 67 | H38: =H37 -> 0.00 | I38: =I37 -> 0.00
A39: 资产总计 | B39: 33 | C39: =SUM(C38,C18) -> 0.00 | D39: =SUM(D38,D18) -> 0.00 | F39: 负债及所有者权益合计 | G39: 68 | H39: =H29+H37 -> 0.00 | I39: =I29+I37 -> 0.00
F40: 与总资产相差 | G40: 69 | H40: =H39-C39 -> 0.00 | I40: =I39-D39 -> 0.00
C41: 填表人： | E41: 财务主管： | H41: 负责人：

Sheet 审定数 (hidden)
A1: 科目 | B1: 金额

Sheet 流动汇总 (hidden)
A1: 返回索引页 | B1: 返回
A2: 流动资产评估汇总表
A3: =CONCATENATE(#REF!,#REF!,#REF!,#REF!,#REF!,#REF!,#REF!) -> 
A4: =#REF!&#REF! ->  | I4: 金额单位：人民币元
A5: 编号 | B5: 科目名称 | E5: 审计前账面值 | F5: 账面价值 | G5: 评估价值 | H5: 增值额 | I5: 增值率%
A6: 3-1 | B6: 货币资金（现金 | C6: 存款 | D6: 他币） | E6: =SUM(现金!F27,银行存款!G26,其他货币资金!G27) -> 0 | F6: =现金!H27+银行存款!I26 -> 0 | G6: =现金!I27+银行存款!J26 -> 0 | H6: =G6-F6 -> 0 | I6: =IF(F6=0,"",H6/F6*100) -> 
A7: 3-2 | B7: 交易性金融资产 | E7: =交易性金融资产汇总!C27 -> 0
A8: 3-3 | B8: 应收票据 | E8: =应收票据!F27 -> 0 | F8: =应收票据!H27 -> 0 | G8: =应收票据!I27 -> 0 | H8: 0
A9: 3-4 | B9: 应收账款 | E9: =应收账款!F38 -> 0 | F9: =应收账款!P134 -> 0 | G9: =应收账款!Q134 -> 0 | H9: 0
A10: 3-5 | B10: 预付账款 | E10: =预付账款!F27 -> 0 | F10: =预付账款!H71 -> 0 | G10: =预付账款!I71 -> 0 | H10: 0
A11: 3-6 | B11: 应收利息 | E11: =应收利息!G27 -> 0
A12: 3-7 | B12: 应收股利（应收利润） | E12: ='应收股利（利润）'!E27 -> 0 | F12: ='应收股利（利润）'!G27 -> 0 | G12: ='应收股利（利润）'!H27 -> 0 | H12: 0
A13: 3-8 | B13: 其他应收款 | E13: =其他应收款!F52 -> -1,126,469.90 | F13: =其他应收款!P52 -> 0 | G13: =其他应收款!Q52 -> 0 | H13: 0
A14: 3-9 | B14: 存货 | E14: =存货汇总!C27 -> 0 | F14: =存货汇总!D27 -> 0 | G14: =存货汇总!E27 -> 0 | H14: 0
A15: 3-10 | B15: 一年内到期的非流动资产 | E15: =一年到期非流动资产!E27 -> 0 | F15: =一年到期非流动资产!G27 -> 0 | G15: =一年到期非流动资产!H27 -> 0 | H15: 0 | I15: =IF(F15=0,"",H15/F15*100) -> 
A16: 3-11 | B16: 其他流动资产 | E16: =其他流动资产!E27 -> 0 | F16: =其他流动资产!G27 -> 0 | G16: =其他流动资产!H27 -> 0 | H16: 0
A27: 3 | B27: 流动资产合计 | E27: =SUM(E6:E26) -> -1,126,469.90 | F27: =SUM(F6:F26) -> 0 | G27: =SUM(G6:G26) -> 0 | H27: =SUM(H6:H26) -> 0 | I27: =IF(F27=0,"",H27/F27*100) -> 
A28: =#REF!&#REF! ->  | G28: ="评估人员："&#REF! -> 
A29: =CONCATENATE(#REF!,#REF!,#REF!,#REF!,#REF!,#REF!,#REF!) -> 

Sheet 现金 (hidden)
A1: 返回索引页 | B1: 返回
A2: 货币资金—现金评估明细表
A3: =CONCATENATE(#REF!,#REF!,#REF!,#REF!,#REF!,#REF!,#REF!) -> 
A4: =#REF!&#REF! ->  | J4: 金额单位：人民币元
A5: 序号 | B5: 存放部门（单位) | C5: 币种 | D5: 外币账面金额 | E5: 评估基准日汇率 | F5: 审计前账面值 | G5: 审计调整 | H5: 账面价值 | I5: 评估价值 | J5: 增值率%
A6: 1 | B6: 财务部 | C6: 人民币 | F6: =E6-D6 -> 0 | G6: =IF(D6=0,"",F6/D6) ->  | H6: 0 | I6: 0 | J6: =IF(H6=0,"",(I6-H6)/H6*100) -> 
J9: =IF(H9=0,"",(I9-H9)/H9*100) -> 
A27: 合 计 | F27: =SUM(F6:F26) -> 0 | H27: =SUM(H6:H26) -> 0 | I27: =SUM(I6:I26) -> 0 | J27: =IF(H27=0,"",(I27-H27)/H27*100) -> 
A28: =#REF!&#REF! ->  | H28: ="评估人员："&#REF! -> 
A29: =CONCATENATE(#REF!,#REF!,#REF!,#REF!,#REF!,#REF!,#REF!) -> 

Sheet 银行存款 (hidden)
A1: 返回索引页 | B1: 返回
A2: 货币资金—银行存款评估明细表
A3: =CONCATENATE(#REF!,#REF!,#REF!,#REF!,#REF!,#REF!,#REF!) -> 
A4: =#REF!&#REF! ->  | K4: 金额单位：人民币元
A5: 序号 | B5: 开户银行 | C5: 账号 | D5: 币种 | E5: 外币账面金额 | F5: 评估基准日汇率 | G5: 审计前账面值 | H5: 审计调整 | I5: 账面价值 | J5: 评估价值 | K5: 增值率%
K6: =IF(H6=0,"",(I6-H6)/H6*100) ->  | M6: 函证
K7: =IF(H7=0,"",(I7-H7)/H7*100) ->  | M7: 函证
K8: =IF(H8=0,"",(I8-H8)/H8*100) ->  | M8: 函证
M9: 函证
M10: 函证
M11: 函证
M12: 函证
M13: 函证
J22: =IF(H22=0,"",(I22-H22)) -> 
J23: =IF(H23=0,"",(I23-H23)) -> 
J24: =IF(H24=0,"",(I24-H24)) -> 
J25: =IF(H25=0,"",(I25-H25)) -> 
A26: 合 计 | G26: =SUM(G6:G25) -> 0 | H26: =SUM(H6:H25) -> 0 | I26: =SUM(I6:I25) -> 0 | J26: =SUM(J6:J21) -> 0
A27: =#REF!&#REF! ->  | I27: ="评估人员："&#REF! -> 
A28: =CONCATENATE(#REF!,#REF!,#REF!,#REF!,#REF!,#REF!,#REF!) -> 

Sheet 其他货币资金 (hidden)
A1: 返回索引页 | B1: 返回
A2: 货币资金—其他货币资金评估明细表
A3: =CONCATENATE(#REF!,#REF!,#REF!,#REF!,#REF!,#REF!,#REF!) -> 
A4: =#REF!&#REF! ->  | L4: 金额单位：人民币元
A5: 序号 | B5: 名称及内容 | C5: 用途 | D5: 币种 | E5: 外币账面金额 | F5: 评估基准日汇率 | G5: 审计前账面值 | H5: 审计调整 | I5: 账面价值 | J5: 评估价值 | K5: 增值率% | L5: 备注
K6: =IF(I6=0,"",(J6-I6)/I6*100) -> 
A27: 合 计 | G27: =SUM(G6:G26) -> 0 | I27: =SUM(I6:I26) -> 0 | J27: =SUM(J6:J26) -> 0 | K27: =IF(I27=0,"",(J27-I27)/I27*100) -> 
A28: =#REF!&#REF! ->  | I28: ="评估人员："&#REF! -> 
A29: =CONCATENATE(#REF!,#REF!,#REF!,#REF!,#REF!,#REF!,#REF!) -> 

Sheet 交易性金融资产汇总 (hidden)
A1: 返回索引页 | B1: 返回
A2: 交易性金融资产评估汇总表
A3: =CONCATENATE(#REF!,#REF!,#REF!,#REF!,#REF!,#REF!,#REF!) -> 
A4: =#REF!&#REF! ->  | G4: 金额单位：人民币元
A5: 编号 | B5: 科目名称 | C5: 审计前账面值 | D5: 账面价值 | E5: 评估价值 | F5: 增值额 | G5: 增值率%
A6: 3-2-1 | B6: 交易性金融资产-股票投资 | C6: ='交易性-股票'!G27 -> 0 | D6: ='交易性-股票'!I27 -> 0 | E6: ='交易性-股票'!K27 -> 0 | F6: =E6-D6 -> 0 | G6: =IF(D6=0,"",F6/D6*100) -> 
A7: 3-2-2 | B7: 交易性金融资产-债券投资 | C7: ='交易性-债券'!H27 -> 0 | D7: ='交易性-债券'!J27 -> 0 | E7: ='交易性-债券'!K27 -> 0 | F7: =E7-D7 -> 0 | G7: =IF(D7=0,"",F7/D7*100) -> 
A8: 3-2-3 | B8: 交易性金融资产-基金投资 | C8: ='交易性-基金'!H27 -> 0 | D8: ='交易性-基金'!J27 -> 0 | E8: ='交易性-基金'!L27 -> 0 | F8: =E8-D8 -> 0 | G8: =IF(D8=0,"",F8/D8*100) -> 
A27: 3-2 | B27: 交易性金融资产合计 | C27: =SUM(C6:C26) -> 0 | D27: =SUM(D6:D26) -> 0 | E27: =SUM(E6:E26) -> 0 | F27: =SUM(F6:F26) -> 0 | G27: =IF(D27=0,"",F27/D27*100) -> 
A28: =#REF!&#REF! ->  | E28: ="评估人员："&#REF! -> 
A29: =CONCATENATE(#REF!,#REF!,#REF!,#REF!,#REF!,#REF!,#REF!) -> 

Sheet 交易性-股票 (hidden)
A1: 返回索引页 | B1: 返回
A2: 交易性金融资产—股票投资评估明细表
A3: =CONCATENATE(#REF!,#REF!,#REF!,#REF!,#REF!,#REF!,#REF!) -> 
A4: =#REF!&#REF! ->  | L4: 金额单位：人民币元
A5: 序号 | B5: 被投资单位名称 | C5: 股票名称 | D5: 投资日期 | E5: 持股数量 | F5: 成本 | G5: 审计前账面值 | H5: 审计调整 | I5: 账面价值 | J5: 基准日收盘价/股 | K5: 评估价值 | L5: 增值率%
L6: =IF(I6=0,"",(K6-I6)/I6*100) -> 
A27: 合 计 | G27: =SUM(G6:G26) -> 0 | I27: =SUM(I6:I26) -> 0 | K27: =SUM(K6:K26) -> 0 | L27: =IF(I27=0,"",(K27-I27)/I27*100) -> 
A28: =#REF!&#REF! ->  | I28: ="评估人员："&#REF! -> 
A29: =CONCATENATE(#REF!,#REF!,#REF!,#REF!,#REF!,#REF!,#REF!) -> 

Sheet 交易性-债券 (hidden)
A1: 返回索引页 | B1: 返回
A2: 交易性金融资产—债券投资评估明细表
A3: =CONCATENATE(#REF!,#REF!,#REF!,#REF!,#REF!,#REF!,#REF!) -> 
A4: =#REF!&#REF! ->  | L4: 金额单位：人民币元
A5: 序号 | B5: 被投资单位名称 | C5: 债券名称 | D5: 发行日期 | E5: 投资日期 | F5: 票面利率% | G5: 成本 | H5: 审计前账面值 | I5: 审计调整 | J5: 账面价值 | K5: 评估价值 | L5: 增值率%
L6: =IF(J6=0,"",(K6-J6)/J6*100) -> 
A27: 合 计 | H27: =SUM(H6:H26) -> 0 | J27: =SUM(J6:J26) -> 0 | K27: =SUM(K6:K26) -> 0 | L27: =IF(J27=0,"",(K27-J27)/J27*100) -> 
A28: =#REF!&#REF! ->  | J28: ="评估人员："&#REF! -> 
A29: =CONCATENATE(#REF!,#REF!,#REF!,#REF!,#REF!,#REF!,#REF!) -> 

Sheet 交易性-基金 (hidden)
A1: 返回索引页 | B1: 返回
A2: 交易性金融资产—基金投资评估明细表
A3: =CONCATENATE(#REF!,#REF!,#REF!,#REF!,#REF!,#REF!,#REF!) -> 
A4: =#REF!&#REF! ->  | M4: 金额单位：人民币元
A5: 序号 | B5: 基金发行单位 | C5: 基金名称 | D5: 基金类型 | E5: 投资日期 | F5: 基金份额 | G5: 成本 | H5: 审计前账面值 | I5: 审计调整 | J5: 账面价值 | K5: 基准日净值/份 | L5: 评估价值 | M5: 增值率%
M6: =IF(J6=0,"",(L6-J6)/J6*100) -> 
A27: 合 计 | H27: =SUM(H6:H26) -> 0 | J27: =SUM(J6:J26) -> 0 | L27: =SUM(L6:L26) -> 0 | M27: =IF(J27=0,"",(L27-J27)/J27*100) -> 
A28: =#REF!&#REF! ->  | J28: ="评估人员："&#REF! -> 
A29: =CONCATENATE(#REF!,#REF!,#REF!,#REF!,#REF!,#REF!,#REF!) -> 

Sheet 应收票据 (hidden)
A1: 返回索引页 | B1: 返回
A2: 应收票据评估明细表
A3: =CONCATENATE(#REF!,#REF!,#REF!,#REF!,#REF!,#REF!,#REF!) -> 
A4: =#REF!&#REF! ->  | K4: 金额单位：人民币元
A5: 序号 | B5: 户名（结算对象) | C5: 出票日期 | D5: 到期日期 | E5: 票面利率% | F5: 审计前账面值 | G5: 审计调整 | H5: 账面价值 | I5: 评估价值 | J5: 增值率% | K5: 备注
J6: =IF(H6=0,"",(I6-H6)/H6*100) -> 
J14: =IF(H14=0,"",(I14-H14)/H14*100) -> 
A27: 合 计 | F27: =SUM(F6:F26) -> 0 | H27: =SUM(H6:H26) -> 0 | I27: =SUM(I6:I26) -> 0
A28: =#REF!&#REF! ->  | H28: ="评估人员："&#REF! -> 
A29: =CONCATENATE(#REF!,#REF!,#REF!,#REF!,#REF!,#REF!,#REF!) -> 

Sheet 应收账款 (hidden)
A1: 返回索引页 | B1: 返回
A2: 应收账款评估明细表
A3: =CONCATENATE(#REF!,#REF!,#REF!,#REF!,#REF!,#REF!,#REF!) -> 
A4: =#REF!&#REF! ->  | M4: 账龄总数与审计前账面值差异(应等于0) | N4: 预计不可收回金额(注1) | S4: 金额单位：人民币元
A5: 序号 | B5: 欠款单位名称（结算对象) | C5: 业务内容 | D5: 发生日期 | E5: 账龄 | F5: 审计前账面值 | G5: 1年以内金额 | H5: 1~2年金额 | I5: 2~3年金额 | J5: 3~4年金额 | K5: 4~5年金额 | L5: 5年以上金额 | O5: 审计调整 | P5: 账面价值 | Q5: 评估价值 | R5: 增值率% | S5: 备注
R6: =IF(P6=0,"",(Q6-P6)/P6*100) ->  | T6: 函证
T20: 函证
T28: 函证
R38: =IF(P38=0,"",(Q38-P38)/P38*100) -> 
T52: 函证
T59: 函证
R70: =IF(P70=0,"",(Q70-P70)/P70*100) -> 
R102: =IF(P102=0,"",(Q102-P102)/P102*100) -> 
T121: 函证
T125: 函证
M129: =SUM(G129:L129)-F129 -> 0.00
A131: 合计 | F131: =SUM(F6:F129) -> 0.00 | G131: =SUM(G6:G129) -> 0.00 | H131: 0.00 | I131: 0.00 | J131: 0.00 | K131: 0.00 | L131: 0.00 | M131: 0.00 | P131: =SUM(P6:P129) -> 0.00 | Q131: =SUM(Q6:Q129) -> 0.00
A132: 减：坏账准备 | N132: =SUM(N6:N131) -> 0.00 | Q132: 0 | R132: -100%
A133: 减：评估风险损失 | Q133: =P132 -> 0.00
A134: 净 额 | P134: =P131-P132 -> 0.00 | Q134: =Q131-Q133 -> 0.00 | R134: -
A135: =#REF!&#REF! ->  | P135: ="评估人员："&#REF! -> 
A136: =CONCATENATE(#REF!,#REF!,#REF!,#REF!,#REF!,#REF!,#REF!) ->  | H136: ="评估人员："&#REF! -> 
A137: =CONCATENATE(#REF!,#REF!,#REF!,#REF!,#REF!,#REF!,#REF!) -> 
F141: =P131-F131 -> 0.00

Sheet 预付账款 (hidden)
A1: 返回索引页 | B1: 返回
A2: 预付账款评估明细表
A3: =CONCATENATE(#REF!,#REF!,#REF!,#REF!,#REF!,#REF!,#REF!) -> 
A4: =#REF!&#REF! ->  | K4: 金额单位：人民币元
A5: 序号 | B5: 收款单位名称（结算对象) | C5: 业务内容 | D5: 发生日期 | E5: 账龄 | F5: 审计前账面值 | G5: 审计调整 | H5: 账面价值 | I5: 评估价值 | J5: 增值率% | K5: 备注
J6: =IF(H6=0,"",(I6-H6)/H6*100) -> 
M8: =H8-I8 -> 0
K21: 并入房屋建筑物45项
A68: 合计
A69: 减：坏账准备
A70: 减：评估风险损失
A71: 净额 | F71: =SUM(F6:F67) -> 0.00 | H71: =SUM(H6:H67) -> 0 | I71: =SUM(I6:I67) -> 0 | J71: =IF(H71=0,"",(I71-H71)/H71*100) -> 
A72: =#REF!&#REF! ->  | H72: ="评估人员："&#REF! -> 
A73: =CONCATENATE(#REF!,#REF!,#REF!,#REF!,#REF!,#REF!,#REF!) -> 

Sheet 应收利息 (hidden)
A1: 返回索引页 | B1: 返回
A2: 应收利息评估明细表
A3: =CONCATENATE(#REF!,#REF!,#REF!,#REF!,#REF!,#REF!,#REF!) -> 
A4: =#REF!&#REF! ->  | L4: 金额单位：人民币元
A5: 序号 | B5: 欠款单位名称（结算对象) | C5: 发生日期 | D5: 本金 | E5: 利息所属期间 | F5: 利息率% | G5: 审计前账面值 | H5: 审计调整 | I5: 账面价值 | J5: 评估价值 | K5: 增值率% | L5: 备注
K6: =IF(I6=0,"",(J6-I6)/I6*100) -> 
A27: 合 计 | D27: =SUM(D6:D26) -> 0 | G27: 0 | I27: 0 | J27: 0 | K27: =IF(I27=0,"",(J27-I27)/I27*100) -> 
A28: =#REF!&#REF! ->  | I28: ="评估人员："&#REF! -> 
A29: =CONCATENATE(#REF!,#REF!,#REF!,#REF!,#REF!,#REF!,#REF!) -> 

Sheet 应收股利（利润） (hidden)
A1: 返回索引页 | B1: 返回
A2: 应收股利（应收利润）评估明细表
A3: =CONCATENATE(#REF!,#REF!,#REF!,#REF!,#REF!,#REF!,#REF!) -> 
A4: =#REF!&#REF! ->  | J4: 金额单位：人民币元
A5: 序号 | B5: 户名（结算对象) | C5: 发生日期 | D5: 股利所属期间 | E5: 审计前账面值 | F5: 审计调整 | G5: 账面价值 | H5: 评估价值 | I5: 增值率% | J5: 备注
I6: =IF(G6=0,"",(H6-G6)/G6*100) -> 
A27: 合 计 | E27: =SUM(E6:E26) -> 0 | G27: =SUM(G6:G26) -> 0 | H27: =SUM(H6:H26) -> 0 | I27: =IF(G27=0,"",(H27-G27)/G27*100) -> 
A28: =#REF!&#REF! ->  | G28: ="评估人员："&#REF! -> 
A29: =CONCATENATE(#REF!,#REF!,#REF!,#REF!,#REF!,#REF!,#REF!) -> 

Sheet 其他应收款 (hidden)
A1: 返回索引页 | B1: 返回
A2: 其他应收款评估明细表
A3: =CONCATENATE(#REF!,#REF!,#REF!,#REF!,#REF!,#REF!,#REF!) -> 
A4: =#REF!&#REF! ->  | M4: 账龄总数与审计前账面值差异(应等于0) | N4: 预计不可收回金额(注1) | S4: 金额单位：人民币元
A5: 序号 | B5: 欠款单位名称（结算对象) | C5: 业务内容 | D5: 发生日期 | E5: 账龄 | F5: 审计前账面值 | G5: 1年以内金额 | H5: 1~2年金额 | I5: 2~3年金额 | J5: 3~4年金额 | K5: 4~5年金额 | L5: 5年以上金额 | O5: 审计调整 | P5: 账面价值 | Q5: 评估价值 | R5: 增值率% | S5: 备注
R6: =IF(P6=0,"",(Q6-P6)/P6*100) -> 
R7: =IF(P7=0,"",(Q7-P7)/P7*100) -> 
R8: =IF(P8=0,"",(Q8-P8)/P8*100) -> 
R9: =IF(P9=0,"",(Q9-P9)/P9*100) -> 
R10: =IF(P10=0,"",(Q10-P10)/P10*100) -> 
R11: =IF(P11=0,"",(Q11-P11)/P11*100) -> 
M48: =SUM(G48:L48)-F48 -> 0 | Q48: =P48 -> 0
A49: 合 计 | F49: =SUM(F6:F48) -> 0 | G49: 0 | H49: 0 | I49: 0 | J49: 0 | K49: 0 | L49: 0 | M49: =SUM(G49:L49)-F49 -> 0 | P49: =SUM(P6:P48) -> 0 | Q49: =P49 -> 0
A50: 减：其他应收款坏账准备 | F50: 1,126,469.90 | Q50: 0
A51: 减：评估风险损失 | N51: =SUM(N6:N50) -> 0 | Q51: =P50 -> 0
A52: 净 额 | F52: =F49-F50 -> -1,126,469.90 | N52: =N49-N50 -> 0 | P52: =P49-P50 -> 0 | Q52: =P52 -> 0
A53: =#REF!&#REF! ->  | P53: ="评估人员："&#REF! -> 
A54: =CONCATENATE(#REF!,#REF!,#REF!,#REF!,#REF!,#REF!,#REF!) -> 
B55: 注1： | C55: 注明账齡在一年以上的账款的可收回性，若有部分可能不能收回，请估计不能收回的金額，以供评估时作參考。
B56: 注2：“备注”栏填写方法： | C56: 1）欠款单位为关联方、总公司内部或本公司内部单位的，应在备注栏注明“关联方”、“总公司内部”、“内部单位”；
C57: 2） 涉诉款项应在备注中标明“涉诉”；
C58: 3）评估基准日后已部分或全部收回款项的，应注明日期及金额，如“2003年2月4日收回8,530.00元”；
C59: 4）填表单位认为其他应说明的事项

Sheet 存货汇总 (hidden)
A1: 返回索引页 | B1: 返回
A2: 存货评估汇总表
A3: =CONCATENATE(#REF!,#REF!,#REF!,#REF!,#REF!,#REF!,#REF!) -> 
A4: =#REF!&#REF! ->  | G4: 金额单位：人民币元
A5: 编号 | B5: 科目名称 | C5: 审计前账面值 | D5: 账面价值 | E5: 评估价值 | F5: 增值额 | G5: 增值率%
A6: 3-9-1 | B6: 材料采购（在途物资） | C6: ='材料采购（在途物资）'!F27 -> 0
A7: 3-9-2 | B7: 原材料 | C7: =原材料!G74 -> 0 | D7: =原材料!K1233 -> 0 | E7: =原材料!N1233 -> 0 | F7: =E7-D7 -> 0 | G7: =IF(D7=0,"",F7/D7*100) -> 
A8: 3-9-3 | B8: 在库周转材料 | C8: =在库周转材料!F27 -> 0
A9: 3-9-4 | B9: 委托加工物资 | C9: =委托加工物资!G27 -> 0
A10: 3-9-5 | B10: 产成品（库存商品） | C10: ='产成品（库存商品）'!F25 -> 0 | D10: ='产成品（库存商品）'!I2039 -> 0 | E10: ='产成品（库存商品）'!L2041 -> 0 | F10: =E10-D10 -> 0 | G10: =IF(D10=0,"",F10/D10*100) -> 
A11: 3-9-6 | B11: 在产品（自制半成品） | C11: ='在产品（自制半成品）'!G27 -> 0 | D11: ='在产品（自制半成品）'!K2168 -> 0 | E11: ='在产品（自制半成品）'!N2170 -> 0 | F11: =E11-D11 -> 0 | G11: =IF(D11=0,"",F11/D11*100) -> 
A12: 3-9-7 | B12: 发出商品 | C12: =发出商品!G27 -> 0 | F12: =E12-D12 -> 0 | G12: =IF(D12=0,"",F12/D12*100) -> 
A13: 3-9-8 | B13: 在用周转材料 | C13: =在用周转材料!G119 -> 0 | D13: =在用周转材料!J119 -> 0 | E13: =在用周转材料!N119 -> 0 | F13: =E13-D13 -> 0 | G13: =IF(D13=0,"",F13/D13*100) -> 
A25: 3-10 | B25: 存货合计 | C25: =SUM(C6:C24) -> 0 | D25: =SUM(D6:D24) -> 0 | E25: =SUM(E6:E24) -> 0 | F25: =SUM(F6:F24) -> 0 | G25: =IF(D25=0,"",F25/D25*100) -> 
A26: 3-10 | B26: 减：存货跌价准备 | E26: 0 | F26: =E26-D26 -> 0 | G26: =IF(D26=0,"",F26/D26*100) -> 
A27: 3-10 | B27: 存货净额 | C27: =C25-C26 -> 0 | D27: =D25-D26 -> 0 | E27: =E25-E26 -> 0 | F27: =E27-D27 -> 0 | G27: =IF(D27=0,"",F27/D27*100) -> 
A28: =#REF!&#REF! ->  | E28: ="评估人员："&#REF! -> 
A29: =CONCATENATE(#REF!,#REF!,#REF!,#REF!,#REF!,#REF!,#REF!) -> 

Sheet 材料采购（在途物资） (hidden)
A1: 返回索引页 | B1: 返回
A2: 存货—材料采购（在途物资）评估明细表
A3: =CONCATENATE(#REF!,#REF!,#REF!,#REF!,#REF!,#REF!,#REF!) -> 
A4: =#REF!&#REF! ->  | O4: 金额单位：人民币元
A5: 序号 | B5: 名称及规格型号 | C5: 计量单位 | D5: 审计前账面值 | G5: 审计调整 | H5: 账面价值 | K5: 评估价值 | N5: 增值率% | O5: 备注
D6: 数量 | E6: 单价 | F6: 金额 | H6: 数量 | I6: 单价 | J6: 金额 | K6: 实际数量 | L6: 单价 | M6: 金额
E7: =IF(D7=0,"",F7/D7) ->  | N7: =IF(J7=0,"",(M7-J7)/J7*100) -> 
A27: 合 计 | F27: =SUM(F7:F26) -> 0 | J27: =SUM(J7:J26) -> 0 | M27: =SUM(M7:M26) -> 0 | N27: =IF(J27=0,"",(M27-J27)/J27*100) -> 
A28: =#REF!&#REF! ->  | J28: ="评估人员："&#REF! -> 
A29: =CONCATENATE(#REF!,#REF!,#REF!,#REF!,#REF!,#REF!,#REF!) -> 

Sheet 原材料 (hidden)
A1: 返回索引页 | C1: 返回
A2: 存货—原材料评估明细表
A3: =CONCATENATE(#REF!,#REF!,#REF!,#REF!,#REF!,#REF!,#REF!) -> 
A4: =#REF!&#REF! ->  | P4: 金额单位：人民币元
A5: 序号 | B5: 名称 | C5: 规格型号 | D5: 计量单位 | E5: 审计前账面值 | H5: 审计调整 | I5: 账面价值 | L5: 评估价值 | O5: 增值率% | P5: 备注 | Q5: 存放地点 | R5: 取价依据 | S5: 单价 | T5: 数量
E6: 数量 | F6: 单价 | G6: 金额 | I6: 数量 | J6: 单价 | K6: 金额 | L6: 实际数量 | M6: 单价 | N6: 金额
L7: =T7 -> 0.00 | M7: =S7 -> 0 | N7: =ROUND(M7*L7,2) -> 0 | O7: =IF(K7=0,"",(N7-K7)/K7*100) ->  | T7: =I7 -> 0.00
L8: =T8 -> 0.00 | M8: =S8 -> 0 | N8: =ROUND(M8*L8,2) -> 0 | T8: =I8 -> 0.00
L9: 0.00 | M9: 0 | N9: 0 | T9: 0.00
L10: 0.00 | M10: 0 | N10: 0 | T10: 0.00
L11: 0.00 | M11: 0 | N11: 0 | T11: 0.00
L12: 0.00 | M12: 0 | N12: 0 | T12: 0.00
L13: 0.00 | M13: 0 | N13: 0 | T13: 0.00
L14: 0.00 | M14: 0 | N14: 0 | T14: 0.00
L15: 0.00 | M15: 0 | N15: 0 | T15: 0.00
L16: 0.00 | M16: 0 | N16: 0 | T16: 0.00
L17: 0.00 | M17: 0 | N17: 0 | T17: 0.00
L18: 0.00 | M18: 0 | N18: 0 | T18: 0.00
L19: 0.00 | M19: 0 | N19: 0 | T19: 0.00
L20: 0.00 | M20: 0 | N20: 0 | T20: 0.00
L21: 0.00 | M21: 0 | N21: 0 | T21: 0.00
L22: 0.00 | M22: 0 | N22: 0 | T22: 0.00
L23: 0.00 | M23: 0 | N23: 0 | T23: 0.00
L24: 0.00 | M24: 0 | N24: 0 | T24: 0.00
L25: 0.00 | M25: 0 | N25: 0 | T25: 0.00
L26: 0.00 | M26: 0 | N26: 0 | T26: 0.00
L27: 0.00 | M27: 0 | N27: 0 | T27: 0.00
L28: 0.00 | M28: 0 | N28: 0 | T28: 0.00
L29: 0.00 | M29: 0 | N29: 0 | T29: 0.00
L30: 0.00 | M30: 0 | N30: 0 | T30: 0.00
L31: 0.00 | M31: 0 | N31: 0 | T31: 0.00
L32: 0.00 | M32: 0 | N32: 0 | T32: 0.00
L33: 0.00 | M33: 0 | N33: 0 | T33: 0.00
L34: 0.00 | M34: 0 | N34: 0 | T34: 0.00
L35: 0.00 | M35: 0 | N35: 0 | T35: 0.00
L36: 0.00 | M36: 0 | N36: 0 | T36: 0.00
L37: 0.00 | M37: 0 | N37: 0 | T37: 0.00
L38: 0.00 | M38: 0 | N38: 0 | T38: 0.00
L39: 0.00 | M39: 0 | N39: 0 | T39: 0.00
L40: 0.00 | M40: 0 | N40: 0 | T40: 0.00
L41: 0.00 | M41: 0 | N41: 0 | T41: 0.00
L42: 0.00 | M42: 0 | N42: 0 | T42: 0.00
L43: 0.00 | M43: 0 | N43: 0 | T43: 0.00
L44: 0.00 | M44: 0 | N44: 0 | T44: 0.00
L45: 0.00 | M45: 0 | N45: 0 | T45: 0.00
L46: 0.00 | M46: 0 | N46: 0 | T46: 0.00
L47: 0.00 | M47: 0 | N47: 0 | T47: 0.00
L48: 0.00 | M48: 0 | N48: 0 | T48: 0.00
L49: 0.00 | M49: 0 | N49: 0 | T49: 0.00
L50: 0.00 | M50: 0 | N50: 0 | T50: 0.00
L51: 0.00 | M51: 0 | N51: 0 | T51: 0.00
L52: 0.00 | M52: 0 | N52: 0 | T52: 0.00
L53: 0.00 | M53: 0 | N53: 0 | T53: 0.00
L54: 0.00 | M54: 0 | N54: 0 | T54: 0.00
L55: 0.00 | M55: 0 | N55: 0 | T55: 0.00
L56: 0.00 | M56: 0 | N56: 0 | T56: 0.00
L57: 0.00 | M57: 0 | N57: 0 | T57: 0.00
L58: 0.00 | M58: 0 | N58: 0 | T58: 0.00
L59: 0.00 | M59: 0 | N59: 0 | T59: 0.00
L60: 0.00 | M60: 0 | N60: 0 | T60: 0.00
L61: 0.00 | M61: 0 | N61: 0 | T61: 0.00
L62: 0.00 | M62: 0 | N62: 0 | T62: 0.00
L63: 0.00 | M63: 0 | N63: 0 | T63: 0.00
L64: 0.00 | M64: 0 | N64: 0 | T64: 0.00
L65: 0.00 | M65: 0 | N65: 0 | T65: 0.00
L66: 0.00 | M66: 0 | N66: 0 | T66: 0.00
L67: 0.00 | M67: 0 | N67: 0 | T67: 0.00
L68: 0.00 | M68: 0 | N68: 0 | T68: 0.00
L69: 0.00 | M69: 0 | N69: 0 | T69: 0.00
L70: 0.00 | M70: 0 | N70: 0 | T70: 0.00
L71: 0.00 | M71: 0 | N71: 0 | O71: =IF(K71=0,"",(N71-K71)/K71*100) ->  | T71: 0.00
L72: =T72 -> 0.00 | M72: =S72 -> 0 | N72: =ROUND(M72*L72,2) -> 0 | T72: =I72 -> 0.00
L73: 0.00 | M73: 0 | N73: 0 | T73: 0.00
L74: 0.00 | M74: 0 | N74: 0 | T74: 0.00
L75: 0.00 | M75: 0 | N75: 0 | T75: 0.00
L76: 0.00 | M76: 0 | N76: 0 | T76: 0.00
L77: 0.00 | M77: 0 | N77: 0 | T77: 0.00
L78: 0.00 | M78: 0 | N78: 0 | T78: 0.00
L79: 0.00 | M79: 0 | N79: 0 | T79: 0.00
L80: 0.00 | M80: 0 | N80: 0 | T80: 0.00
L81: 0.00 | M81: 0 | N81: 0 | T81: 0.00
L82: 0.00 | M82: 0 | N82: 0 | T82: 0.00
L83: 0.00 | M83: 0 | N83: 0 | T83: 0.00
L84: 0.00 | M84: 0 | N84: 0 | T84: 0.00
L85: 0.00 | M85: 0 | N85: 0 | T85: 0.00
L86: 0.00 | M86: 0 | N86: 0 | T86: 0.00
L87: 0.00 | M87: 0 | N87: 0 | T87: 0.00
L88: 0.00 | M88: 0 | N88: 0 | T88: 0.00
L89: 0.00 | M89: 0 | N89: 0 | T89: 0.00
L90: 0.00 | M90: 0 | N90: 0 | T90: 0.00
L91: 0.00 | M91: 0 | N91: 0 | T91: 0.00
L92: 0.00 | M92: 0 | N92: 0 | T92: 0.00
L93: 0.00 | M93: 0 | N93: 0 | T93: 0.00
L94: 0.00 | M94: 0 | N94: 0 | T94: 0.00
L95: 0.00 | M95: 0 | N95: 0 | T95: 0.00
L96: 0.00 | M96: 0 | N96: 0 | T96: 0.00
L97: 0.00 | M97: 0 | N97: 0 | T97: 0.00
L98: 0.00 | M98: 0 | N98: 0 | T98: 0.00
L99: 0.00 | M99: 0 | N99: 0 | T99: 0.00
L100: 0.00 | M100: 0 | N100: 0 | T100: 0.00
L101: 0.00 | M101: 0 | N101: 0 | T101: 0.00
L102: 0.00 | M102: 0 | N102: 0 | T102: 0.00
L103: 0.00 | M103: 0 | N103: 0 | T103: 0.00
L104: 0.00 | M104: 0 | N104: 0 | T104: 0.00
L105: 0.00 | M105: 0 | N105: 0 | T105: 0.00
L106: 0.00 | M106: 0 | N106: 0 | T106: 0.00
L107: 0.00 | M107: 0 | N107: 0 | T107: 0.00
L108: 0.00 | M108: 0 | N108: 0 | T108: 0.00
L109: 0.00 | M109: 0 | N109: 0 | T109: 0.00
L110: 0.00 | M110: 0 | N110: 0 | T110: 0.00
L111: 0.00 | M111: 0 | N111: 0 | T111: 0.00
L112: 0.00 | M112: 0 | N112: 0 | T112: 0.00
L113: 0.00 | M113: 0 | N113: 0 | T113: 0.00
L114: 0.00 | M114: 0 | N114: 0 | T114: 0.00
L115: 0.00 | M115: 0 | N115: 0 | T115: 0.00
L116: 0.00 | M116: 0 | N116: 0 | T116: 0.00
L117: 0.00 | M117: 0 | N117: 0 | T117: 0.00
L118: 0.00 | M118: 0 | N118: 0 | T118: 0.00
L119: 0.00 | M119: 0 | N119: 0 | T119: 0.00
L120: 0.00 | M120: 0 | N120: 0 | T120: 0.00
L121: 0.00 | M121: 0 | N121: 0 | T121: 0.00
L122: 0.00 | M122: 0 | N122: 0 | T122: 0.00
L123: 0.00 | M123: 0 | N123: 0 | T123: 0.00
L124: 0.00 | M124: 0 | N124: 0 | T124: 0.00
L125: 0.00 | M125: 0 | N125: 0 | T125: 0.00
L126: 0.00 | M126: 0 | N126: 0 | T126: 0.00
L127: 0.00 | M127: 0 | N127: 0 | T127: 0.00
L128: 0.00 | M128: 0 | N128: 0 | T128: 0.00
L129: 0.00 | M129: 0 | N129: 0 | T129: 0.00
L130: 0.00 | M130: 0 | N130: 0 | T130: 0.00
L131: 0.00 | M131: 0 | N131: 0 | T131: 0.00
L132: 0.00 | M132: 0 | N132: 0 | T132: 0.00
L133: 0.00 | M133: 0 | N133: 0 | T133: 0.00
L134: 0.00 | M134: 0 | N134: 0 | T134: 0.00
L135: 0.00 | M135: 0 | N135: 0 | O135: =IF(K135=0,"",(N135-K135)/K135*100) ->  | T135: 0.00
L136: =T136 -> 0.00 | M136: =S136 -> 0 | N136: =ROUND(M136*L136,2) -> 0 | T136: =I136 -> 0.00
L137: 0.00 | M137: 0 | N137: 0 | T137: 0.00
L138: 0.00 | M138: 0 | N138: 0 | T138: 0.00
L139: 0.00 | M139: 0 | N139: 0 | T139: 0.00
L140: 0.00 | M140: 0 | N140: 0 | T140: 0.00
L141: 0.00 | M141: 0 | N141: 0 | T141: 0.00
L142: 0.00 | M142: 0 | N142: 0 | T142: 0.00
L143: 0.00 | M143: 0 | N143: 0 | T143: 0.00
L144: 0.00 | M144: 0 | N144: 0 | T144: 0.00
L145: 0.00 | M145: 0 | N145: 0 | T145: 0.00
L146: 0.00 | M146: 0 | N146: 0 | T146: 0.00
L147: 0.00 | M147: 0 | N147: 0 | T147: 0.00
L148: 0.00 | M148: 0 | N148: 0 | T148: 0.00
L149: 0.00 | M149: 0 | N149: 0 | T149: 0.00
L150: 0.00 | M150: 0 | N150: 0 | T150: 0.00
L151: 0.00 | M151: 0 | N151: 0 | T151: 0.00
L152: 0.00 | M152: 0 | N152: 0 | T152: 0.00
L153: 0.00 | M153: 0 | N153: 0 | T153: 0.00
L154: 0.00 | M154: 0 | N154: 0 | T154: 0.00
L155: 0.00 | M155: 0 | N155: 0 | T155: 0.00
L156: 0.00 | M156: 0 | N156: 0 | T156: 0.00
L157: 0.00 | M157: 0 | N157: 0 | T157: 0.00
L158: 0.00 | M158: 0 | N158: 0 | T158: 0.00
L159: 0.00 | M159: 0 | N159: 0 | T159: 0.00
L160: 0.00 | M160: 0 | N160: 0 | T160: 0.00
L161: 0.00 | M161: 0 | N161: 0 | T161: 0.00
L162: 0.00 | M162: 0 | N162: 0 | T162: 0.00
L163: 0.00 | M163: 0 | N163: 0 | T163: 0.00
L164: 0.00 | M164: 0 | N164: 0 | T164: 0.00
L165: 0.00 | M165: 0 | N165: 0 | T165: 0.00
L166: 0.00 | M166: 0 | N166: 0 | T166: 0.00
L167: 0.00 | M167: 0 | N167: 0 | T167: 0.00
L168: 0.00 | M168: 0 | N168: 0 | T168: 0.00
L169: 0.00 | M169: 0 | N169: 0 | T169: 0.00
L170: 0.00 | M170: 0 | N170: 0 | T170: 0.00
L171: 0.00 | M171: 0 | N171: 0 | T171: 0.00
L172: 0.00 | M172: 0 | N172: 0 | T172: 0.00
L173: 0.00 | M173: 0 | N173: 0 | T173: 0.00
L174: 0.00 | M174: 0 | N174: 0 | T174: 0.00
L175: 0.00 | M175: 0 | N175: 0 | T175: 0.00
L176: 0.00 | M176: 0 | N176: 0 | T176: 0.00
L177: 0.00 | M177: 0 | N177: 0 | T177: 0.00
L178: 0.00 | M178: 0 | N178: 0 | T178: 0.00
L179: 0.00 | M179: 0 | N179: 0 | T179: 0.00
L180: 0.00 | M180: 0 | N180: 0 | T180: 0.00
L181: 0.00 | M181: 0 | N181: 0 | T181: 0.00
L182: 0.00 | M182: 0 | N182: 0 | T182: 0.00
L183: 0.00 | M183: 0 | N183: 0 | T183: 0.00
L184: 0.00 | M184: 0 | N184: 0 | T184: 0.00
L185: 0.00 | M185: 0 | N185: 0 | T185: 0.00
L186: 0.00 | M186: 0 | N186: 0 | T186: 0.00
L187: 0.00 | M187: 0 | N187: 0 | T187: 0.00
L188: 0.00 | M188: 0 | N188: 0 | T188: 0.00
L189: 0.00 | M189: 0 | N189: 0 | T189: 0.00
L190: 0.00 | M190: 0 | N190: 0 | T190: 0.00
L191: 0.00 | M191: 0 | N191: 0 | T191: 0.00
L192: 0.00 | M192: 0 | N192: 0 | T192: 0.00
L193: 0.00 | M193: 0 | N193: 0 | T193: 0.00
L194: 0.00 | M194: 0 | N194: 0 | T194: 0.00
L195: 0.00 | M195: 0 | N195: 0 | T195: 0.00
L196: 0.00 | M196: 0 | N196: 0 | T196: 0.00
L197: 0.00 | M197: 0 | N197: 0 | T197: 0.00
L198: 0.00 | M198: 0 | N198: 0 | T198: 0.00
L199: 0.00 | M199: 0 | N199: 0 | O199: =IF(K199=0,"",(N199-K199)/K199*100) ->  | T199: 0.00
L200: =T200 -> 0.00 | M200: =S200 -> 0 | N200: =ROUND(M200*L200,2) -> 0 | T200: =I200 -> 0.00
... 1035 more rows

Sheet 在库周转材料 (hidden)
A1: 返回索引页 | B1: 返回
A2: 存货—在库周转材料评估明细表
A3: =CONCATENATE(#REF!,#REF!,#REF!,#REF!,#REF!,#REF!,#REF!) -> 
A4: =#REF!&#REF! ->  | O4: 金额单位：人民币元
A5: 序号 | B5: 名称及规格型号 | C5: 计量单位 | D5: 审计前账面值 | G5: 审计调整 | H5: 账面价值 | K5: 评估价值 | N5: 增值率% | O5: 备注 | P5: 存放地点
D6: 数量 | E6: 单价 | F6: 金额 | H6: 数量 | I6: 单价 | J6: 金额 | K6: 实际数量 | L6: 单价 | M6: 金额
E7: =IF(D7=0,"",F7/D7) ->  | N7: =IF(J7=0,"",(M7-J7)/J7*100) -> 
A27: 合 计 | F27: =SUM(F7:F26) -> 0 | J27: =SUM(J7:J26) -> 0 | M27: =SUM(M7:M26) -> 0 | N27: =IF(J27=0,"",(M27-J27)/J27*100) -> 
A28: =#REF!&#REF! ->  | J28: ="评估人员："&#REF! -> 
A29: =CONCATENATE(#REF!,#REF!,#REF!,#REF!,#REF!,#REF!,#REF!) -> 
B30: 注1： | C30: 1）正常，无需填写；2）残次，填“A”；3）变质，填“B”；4）毁损，填“C”；5）滞销，填“E”；
C31: 6）积压，填“D”并在备注中填写已积压时间“1年以内”、“1~2年”、“2~3年”、“3年以上”；7）其他情形用文字表述。

Sheet 委托加工物资 (hidden)
A1: 返回索引页 | B1: 返回
A2: 存货—委托加工物资评估明细表
A3: =CONCATENATE(#REF!,#REF!,#REF!,#REF!,#REF!,#REF!,#REF!) -> 
A4: =#REF!&#REF! ->  | P4: 金额单位：人民币元
A5: 序号 | B5: 名称及规格型号 | C5: 加工单位名称 | D5: 计量单位 | E5: 审计前账面值 | H5: 审计调整 | I5: 账面价值 | L5: 评估价值 | O5: 增值率% | P5: 备注
E6: 数量 | F6: 单价 | G6: 金额 | I6: 数量 | J6: 单价 | K6: 金额 | L6: 实际数量 | M6: 单价 | N6: 金额
F7: =IF(E7=0,"",G7/E7) ->  | O7: =IF(K7=0,"",(N7-K7)/K7*100) -> 
A27: 合 计 | G27: =SUM(G7:G26) -> 0 | K27: =SUM(K7:K26) -> 0 | N27: =SUM(N7:N26) -> 0 | O27: =IF(K27=0,"",(N27-K27)/K27*100) -> 
A28: =#REF!&#REF! ->  | K28: ="评估人员："&#REF! -> 
A29: =CONCATENATE(#REF!,#REF!,#REF!,#REF!,#REF!,#REF!,#REF!) -> 

Sheet 产成品（库存商品） (hidden)
A1: 返回索引页 | B1: 返回
A2: 存货—产成品（库存商品）评估明细表
A3: =CONCATENATE(#REF!,#REF!,#REF!,#REF!,#REF!,#REF!,#REF!) -> 
A4: =#REF!&#REF! ->  | N4: 金额单位：人民币元
A5: 序号 | B5: 名称及规格型号 | C5: 计量单位 | D5: 审计前账面值 | G5: 账面价值 | J5: 评估价值 | M5: 增值率% | N5: 备注 | O5: 存放地点 | P5: 取价依据 | Q5: 单价 | R5: 数量
D6: 数量 | E6: 单价 | F6: 金额 | G6: 数量 | H6: 单价 | I6: 金额 | J6: 实际数量 | K6: 单价 | L6: 金额
M2038: =IF(I2038=0,"",(L2038-I2038)/I2038*100) -> 
A2039: 合计 | D2039: =SUM(D7:D2037) -> 0.00 | F2039: =SUM(F7:F2037) -> 0.00 | J2039: 0.00 | L2039: 0.00 | M2039: =IF(I2039=0,"",(L2039-I2039)/I2039*100) -> 
A2040: 减：存货跌价准备 | F2040: 836,761.07 | K2040: =H2040 -> 0
A2041: 合计 | F2041: =F2039-F2040 -> (836,761.07) | K2041: =H2041 -> 0 | L2041: =L2039 -> 0 | M2041: =IF(I2041=0,"",(L2041-I2041)/I2041*100) -> 
A2042: =#REF!&#REF! ->  | J2042: ="评估人员："&#REF! -> 
A2043: =CONCATENATE(#REF!,#REF!,#REF!,#REF!,#REF!,#REF!,#REF!) -> 

Sheet 在产品（自制半成品） (hidden)
A1: 返回索引页 | C1: 返回
A2: 存货—在产品（自制半成品）评估明细表
A3: =CONCATENATE([2]封面!D9,[2]封面!F9,[2]封面!G9,[2]封面!H9,[2]封面!I9,[2]封面!J9,[2]封面!K9) -> 
A4: ='产成品（库存商品）'!A4 ->  | P4: 金额单位：人民币元
A5: 序号 | B5: 名称 | C5: 规格型号 | D5: 计量单位 | E5: 审计前账面值 | H5: 审计调整 | I5: 账面价值 | L5: 评估价值 | O5: 增值率% | P5: 备注 | Q5: 取价依据 | R5: 单价 | S5: 数量
E6: 数量 | F6: 单价 | G6: 金额 | I6: 数量 | J6: 单价 | K6: 金额 | L6: 实际数量 | M6: 单价 | N6: 金额
O2165: =IF(K2165=0,"",(N2165-K2165)/K2165*100) -> 
A2168: 合 计 | I2168: =SUM(I7:I2167) -> 0 | K2168: =SUM(K7:K2167) -> 0 | L2168: =SUM(L7:L2167) -> 0 | N2168: =SUM(N7:N2167) -> 0
A2169: 减：存货跌价准备 | K2169: 21,676,484.31 | M2169: =J2169 -> 0
A2170: 合计 | I2170: =I2168 -> 0 | K2170: =K2168-K2169 -> -21,676,484.31 | L2170: =L2168 -> 0 | M2170: =J2170 -> 0 | N2170: =N2168 -> 0 | O2170: -100.00
A2171: =#REF!&#REF! ->  | J2171: ="评估人员："&#REF! -> 
A2172: =CONCATENATE(#REF!,#REF!,#REF!,#REF!,#REF!,#REF!,#REF!) -> 

Sheet 发出商品 (hidden)
A1: 返回索引页 | B1: 返回
A2: 存货—发出商品评估明细表
A3: =CONCATENATE(#REF!,#REF!,#REF!,#REF!,#REF!,#REF!,#REF!) -> 
A4: =#REF!&#REF! ->  | P4: 金额单位：人民币元
A5: 序号 | B5: 商品名称 | C5: 对方单位名称 | D5: 计量单位 | E5: 审计前账面值 | H5: 审计调整 | I5: 账面价值 | L5: 评估价值 | O5: 增值率% | P5: 备注
E6: 数量 | F6: 单价 | G6: 金额 | I6: 数量 | J6: 单价 | K6: 金额 | L6: 实际数量 | M6: 单价 | N6: 金额
F7: =IF(E7=0,"",G7/E7) ->  | O7: =IF(K7=0,"",(N7-K7)/K7*100) -> 
A27: 合 计 | G27: =SUM(G7:G26) -> 0 | K27: =SUM(K7:K26) -> 0 | N27: =SUM(N7:N26) -> 0 | O27: =IF(K27=0,"",(N27-K27)/K27*100) -> 
A28: =#REF!&#REF! ->  | K28: ="评估人员："&#REF! -> 
A29: =CONCATENATE(#REF!,#REF!,#REF!,#REF!,#REF!,#REF!,#REF!) -> 

Sheet 在用周转材料 (hidden)
A1: 返回索引页 | B1: 返回
A2: 存货—低值易耗品评估明细表
A3: =CONCATENATE(#REF!,#REF!,#REF!,#REF!,#REF!,#REF!,#REF!) -> 
A4: =#REF!&#REF! ->  | P4: 金额单位：人民币元
A5: 序号 | B5: 名称及规格型号 | C5: 启用日期 | D5: 原始入账价值 | E5: 计量单位 | F5: 审计前账面值 | H5: 审计调整 | I5: 账面价值 | K5: 实际数量 | L5: 评估价值 | O5: 增值率% | P5: 备注 | Q5: 取价依据 | R5: 单价 | S5: 数量
F6: 数量 | G6: 金额 | I6: 数量 | J6: 金额 | L6: 单价 | M6: 成新率% | N6: 金额 | T6: 不含税 | U6: 账面单价
Q7: 淘宝 | R7: =ROUND((T7*1.04),-1) -> 520 | S7: 15 | T7: 500 | U7: =D7/S7 -> 0
R8: =ROUND((T8*1.04),-1) -> 290 | S8: 80 | T8: 280 | U8: =D8/S8 -> 0
R9: 290 | S9: 40 | T9: 279 | U9: 0
Q10: 淘宝 | R10: 360 | S10: 60 | T10: 350 | U10: 0
Q11: 淘宝 | R11: 290 | S11: 30 | T11: 280 | U11: 0
R12: 3590 | S12: 5 | T12: 3450 | U12: 0
R13: 920 | S13: 10 | T13: 886.9 | U13: 0
R14: 920 | S14: 1 | T14: 886.9 | U14: 0
R15: 580 | S15: 3 | T15: 580 | U15: 0
R16: 620 | S16: 1 | T16: 620 | U16: 0
R17: 740 | S17: 2 | T17: 709 | U17: 0
R18: 1170 | S18: 4 | T18: =905+220 -> 1125 | U18: 0
R19: 1700 | S19: 1 | T19: =2180/32*24 -> 1635 | U19: 0
R20: 650 | S20: 1 | T20: 623.7 | U20: 0
R21: 50 | S21: 6 | T21: 45.8 | U21: 0
R22: 250 | S22: 10 | U22: 0
R23: 250 | S23: 10 | U23: 0
R24: 250 | S24: 8 | U24: 0
R25: 370 | S25: 2 | T25: 360 | U25: 0
R26: 300 | S26: 1 | U26: 0
R27: 600 | S27: 1 | U27: 0
R28: 380 | S28: 1 | U28: 0
R29: 400 | S29: 1 | U29: 0
R30: 7299 | S30: 3 | T30: 7299 | U30: 0
R31: 3499 | S31: 1 | T31: 3499 | U31: 0
R32: 400 | S32: 2 | U32: 0
R33: 1000 | S33: 1 | U33: 0
R34: 800 | S34: 1 | U34: 0
R35: 79 | S35: 3 | T35: 79 | U35: 0
R36: 250 | S36: 1 | U36: 0
R37: =ROUND((T37*1.04),-1) -> 580 | S37: 1 | T37: 558 | U37: 0
R38: 520 | S38: 1 | T38: 498 | U38: 0
R39: 1500 | S39: 1 | U39: 0
R40: 25 | S40: 25 | U40: 0
R41: 100 | S41: 11 | U41: 0
R42: 290 | S42: 1 | U42: 0
R43: 530 | S43: 42 | U43: 0
R44: 570 | S44: 47 | U44: 0
R45: 270 | S45: =9+3+4+5+2+9+2+3+2+2+2+4+4+6+6 -> 63 | U45: 0 | V45: 15
R46: 380 | S46: =4+2 -> 6 | U46: 0
R47: 480 | S47: 2 | U47: 0
R48: 480 | S48: =3+2+2+6+4 -> 17 | U48: 0
R49: 380 | S49: =2+2+4+4+6 -> 18 | U49: 0
R50: 450 | S50: 1 | U50: 0
R51: 255 | S51: 2 | U51: 0
R52: 100 | S52: 4 | U52: 0
R53: 1170 | S53: 3 | U53: 0
R54: 540 | S54: 25 | U54: 0
R55: 560 | S55: 7 | U55: 0
R56: 4200 | S56: 1 | U56: 0
R57: 2900 | S57: 1 | U57: 0
R58: 4800 | S58: 1 | U58: 0
R59: 3900 | S59: 1 | U59: 0
R60: 3600 | S60: 3 | U60: 0
R61: 3300 | S61: 1 | U61: 0
R62: 1600 | S62: 5 | U62: 0
R63: 5060 | S63: 1 | U63: 0
R64: 800 | S64: 21.8 | U64: 0
R65: 800 | S65: 5.1 | U65: 0
R66: 800 | S66: 8.7 | U66: 0
R67: 800 | S67: 9.35 | U67: 0
R68: 800 | S68: 4.2 | U68: 0
R69: 800 | S69: 1.8 | U69: 0
R70: 800 | S70: 8.4 | U70: 0
R71: 800 | S71: 3.6 | U71: 0
R72: 800 | S72: 19.6 | U72: 0
R73: 800 | S73: 18 | U73: 0
R74: 800 | S74: 21 | U74: 0
R75: 800 | S75: 9.1 | U75: 0
R76: 620 | S76: 1 | U76: 0
R77: 950 | S77: 5.62 | U77: 0
R78: 950 | S78: 20.06 | U78: 0
R79: 850 | S79: 1.7 | U79: 0
R80: 950 | S80: 8.3 | U80: 0
R81: 650 | S81: 8.7 | U81: 0
R82: 150 | S82: 13.92 | U82: 0
R83: 650 | S83: 8.7 | U83: 0
R84: 150 | S84: 13.92 | U84: 0
Q85: 淘宝 | R85: 206 | S85: 2 | U85: 0 | V85: 淘宝
Q86: 淘宝 | R86: 688 | S86: 1 | U86: 0 | V86: 淘宝
Q87: 淘宝 | R87: 350 | S87: 30 | U87: 0 | V87: 淘宝
Q88: 淘宝 | R88: 650 | S88: 1 | U88: 0 | V88: 淘宝
R89: 85 | S89: 2 | U89: =D89/S89 -> 0
R90: 20 | S90: 30 | U90: 0
R91: 160 | S91: 1 | U91: 0
Q92: 淘宝 | R92: 280 | S92: 1 | U92: 0 | V92: 淘宝
Q93: 淘宝 | R93: 700 | S93: 1 | U93: 0 | V93: 淘宝
R94: 1130 | S94: 1 | U94: 0
R95: 100 | S95: 2 | U95: 0
R96: 260 | S96: 5 | U96: 0
R97: 380 | S97: 200 | U97: 0
R98: 24 | S98: 24 | U98: 0
R99: 4 | S99: 97 | U99: 0
R100: 4 | S100: 100 | U100: 0
R101: 9 | S101: 80 | U101: 0
R102: 11 | S102: 20 | U102: 0
R103: 10 | S103: 20 | U103: 0
R104: 500 | S104: 2 | U104: 0
R105: 7 | S105: 131 | U105: 0
Q106: 淘宝 | R106: 4260 | S106: 1 | U106: 0 | V106: 淘宝
R107: 1200 | S107: 1 | U107: 0
R108: =5500-110 -> 5390 | S108: 1 | U108: 0
R109: =3600 -> 3600 | S109: 1 | U109: 0
R110: 190 | S110: 50 | U110: 0
R111: 90 | S111: 5 | U111: 0
R112: 250 | S112: 2 | U112: 0
R113: 320 | S113: 50 | U113: 0 | V113: 5
Q114: 淘宝 | R114: 1900 | S114: 4 | U114: 0
R115: 1200 | S115: 2 | U115: 0
R116: 1000 | S116: 2 | U116: 0
R117: 600 | S117: 3 | U117: 0
A119: 合 计 | D119: =SUM(D7:D118) -> 0 | G119: =SUM(G7:G118) -> 0 | J119: =SUM(J7:J118) -> 0 | N119: =SUM(N7:N118) -> 0 | O119: =IF(J119=0,"",(N119-J119)/J119*100) -> 
A120: =#REF!&#REF! ->  | J120: ="评估人员："&#REF! -> 
A121: =CONCATENATE(#REF!,#REF!,#REF!,#REF!,#REF!,#REF!,#REF!) -> 

Sheet 一年到期非流动资产 (hidden)
A1: 返回索引页 | B1: 返回
A2: 一年内到期的非流动资产评估明细表
A3: =CONCATENATE(#REF!,#REF!,#REF!,#REF!,#REF!,#REF!,#REF!) -> 
A4: =#REF!&#REF! ->  | J4: 金额单位：人民币元
A5: 序号 | B5: 项目及内容 | C5: 发生日期 | D5: 结算内容 | E5: 审计前账面值 | F5: 审计调整 | G5: 账面价值 | H5: 评估价值 | I5: 增值率% | J5: 备注
I6: =IF(G6=0,"",(H6-G6)/G6*100) -> 
A27: 合 计 | E27: =SUM(E6:E26) -> 0 | G27: =SUM(G6:G26) -> 0 | H27: =SUM(H6:H26) -> 0 | I27: =IF(G27=0,"",(H27-G27)/G27*100) -> 
A28: =#REF!&#REF! ->  | G28: ="评估人员："&#REF! -> 
A29: =CONCATENATE(#REF!,#REF!,#REF!,#REF!,#REF!,#REF!,#REF!) -> 

Sheet 其他流动资产 (hidden)
A1: 返回索引页 | B1: 返回
A2: 其他流动资产评估明细表
A3: =CONCATENATE(#REF!,#REF!,#REF!,#REF!,#REF!,#REF!,#REF!) -> 
A4: =#REF!&#REF! ->  | J4: 金额单位：人民币元
A5: 序号 | B5: 项目及内容 | C5: 发生日期 | D5: 结算内容 | E5: 审计前账面值 | F5: 审计调整 | G5: 账面价值 | H5: 评估价值 | I5: 增值率% | J5: 备注
I6: =IF(G6=0,"",(H6-G6)/G6*100) -> 
A27: 合 计 | E27: =SUM(E6:E26) -> 0 | G27: =SUM(G6:G26) -> 0 | H27: =SUM(H6:H26) -> 0 | I27: =IF(G27=0,"",(H27-G27)/G27*100) -> 
A28: =#REF!&#REF! ->  | G28: ="评估人员："&#REF! -> 
A29: =CONCATENATE(#REF!,#REF!,#REF!,#REF!,#REF!,#REF!,#REF!) -> 

Sheet 可供出售金融资产汇总 (hidden)
A1: 返回索引页 | B1: 返回
A2: 可供出售金融资产评估汇总表
A3: =CONCATENATE(#REF!,#REF!,#REF!,#REF!,#REF!,#REF!,#REF!) -> 
A4: =#REF!&#REF! ->  | H4: 金额单位：人民币元
A5: 编号 | B5: 科目名称 | C5: 审计前账面值 | D5: 审计调整 | E5: 账面价值 | F5: 评估价值 | G5: 增值额 | H5: 增值率%
A6: 4-1-1 | B6: 可供出售金融资产-股票投资 | C6: ='可出售-股票'!I27 -> 0 | E6: ='可出售-股票'!K27 -> 0 | F6: ='可出售-股票'!L27 -> 0 | G6: =F6-E6 -> 0 | H6: =IF(E6=0,"",G6/E6*100) -> 
A7: 4-1-2 | B7: 可供出售金融资产-债券投资 | C7: ='可出售-债券'!H27 -> 0 | E7: ='可出售-债券'!J27 -> 0 | F7: ='可出售-债券'!K27 -> 0 | G7: =F7-E7 -> 0 | H7: =IF(E7=0,"",G7/E7*100) -> 
A8: 4-1-3 | B8: 可供出售金融资产-其他投资 | C8: ='可出售-其他'!H27 -> 0 | E8: ='可出售-其他'!J27 -> 0 | F8: ='可出售-其他'!K27 -> 0 | G8: =F8-E8 -> 0 | H8: =IF(E8=0,"",G8/E8*100) -> 
A25: 4 | B25: 可供出售金融资产合计 | C25: =SUM(C6:C24) -> 0 | E25: =SUM(E6:E24) -> 0 | F25: =SUM(F6:F24) -> 0 | G25: =SUM(G6:G24) -> 0 | H25: =IF(E25=0,"",G25/E25*100) -> 
A26: 4 | B26: 减：可供出售金融资产减值准备 | E26: =C26 -> 0 | F26: 0 | G26: =F26-E26 -> 0 | H26: =IF(E26=0,"",G26/E26*100) -> 
A27: 4 | B27: 可供出售金融资产净额 | C27: =C25-C26 -> 0 | E27: =E25-E26 -> 0 | F27: =F25-F26 -> 0 | G27: =G25-G26 -> 0 | H27: =IF(E27=0,"",G27/E27*100) -> 
A28: =#REF!&#REF! ->  | F28: ="评估人员："&#REF! -> 
A29: =CONCATENATE(#REF!,#REF!,#REF!,#REF!,#REF!,#REF!,#REF!) -> 

Sheet 可出售-股票 (hidden)
A1: 返回索引页 | B1: 返回
A2: 可供出售金融资产—股票投资评估明细表
A3: =CONCATENATE(#REF!,#REF!,#REF!,#REF!,#REF!,#REF!,#REF!) -> 
A4: =#REF!&#REF! ->  | N4: 金额单位：人民币元
A5: 序号 | B5: 被投资单位名称 | C5: 股票性质 | D5: 投资日期 | E5: 持股数量 | F5: 持股比例% | G5: 基准日市价 | H5: 取得成本 | I5: 审计前账面值 | J5: 审计调整 | K5: 账面价值 | L5: 评估价值 | M5: 增值率% | N5: 备注
M6: =IF(K6=0,"",(L6-K6)/K6*100) -> 
A27: 合 计 | I27: =SUM(I6:I26) -> 0 | K27: =SUM(K6:K26) -> 0 | L27: =SUM(L6:L26) -> 0 | M27: =IF(K27=0,"",(L27-K27)/K27*100) -> 
A28: =#REF!&#REF! ->  | K28: ="评估人员："&#REF! -> 
A29: =CONCATENATE(#REF!,#REF!,#REF!,#REF!,#REF!,#REF!,#REF!) -> 

Sheet 可出售-债券 (hidden)
A1: 返回索引页 | B1: 返回
A2: 可供出售金融资产—债券投资评估明细表
A3: =CONCATENATE(#REF!,#REF!,#REF!,#REF!,#REF!,#REF!,#REF!) -> 
A4: =#REF!&#REF! ->  | M4: 金额单位：人民币元
A5: 序号 | B5: 被投资单位名称 | C5: 债券种类 | D5: 发行日期 | E5: 到期日 | F5: 票面利率% | G5: 成本（面值） | H5: 审计前账面值 | I5: 审计调整 | J5: 账面价值 | K5: 评估价值 | L5: 增值率% | M5: 备注
L6: =IF(J6=0,"",(K6-J6)/J6*100) -> 
A27: 合 计 | H27: =SUM(H6:H26) -> 0 | J27: =SUM(J6:J26) -> 0 | K27: =SUM(K6:K26) -> 0 | L27: =IF(J27=0,"",(K27-J27)/J27*100) -> 
A28: =#REF!&#REF! ->  | J28: ="评估人员："&#REF! -> 
A29: =CONCATENATE(#REF!,#REF!,#REF!,#REF!,#REF!,#REF!,#REF!) -> 

Sheet 可出售-其他 (hidden)
A1: 返回索引页 | B1: 返回
A2: 可供出售金融资产—其他投资评估明细表
A3: =CONCATENATE(#REF!,#REF!,#REF!,#REF!,#REF!,#REF!,#REF!) -> 
A4: =#REF!&#REF! ->  | M4: 金额单位：人民币元
A5: 序号 | B5: 被投资单位名称 | C5: 金融资产名称 | D5: 投资日期 | E5: 持有数量 | F5: 基准日市价 | G5: 成本 | H5: 审计前账面值 | I5: 审计调整 | J5: 账面价值 | K5: 评估价值 | L5: 增值率% | M5: 备注
L6: =IF(J6=0,"",(K6-J6)/J6*100) -> 
A27: 合 计 | H27: =SUM(H6:H26) -> 0 | J27: =SUM(J6:J26) -> 0 | K27: =SUM(K6:K26) -> 0 | L27: =IF(J27=0,"",(K27-J27)/J27*100) -> 
A28: =#REF!&#REF! ->  | J28: ="评估人员："&#REF! -> 
A29: =CONCATENATE(#REF!,#REF!,#REF!,#REF!,#REF!,#REF!,#REF!) -> 

Sheet 持有到期投资 (hidden)
A1: 返回索引页 | B1: 返回
A2: 持有至到期投资评估明细表
A3: =CONCATENATE(#REF!,#REF!,#REF!,#REF!,#REF!,#REF!,#REF!) -> 
A4: =#REF!&#REF! ->  | M4: 金额单位：人民币元
A5: 序号 | B5: 被投资单位名称 | C5: 投资类别 | D5: 投资日期 | E5: 到期日 | F5: 票面利率% | G5: 投资成本 | H5: 审计前账面值 | I5: 审计调整 | J5: 账面价值 | K5: 评估价值 | L5: 增值率% | M5: 备注
L6: =IF(J6=0,"",(K6-J6)/J6*100) -> 
A25: 合 计 | H25: =SUM(H6:H24) -> 0 | J25: =SUM(J6:J24) -> 0 | K25: =SUM(K6:K24) -> 0
A26: 减：持有至到期投资减值准备 | J26: =H26 -> 0 | K26: 0
A27: 净 额 | H27: =H25-H26 -> 0 | J27: =J25-J26 -> 0 | K27: =K25-K26 -> 0
A28: =#REF!&#REF! ->  | J28: ="评估人员："&#REF! -> 
A29: =CONCATENATE(#REF!,#REF!,#REF!,#REF!,#REF!,#REF!,#REF!) -> 

Sheet 长期应收 (hidden)
A1: 返回索引页 | B1: 返回
A2: 长期应收款评估明细表
A3: =CONCATENATE(#REF!,#REF!,#REF!,#REF!,#REF!,#REF!,#REF!) -> 
A4: =#REF!&#REF! ->  | J4: 金额单位：人民币元
A5: 序号 | B5: 欠款单位名称（结算对象) | C5: 业务内容 | D5: 发生日期 | E5: 审计前账面值 | F5: 审计调整 | G5: 账面价值 | H5: 评估价值 | I5: 增值率% | J5: 备注
I6: =IF(G6=0,"",(H6-G6)/G6*100) -> 
A24: 合 计 | E24: =SUM(E6:E23) -> 0 | G24: =SUM(G6:G23) -> 0 | H24: =SUM(H6:H23) -> 0
A25: 减：坏账准备 | G25: =E25 -> 0 | H25: 0
A26: 减：评估风险损失
A27: 净 额 | E27: =E24-E25-E26 -> 0 | G27: =G24-G25-G26 -> 0 | H27: =H24-H25-H26 -> 0
A28: =#REF!&#REF! ->  | G28: ="评估人员："&#REF! -> 
A29: =CONCATENATE(#REF!,#REF!,#REF!,#REF!,#REF!,#REF!,#REF!) -> 
B30: 注1： | C30: 注明账齡在一年以上的账款的可收回性，若有部分可能不能收回，请估计不能收回的金額，以供评估时作參考。
B31: 注2：“备注”栏填写方法： | C31: 1）欠款单位为关联方、总公司内部或本公司内部单位的，应在备注栏注明“关联方”、“总公司内部”、“内部单位”；
C32: 2） 涉诉款项应在备注中标明“涉诉”；
C33: 3）评估基准日后已部分或全部收回款项的，应注明日期及金额，如“2003年2月4日收回8,530.00元”；
C34: 4）填表单位认为其他应说明的事项

Sheet 股权投资 (hidden)
A1: 返回索引页 | B1: 返回
A2: 长期股权投资评估明细表
A3: =CONCATENATE(#REF!,#REF!,#REF!,#REF!,#REF!,#REF!,#REF!) -> 
A4: =#REF!&#REF! ->  | L4: 金额单位：人民币元
A5: 序号 | B5: 被投资单位名称 | C5: 投资日期 | D5: 协议投资期限 | E5: 持股比例% | F5: 投资成本 | G5: 审计前账面值 | H5: 审计调整 | I5: 账面价值 | J5: 评估价值 | K5: 增值率% | L5: 备注
K6: =IF(I6=0,"",(J6-I6)/I6*100) ->  | M6: =J6-I6 -> 0 | O6: =J6-I6 -> 0
K7: =IF(I7=0,"",(J7-I7)/I7*100) ->  | M7: =J7-I7 -> 0 | N7: 0 | O7: =J7-I7 -> 0
M9: =[3]分类汇总!$F$64*E7/100 -> 0
M10: =M9-J7 -> 0
A25: 合 计 | G25: =SUM(G6:G24) -> 0 | I25: =SUM(I6:I24) -> 0 | J25: =SUM(J6:J24) -> 0
A26: 减：长期股权投资减值准备 | I26: =G26 -> 0 | J26: 0
A27: 净 额 | G27: =G25-G26 -> 0 | I27: =I25-I26 -> 0 | J27: =J25-J26 -> 0
A28: =#REF!&#REF! ->  | I28: ="评估人员："&#REF! -> 
A29: =CONCATENATE(#REF!,#REF!,#REF!,#REF!,#REF!,#REF!,#REF!) -> 

Sheet 4-5-1投资性房地产 (hidden)
A1: 返回索引页 | B1: 返回
A2: 投资性房地产——房屋评估明细表
A3: （采用成本模式计量）
A4: =股权投资!A3 -> 
A5: 被评估单位（或者产权持有单位）： | S5: 金额单位：人民币元
A6: 序号 | B6: 权证编号 | C6: 房屋名称 | D6: 来源（外购、自建、自用转入、存货转入等） | E6: 结构 | F6: 建成 年月 | G6: 计量单位 | H6: 建筑面积 | I6: 成本单价(元/m2) | J6: 审计前账面值 | L6: 审计调整 | N6: 账面价值 | P6: 评估价值 | S6: 增值率% | T6: 评估单价(元/m2) | U6: 备注
J7: 原值 | K7: 净值 | L7: 原值 | M7: 净值 | N7: 原值 | O7: 净值 | P7: 原值 | Q7: 成新率% | R7: 净值
S8: =IF(Q8=0,"",(R8-O8)/O8*100) -> 
A25: 合 计 | J25: =SUM(J8:J24) -> 0 | K25: 0 | L25: 0 | M25: 0 | N25: 0 | O25: 0 | P25: 0 | R25: =SUM(R8:R24) -> 0
A26: 减：投资性房地产减值准备
A27: 合 计 | J27: =J25-J26 -> 0 | K27: 0 | L27: 0 | M27: 0 | N27: 0 | O27: 0 | P27: 0 | R27: =R25-R26 -> 0 | S27: =IF(Q27=0,"",(R27-O27)/O27*100) -> 
A28: =#REF!&#REF! ->  | N28: ="评估人员："&#REF! -> 
A29: =CONCATENATE(#REF!,#REF!,#REF!,#REF!,#REF!,#REF!,#REF!) -> 

Sheet 4-5-2投资性房地产 (hidden)
A1: 返回索引页 | B1: 返回
A2: 投资性房地产——房屋评估明细表
A3: （采用公允价值模式计量）
A4: ='4-5-1投资性房地产'!A4:U4 -> 
A5: 被评估单位（或者产权持有单位）： | R5: 金额单位：人民币元
A6: 序号 | B6: 权证编号 | C6: 房屋名称 | D6: 来源（外购、自建、自用转入、存货转入等） | E6: 结构 | F6: 建成 年月 | G6: 计量单位 | H6: 建筑 面积 | I6: 成本单价(元/m2) | J6: 原始入帐价值 （转入日公允价值） | L6: 审计前账面值 | M6: 审计调整 | N6: 账面价值 | O6: 评估价值 | P6: 增减值 | Q6: 增值率% | R6: 备注 | S6: 现场勘察简单记录 | T6: 证载权利人
A27: 合 计 | L27: =SUM(L8:L26) -> 0 | N27: =SUM(N8:N26) -> 0 | O27: =SUM(O8:O26) -> 0
A28: =#REF!&#REF! ->  | N28: ="评估人员："&#REF! -> 
A29: =CONCATENATE(#REF!,#REF!,#REF!,#REF!,#REF!,#REF!,#REF!) -> 

Sheet 4-5-3投资性地产 (hidden)
A1: 返回索引页 | B1: 返回
A2: 投资性房地产——土地使用权评估明细表
A3: （采用成本模式计量）
A4: ='4-5-2投资性房地产'!A4:R4 -> 
A5: 被评估单位（或者产权持有单位）： | S5: 金额单位：人民币元
A6: 序号 | B6: 土地权证编号 | C6: 宗地名称 | D6: 来源（外购、自建、自用转入、存货转入等） | E6: 土地位置 | F6: 取得日期 | G6: 用地性质 | H6: 土地用途 | I6: 准用年限 | J6: 开发程度 | K6: 面积(m2) | L6: 原始入账价值 | M6: 审计前账面值 | N6: 审计调整 | O6: 账面价值 | P6: 评估价值 | Q6: 增减值 | R6: 增值率% | S6: 备注
A25: 合 计
A26: 减：投资性房地产减值准备
A27: 合 计 | M27: =SUM(M7:M26) -> 0 | O27: =SUM(O7:O26) -> 0 | P27: =SUM(P7:P26) -> 0
A28: =#REF!&#REF! ->  | O28: ="评估人员："&#REF! -> 
A29: =CONCATENATE(#REF!,#REF!,#REF!,#REF!,#REF!,#REF!,#REF!) -> 

Sheet 4-5-4投资性地产 (hidden)
A1: 返回索引页 | B1: 返回
A2: 投资性房地产——土地使用权评估明细表
A3: （采用公允价值模式计量）
A4: ='4-5-3投资性地产'!A4:S4 -> 
A5: 被评估单位（或者产权持有单位）： | S5: 金额单位：人民币元
A6: 序号 | B6: 土地权证编号 | C6: 宗地名称 | D6: 来源（外购、自建、自用转入、存货转入等） | E6: 土地位置 | F6: 取得日期 | G6: 用地性质 | H6: 土地用途 | I6: 准用年限 | J6: 开发程度 | K6: 面积(m2) | L6: 原始入账价值（转入日公允价值） | M6: 审计前账面值 | N6: 审计调整 | O6: 账面价值 | P6: 评估价值 | Q6: 增减值 | R6: 增值率% | S6: 备注
A27: 合 计 | M27: =SUM(M7:M26) -> 0 | O27: =SUM(O7:O26) -> 0 | P27: =SUM(P7:P26) -> 0
A28: =#REF!&#REF! ->  | O28: ="评估人员："&#REF! -> 
A29: =CONCATENATE(#REF!,#REF!,#REF!,#REF!,#REF!,#REF!,#REF!) -> 

Sheet 工程建设其他费用表 (hidden)
B1: 工程建设其他费用测算底稿
B2: =CONCATENATE(#REF!,#REF!,#REF!,#REF!,#REF!,#REF!,#REF!) -> 
B4: 序号 | C4: 取 费 项 目 | D4: 取费基础 | E4: 标 准 | F4: 取 费 依 据 | G4: 费率（不含税） | H4: 增值税抵扣税率
B5: 1 | C5: 建设单位管理 | D5: 投资额 | E5: =G27 -> 1.31% | F5: 财政部关于印发《基本建设项目建设成本管理规定》的通知（财建〔2016〕504号） | G5: =E5 -> 1.31% | H5: 0.00%
B6: 2 | C6: 工程监理费 | D6: 投资额 | E6: =F98 -> 2.12% | F6: 《建设工程监理与相关服务收费管理规定》发改价格〔2007〕670号、《国家发改委关于降低部分建设项目收费标准规范收费行为等有关问题的通知》发改价格(2011)534号文件 | G6: =ROUND(E6/1.06,4) -> 2.00% | H6: 6%
B7: 3 | C7: 工程勘察设计费 | D7: 投资额 | E7: =ROUND(F50,4) -> 2.98% | F7: 《工程勘察设计收费管理规定》计价格[2002]10号 | G7: =ROUND(E7/1.06,4) -> 2.81% | H7: 6%
B8: 4 | C8: 招标代理费 | D8: 投资额 | E8: =H62 -> 0.25% | F8: 《招标代理服务收费管理暂行办法》计价格[2002]1980号 | G8: 0.24% | H8: 6%
B9: 5 | C9: 环境评价费 | D9: 投资额 | E9: =F157 -> 0.09% | F9: 国家计委、国家环境保护总局关于规范环境影响评价收费标准的通知（计价格［2002］125号） | G9: 0.08% | H9: 6%
B10: 6 | C10: 施工图设计文件审查费 | D10: 投资额 | E10: 0.20% | F10: 《施工图审查费》冀价经费字[2002]27号、《国家发改委关于降低部分建设项目收费标准规范收费行为等有关问题的通知》发改价格(2011)534号文件 | G10: 0.19% | H10: 6%
B11: 7 | C11: 可行性研究费 | D11: 投资额 | E11: =C185 -> 0.14% | F11: 《建设项目前期工作咨询收费暂行规定》计价格(1999)1283号 | G11: 0.13% | H11: 6%
B12: 8 | C12: 工程预决算编审费 | D12: =D11 -> 投资额 | E12: =L215 -> 0.55% | F12: 《工程造价咨询服务收费标准》唐建价字（2006）36号 | G12: 0.52% | H12: 6%
B13: 9 | C13: 城市基础设施配套费 | D13: 建筑面积 | E13: 50 | F13: 《河北省财政厅关于唐山市城市基础设施配套费收费标准的批复》(冀财税〔2017〕16号)和唐山市财政局关于转发《河北省财政厅关于唐山市城市基础设施配套费收费标准的批复》的通知(唐财税〔2017〕23号)
B14: 10 | C14: 新型墙体材料专项基金 | D14: 建筑面积 | E14: 10 | F14: 《河北省新型墙体材料专项基金征收使用管理实施办法》的通知冀财综[2008]22号
E15: =SUM(E5:E12) -> 7.64% | G15: =SUM(G5:G14) -> 7.28%
B17: 建设单位管理费
B18: 按财建〔2016〕504号标准计算确定，具体见下表。 | F18: 投资额度（万元） | G18: 投资额度
B19: 工程规模（万元） | C19: 费率（%） | D19: 算 例 | F19: 13,000.00
D20: 工程规模 | E20: 建设单位管理费
B21: 1000以下 | C21: 2 | D21: 1000 | E21: 1000×2％＝20 | F21: =IF(F19<=1000,$F$19*2%,0) -> 0
B22: 1001-5000 | C22: 1.5 | D22: 5000 | E22: 20十(5000-1000)×1.5%＝80 | F22: =IF($F$19<=5000,IF($F$19>1000,(20+($F$19-1000)*1.5%),0),0) -> 0.0
B23: 5001-10000 | C23: 1.2 | D23: 10000 | E23: 80十(10000-5000)×1.2％＝140 | F23: =IF($F$19<=10000,IF($F$19>5000,(80+($F$19-5000)*1.2%),0),0) -> 0.0
B24: 10001-50000 | C24: 1 | D24: 50000 | E24: 140十(50000-10000)×1％＝540 | F24: =IF($F$19<=50000,IF($F$19>10000,(140+($F$19-10000)*1%),0),0) -> 170.0
B25: 50001-100000 | C25: 0.8 | D25: 100000 | E25: 540+(100000-50000)×0.8%＝940 | F25: =IF($F$19<=100000,IF($F$19>50000,(540+($F$19-50000)*0.8%),0),0) -> 0.0
B26: 100000以上 | C26: 0.4 | D26: 200000 | E26: 940十(200000-100000)×0．2％＝1340 | F26: =IF($F$19>100000,(940+($F$19-100000)*0.4%),0) -> 0.0 | G26: =SUM(F21:F27) -> 170
F27: =IF($F$19>200000,(883+($F$19-200000)*0.1%),0) -> 0.0 | G27: =ROUND(G26/F19,4) -> 1.31%
B29: 工程勘察设计费
B30: 按国家计委、建设部计价格（2002）10号计算确定，具体参照下表确定。
B31: 序号 | C31: 工程规模（万元） | D31: 收费基价（万元）
B32: 1 | C32: 200 | D32: 9 | E32: =IF($F$19<=C32,D32/C32*$F$19,0) -> 0
B33: 2 | C33: 500 | D33: 20.9 | E33: =IF($F$19<=C33,IF($F$19>C32,(D33/C33-(C33-$F$19)/((C33-C32)/(D33/C33-D32/C32)))*$F$19,0),0) -> 0 | F33: =C39 -> 20,000.00 | G33: =D39 -> 566.80 | H33: =F35-F33 -> 20,000.00 | I33: =G35-G33 -> 487.20
B34: 3 | C34: 1,000 | D34: 38.8 | E34: 0 | F34: =F19 -> 13,000.00 | H34: =F35-F34 -> 27,000.00 | I34: =H34*I33/H33 -> 657.72
B35: 4 | C35: 3,000 | D35: 103.8 | E35: 0 | F35: =C40 -> 40,000.00 | G35: =D40 -> 1,054.00 | H35: =I35/F34-0.01% -> 3.04% | I35: =G35-I34 -> 396.28
B36: 5 | C36: 5,000 | D36: 163.9 | E36: 0
B37: 6 | C37: 8,000 | D37: 249.6 | E37: 0
B38: 7 | C38: 10,000 | D38: 304.8 | E38: 0
B39: 8 | C39: 20,000 | D39: 566.8 | E39: 387.894
B40: 9 | C40: 40,000 | D40: 1,054.00 | E40: 0
B41: 10 | C41: 60,000 | D41: 1,515.20 | E41: 0
B42: 11 | C42: 80,000 | D42: 1,960.10 | E42: 0
B43: 12 | C43: 100,000 | D43: 2,393.40 | E43: 0
B44: 13 | C44: 200,000 | D44: 4,450.80 | E44: 0
B45: 14 | C45: 400,000 | D45: 8,276.70 | E45: 0
B46: 15 | C46: 600,000 | D46: 11,897.50 | E46: 0
B47: 16 | C47: 800,000 | D47: 15,391.40 | E47: 0
B48: 17 | C48: 1,000,000 | D48: 18,793.80 | E48: 0 | F48: =SUM(E32:E50) -> 387.894
B49: 18 | C49: 2,000,000 | D49: 34,948.90 | E49: 0 | F49: 工程勘察设计费比率
B50: 注：计费额＞2,000,000万元的，以计费额乘以1.6％的收费率计算收费基价。 | E50: =IF($F$19>C49,D49/C49*$F$19*(1.6%),0) -> 0 | F50: =F48/F19 -> 2.98%
B51: 计算方法：根据各单位投资规模采用直线内插法确定各单位的工程勘察设计费总额
B53: （4）招标代理费
B54: 招标代理费按国家计委[计价格 ［2002］1980号]选取
B55: 服务类型 中标金额（万元） | D55: 货物招标 | E55: 服务招标 | F55: 工程招标
B56: 100以下 | C56: 100 | D56: 1.50% | E56: 1.50% | F56: 1.00% | G56: =IF($F$19<C56,$F$19*F56,C56*F56) -> 1.00
B57: 100—500 | C57: 500 | D57: 1.10% | E57: 0.80% | F57: 0.70% | G57: =IF($F$19<C57,IF($F$19>C56,($F$19-C56)*F57),(C57-C56)*F57) -> 2.80
B58: 500—1000 | C58: 1,000 | D58: 0.80% | E58: 0.45% | F58: 0.55% | G58: =IF($F$19<C58,IF($F$19>C57,($F$19-C57)*F58,0),(C58-C57)*F58) -> 2.75
B59: 1000—5000 | C59: 5,000 | D59: 0.50% | E59: 0.25% | F59: 0.35% | G59: =IF($F$19<C59,IF($F$19>C58,($F$19-C58)*F59,0),(C59-C58)*F59) -> 14.00
B60: 5000—10000 | C60: 10,000 | D60: 0.25% | E60: 0.10% | F60: 0.20% | G60: =IF($F$19<C60,IF($F$19>C59,($F$19-C59)*F60,0),(C60-C59)*F60) -> 10.00 | H60: =SUM(G56:G62) -> 32.05
B61: 10000——100000 | C61: 100,000 | D61: 0.05% | E61: 0.05% | F61: 0.05% | G61: =IF($F$19<C61,IF($F$19>C60,($F$19-C60)*F61,0),(C61-C60)*F61) -> 1.50 | H61: 招标代理费率
B62: 1000000以上 | C62: 100,001 | D62: 0.01% | E62: 0.01% | F62: 0.01% | G62: =IF($F$19>C62,$F$19*F62,0) -> 0.00 | H62: =H60/F19 -> 0.25%
B64: 注：
B65: 1、按本表费率计算的收费为招标代理服务全过程的收费基准价格，单独提供编制招标文件（有标底的含标底）服务的，可按规定标准的30％计收。
B66: 2、招标代理服务收费按差额定率累进法计算。例如：某工程招标代理业务中标金额为6000万元，计算招标代理服务费额如下：
B67: 100万元×1.0％＝1万元
B68: （500－100）万元×0.7％＝2.8万元 | E68: =(1+2.8+2.75+E71)/F19 -> 0.37%
B69: （1000－500）万元×0.55％＝2.75万元
B70: （5000－1000）万元×0.35％＝14万元
B71: （10000－5000）万元×0.2％＝10万元 | E71: =(F19-1000)*0.35% -> 42
B72: (100000-10000)万元*0.05%=45万元
B74: 合计收费＝1＋2.8＋2.75＋14＋2＝22.55(万元)
B75: （１）建设贷款利率标准
B78: 工程质量监督费，收费标准按建安造价计算，特大城市1．3‰，大城市1．4‰，中等城市2‰，小城市2．5‰
B81: 施工监理收费基价表
B82: 单位：万元
B83: 序号 | C83: 计费额 | D83: 收费基价
B84: 1 | C84: 500 | D84: 16.5
B85: 2 | C85: 1000 | D85: 30.1 | E85: =IF($F$19<=C85,D85/C85*$F$19,0) -> 0 | F85: =C90 -> 20,000.00 | G85: =D90 -> 393.40 | H85: =F87-F85 -> 20,000.00 | I85: =G87-G85 -> 314.80
B86: 3 | C86: 3000 | D86: 78.1 | E86: =IF($F$19<=C86,IF($F$19>C85,(D86/C86-(C86-$F$19)/((C86-C85)/(D86/C86-D85/C85)))*$F$19,0),0) -> 0 | F86: =F19 -> 13,000.00 | H86: =F87-F86 -> 27,000.00 | I86: =H86*I85/H85 -> 424.98
B87: 4 | C87: 5000 | D87: 120.8 | E87: 0 | F87: =C91 -> 40,000.00 | G87: =D91 -> 708.20 | H87: =I87/F86 -> 2.18% | I87: =G87-I86 -> 283.22
B88: 5 | C88: 8000 | D88: 181 | E88: 0
B89: 6 | C89: 10000 | D89: 218.6 | E89: 0
B90: 7 | C90: 20000 | D90: 393.4 | E90: 275.639
B91: 8 | C91: 40000 | D91: 708.2 | E91: 0
B92: 9 | C92: 60000 | D92: 991.4 | E92: 0
B93: 10 | C93: 80000 | D93: 1255.8 | E93: 0
B94: 11 | C94: 100000 | D94: 1507 | E94: 0
B95: 12 | C95: 200000 | D95: 2712.5 | E95: 0
B96: 13 | C96: 400000 | D96: 4882.6 | E96: 0 | F96: =SUM(E83:E99) -> 275.639
B97: 14 | C97: 600000 | D97: 6835.6 | E97: 0 | F97: 工程监理费比率
B98: 15 | C98: 800000 | D98: 8658.4 | E98: 0 | F98: =ROUND(F96*1/F19,4) -> 2.12%
B99: 16 | C99: 1000000 | D99: 10390.1 | E99: 0
B102: 施工监理收费专业调整系数表
B103: 工程类型 专业调整系数
B104: 1．矿山采选工程
B105: 黑色、有色、黄金、化学、非金属及其他矿采选工程 0.9
B106: 矿井工程，选煤及其他煤炭工程 1.0
B107: 铀矿采选工程 1.1
B108: 2.加工冶炼工程
B109: 船舶水工工程 1.0
B110: 各类加工、冶炼工程 1.0
B111: 核加工工程 1.2
B112: 3.石油化工工程
B113: 石油工程 0.9
B114: 化工、石化、化纤、医药工程 1.0
B115: 核化工工程 1.3
B116: 4.水利电力工程
B117: 风力发电、其他水利工程 0.9
B118: 火电工程、送变电工程 1.0
B119: 核电常规岛、水电、水库工程 1.2
B120: 核能工程 1.3
B121: 5．交通运输工程
B122: 机场场道、机场空管和助航灯光工程 0.9
B123: 铁路、公路、城市道路、轻轨工程 1.0
B124: 水运、地铁、桥梁、隧道、索道工程 1.1
B125: 6．建筑市政工程
B126: 邮电、电信、广电工艺工程 0.9
B127: 建筑、人防、市政工程 1.0
B128: 园林绿化工程 0.8
B129: 7．农业林业工程
B130: 农业工程 0.9
B131: 林业工程 0.9
B134: 《关于规范环境影响咨询收费有关问题的通知》（计价格[2002]125号），国家发展计划委员会、国家环境保护总局联合文件
B136: 估算投资额（亿元） | C136: 0.3以下 | D136: 0.3-2 | E136: 2-10 | F136: 10-50 | G136: 50-100 | H136: 100以上 | K136: 3,000.00 | L136: 6.00 | M136: =K138-K136 -> 17,000.00 | N136: =L138-L136 -> 9.00
B137: 咨询服务项目(万元) | K137: =F19 -> 13,000.00 | M137: =K138-K137 -> 7,000.00 | N137: =M137*N136/M136 -> 3.71
B138: 编制环境影响报告书（含大纲） | C138: 5-6 | D138: 6-15 | E138: 15-35 | F138: 35-75 | G138: 75-110 | H138: 110 | K138: 20,000.00 | L138: 15.00 | M138: =N138/K137-0.01% -> 0.077% | N138: =L138-N137 -> 11.29
B139: 编制环境影响报告表 | C139: 1-2 | D139: 2-4 | E139: 4-7 | G139: 7以上
B140: 评估环境影响报告书（含大纲） | C140: 0.8-1.5 | D140: 1.5-3 | E140: 3-7 | F140: 7-9 | G140: 9-13 | H140: 13以上 | K140: 3,000.00 | L140: 2.00 | M140: =K142-K140 -> 17,000.00 | N140: =L142-L140 -> 2.00
B141: 评估环境影响报告表 | C141: 0.5-0.8 | D141: 0.8-1.5 | E141: 1.5-2 | G141: 2以上 | K141: =K137 -> 13,000.00 | M141: =K142-K141 -> 7,000.00 | N141: =M141*N140/M140 -> 0.82
K142: 20,000.00 | L142: 4.00 | M142: =N142/K141-0.01% -> 0.014% | N142: =L142-N141 -> 3.18
B144: 测算比例： | C144: =(6+2+1.5+0.8)/3000 -> 0.34% | D144: =(15+4+3+1.5)/20000 -> 0.12% | E144: =(35+7+7+2)/100000 -> 0.05% | F144: =(75+9+9+3)/500000 -> 0.02% | G144: =(110+13+13+4)/1000000 -> 0.01% | H144: =(110+13+13+4)/1000000 -> 0.01% | K144: 3,000.00 | L144: 1.50 | M144: =K146-K144 -> 17,000.00 | N144: =L146-L144 -> 1.50
K145: =K141 -> 13,000.00 | M145: =K146-K145 -> 7,000.00 | N145: =M145*N144/M144 -> 0.62
K146: 20,000.00 | L146: 3.00 | M146: =N146/K145-0.01% -> 0.008% | N146: =L146-N145 -> 2.38
B147: 行 业 | H147: 调整系数
B148: 化工、冶金、有色、黄金、煤炭、矿产、纺织、化纤、轻工、医药、区域 | H148: 1.2 | K148: 3,000.00 | L148: 0.80 | M148: =K150-K148 -> 17,000.00 | N148: =L150-L148 -> 0.70
B149: 石化、石油天然气、水利、水电、旅游 | H149: 1.1 | K149: =K141 -> 13,000.00 | M149: =K150-K149 -> 7,000.00 | N149: =M149*N148/M148 -> 0.29
B150: 林业、畜牧、渔业、农业、交通、铁道、民航、管线运输、建材、市政、烟草、兵器 | H150: 1 | K150: 20,000.00 | L150: 1.50 | M150: =N150/K149-0.01% -> -0.001% | N150: =L150-N149 -> 1.21
B151: 邮电、广播电视、航空、机械、船舶、航天、电子、勘探、社会服务、火电 | H151: 0.8
B152: 粮食、建筑、信息产业、仓储 | H152: 0.6
M154: =M138+M142+M146+M150 -> 0.10%
C155: 环境敏感程度 | D155: 调整系数
C156: 敏感 | D156: 1.2 | F156: 环评费比率
C157: 一般 | D157: 0.8 | F157: =(M138+M142+M146+M150)*H151*D156 -> 0.09%
B163: 《建设项目前期工作咨询收费暂行规定》计价格(1999)1283号
B165: 估算投资额 | C165: ３０００万元－ | D165: １亿元－ | E165: ５亿元－ | F165: １０亿元－ | G165: ５０亿元
B166: 咨询评估项目 | C166: １亿元 | D166: ５亿元 | E166: １０亿元 | F166: ５０亿元 | G166: 以上
B167: 一、编制项目建议书 | C167: 6-14 | D167: １４－３７ | E167: ３７－５５ | F167: ５５－１００ | G167: １００－１２５
B168: 二、编制可行性研究报告 | C168: 12-18 | D168: ２８－７５ | E168: ７５－１１０ | F168: １１０－２００ | G168: ２００－２５０
B169: 三、评估项目建议书 | C169: 4-8 | D169: 8-12 | E169: 12-15 | F169: １５－１７ | G169: １７－２０
B170: 四、评估可行性研究报告 | C170: 5-10 | D170: 10-15 | E170: １５－２０ | F170: ２０－２５ | G170: ２５－３５
B172: 测算比例： | C172: =(14+18+8+10)/10000 -> 0.50% | D172: =(37+75+12+15)/50000 -> 0.28% | E172: =(55+110+15+20)/100000 -> 0.20% | F172: =(100+200+17+25)/500000 -> 0.07% | G172: =(125+250+20+35)/1000000 -> 0.04%
B174: 行 业 | C174: 调整系数 | F174: 调整系数
C175: （以表一所列收费标准为１） | F175: （以表一所列收费标准为１）
B176: 一、行业调整系数
B177: １．石化、化工、钢铁 | F177: 1.3
B178: ２．石油、天然气、水利、水电、交通（水运）、化纤 | F178: 1.2
B179: ３．有色、黄金、纺织、轻工、邮电、广播电视、医药、煤炭、火电（含核电）、机械（含船舶、航空、航天、兵器） | F179: 1
B180: ４．林业、商业、粮食、建筑 | F180: 0.8
B181: ５．建材、交通（公路）、铁道、市政公用工程 | F181: 0.7
B182: 二、工程复杂程度调整系数 | F182: ０．８－１．２
C184: 可行性研究费比率
C185: =E172*F181*1 -> 0.14%
B191: 工程预决算编审费 | D191: =L215 -> 0.55%
B193: 序号 | C193: 收费项目 | E193: 收费基数X | L193: 收费标准（万元）
F194: X≤200万元 | G194: 200＜X≤500万元 | H194: 500＜X≤2000万元 | I194: 2000＜X≤10000万元 | J194: ＞10000万元 | K194: 送审或审减金额（万元）
B195: 1 | C195: 投资估算 | E195: 投资估算造价 | F195: 0.8 | G195: 0.7 | H195: 0.6 | I195: 0.5 | J195: 0.3 | L195: =IF(K195<=200,K195*F195/1000,IF(K195<=500,(K195-200)*G195/1000+0.16,IF(K195<=2000,(K195-500)*H195/1000+0.37,IF(K195<=10000,(K195-2000)*I195/1000+1.27,IF(K195>10000,(K195-10000)*J195/1000+5.27))))) -> 0.000
B196: 2 | C196: 经济评价 | E196: 投资估算造价 | F196: 0.8 | G196: 0.7 | H196: 0.6 | I196: 0.5 | J196: 0.3 | L196: =IF(K196<=200,K196*F196/1000,IF(K196<=500,(K196-200)*G196/1000+0.16,IF(K196<=2000,(K196-500)*H196/1000+0.37,IF(K196<=10000,(K196-2000)*I196/1000+1.27,IF(K196>10000,(K196-10000)*J196/1000+5.27))))) -> 0.000
B197: 3 | C197: 概算编制 | E197: 设计概算造价 | F197: 3 | G197: 2.5 | H197: 2 | I197: 1.8 | J197: 1.6 | L197: =IF(K197<=200,K197*F197/1000,IF(K197<=500,(K197-200)*G197/1000+0.6,IF(K197<=2000,(K197-500)*H197/1000+1.35,IF(K197<=10000,(K197-2000)*I197/1000+4.35,IF(K197>10000,(K197-10000)*J197/1000+18.75))))) -> 0.000
B198: 4 | C198: 概算审核 | E198: 设计概算造价 | F198: 2 | G198: 1.8 | H198: 1.5 | I198: 1.2 | J198: 1 | L198: =IF(K198<=200,K198*F198/1000,IF(K198<=500,(K198-200)*G198/1000+0.4,IF(K198<=2000,(K198-500)*H198/1000+0.94,IF(K198<=10000,(K198-2000)*I198/1000+3.19,IF(K198>10000,(K198-10000)*J198/1000+12.79))))) -> 0.000
B199: 5 | C199: 预算编制 | E199: 建筑安装工程造价 | F199: 4 | G199: 3.5 | H199: 3 | I199: 2.5 | J199: 2 | K199: =F19 -> 13000 | L199: =IF(K199<=200,K199*F199/1000,IF(K199<=500,(K199-200)*G199/1000+0.8,IF(K199<=2000,(K199-500)*H199/1000+1.85,IF(K199<=10000,(K199-2000)*I199/1000+6.35,IF(K199>10000,(K199-10000)*J199/1000+26.35))))) -> 32.350
B200: 6 | C200: 预算审核 | E200: 建筑安装工程造价 | F200: 3.2 | G200: 2.8 | H200: 2.4 | I200: 2 | J200: 1.6 | K200: =K199 -> 13000 | L200: =IF(K200<=200,K200*F200/1000,IF(K200<=500,(K200-200)*G200/1000+0.64,IF(K200<=2000,(K200-500)*H200/1000+1.48,IF(K200<=10000,(K200-2000)*I200/1000+5.08,IF(K200>10000,(K200-10000)*J200/1000+21.08))))) -> 25.880
B201: 7 | C201: 工程量清单编制（或审核） | E201: 建筑安装工程造价 | F201: 5 | G201: 4 | H201: 3 | I201: 2.2 | J201: 1.8 | L201: =IF(K201<=200,K201*F201/1000,IF(K201<=500,(K201-200)*G201/1000+1,IF(K201<=2000,(K201-500)*H201/1000+2.2,IF(K201<=10000,(K201-2000)*I201/1000+6.7,IF(K201>10000,(K201-10000)*J201/1000+24.3))))) -> 0.000
B202: 8 | C202: 招标控制价编制（或审核） | E202: 建筑安装工程造价 | F202: 2 | G202: 1.8 | H202: 1.6 | I202: 1.4 | J202: 1.2 | L202: =IF(K202<=200,K202*F202/1000,IF(K202<=500,(K202-200)*G202/1000+0.4,IF(K202<=2000,(K202-500)*H202/1000+0.94,IF(K202<=10000,(K202-2000)*I202/1000+3.34,IF(K202>10000,(K202-10000)*J202/1000+14.54))))) -> 0.000
B203: 9 | C203: 投标报价分析（清标） | E203: 建筑安装工程造价 | F203: 0.6 | G203: 0.5 | H203: 0.4 | I203: 0.3 | J203: 0.2 | L203: =IF(K203<=200,K203*F203/1000,IF(K203<=500,(K203-200)*G203/1000+0.12,IF(K203<=2000,(K203-500)*H203/1000+0.27,IF(K203<=10000,(K203-2000)*I203/1000+0.87,IF(K203>10000,(K203-10000)*J203/1000+3.27))))) -> 0.000
B204: 10 | C204: 施工阶段造价咨询 | D204: （1）基本收费 | E204: 建筑安装工程造价 | H204: 8 | I204: 6 | J204: 4 | L204: =IF(K204<=2000,(K204)*H204/1000,IF(K204<=10000,(K204-2000)*I204/1000+16,IF(K204>10000,(K204-10000)*J204/1000+64))) -> 0.000
D205: （2）效益收费 | E205: 审减额+审增额 | F205: 5 | L205: =K205*F205/100 -> 0.00
B206: 11 | C206: 结算编制 | E206: 建筑安装工程造价 | F206: 5 | G206: 4.5 | H206: 4 | I206: 3.5 | J206: 3 | L206: =IF(K206<=200,K206*F206/1000,IF(K206<=500,(K206-200)*G206/1000+1,IF(K206<=2000,(K206-500)*H206/1000+2.35,IF(K206<=10000,(K206-2000)*I206/1000+8.35,IF(K206>10000,(K206-10000)*J206/1000+36.35))))) -> 0.000
B207: 12 | C207: 结算审核 | D207: （1）基本收费 | E207: 建筑安装工程送审造价 | F207: 4.5 | G207: 4 | H207: 3.5 | I207: 3 | J207: 2.5 | L207: =IF(K207<=200,K207*F207/1000,IF(K207<=500,(K207-200)*G207/1000+0.9,IF(K207<=2000,(K207-500)*H207/1000+2.1,IF(K207<=10000,(K207-2000)*I207/1000+7.35,IF(K207>10000,(K207-10000)*J207/1000+31.35))))) -> 0.000
D208: （2）效益收费 | E208: 审减额+审增额 | F208: 8 | L208: =K208*F208/100 -> 0.00
B209: 13 | C209: 竣工决算编制 | E209: 建设项目总投资 | F209: 2 | G209: 1.5 | H209: 1.2 | I209: 1 | J209: 0.8 | K209: =K200 -> 13000 | L209: =IF(K209<=200,K209*F209/1000,IF(K209<=500,(K209-200)*G209/1000+0.4,IF(K209<=2000,(K209-500)*H209/1000+0.85,IF(K209<=10000,(K209-2000)*I209/1000+2.65,IF(K209>10000,(K209-10000)*J209/1000+10.65))))) -> 13.050
B210: 14 | C210: 全过程造价咨询 | D210: （1）基本收费 | E210: 建筑安装工程造价 | H210: 13 | I210: 10 | J210: 8 | L210: =IF(K210<=2000,(K210)*H210/1000,IF(K210<=10000,(K210-2000)*I210/1000+26,IF(K210>10000,(K210-10000)*J210/1000+106))) -> 0.000
D211: （2）效益收费 | E211: 审减额+审增额 | F211: 5 | L211: =K211*F211/100 -> 0.00
B212: 15 | C212: 工程造价争议鉴定 | E212: 鉴定标的（千分之） | F212: 12 | G212: 10 | H212: 8 | I212: 6 | J212: 5 | L212: =IF(K212<=200,K212*F212/1000,IF(K212<=500,(K212-200)*G212/1000+2.4,IF(K212<=2000,(K212-500)*H212/1000+5.4,IF(K212<=10000,(K212-2000)*I212/1000+17.4,IF(K212>10000,(K212-10000)*J212/1000+65.4))))) -> 0.000
L214: =SUM(L195:L213) -> 71.28
L215: =L214/K209 -> 0.55%

Sheet 房屋建筑物
A1: 返回索引页 | B1: 返回
A2: 固定资产—房屋建筑物评估明细表
A4: 被评估企业： 北方鼎业再生资源开发有限公司 | I4: 金额单位：人民币元
A5: 序号 | B5: 权证编号 | C5: 建筑物名称 | D5: 结构 | E5: 建成 年月 | F5: 计量单位 | G5: 建筑 面积/容积 | H5: 评估单价(元/m2) | I5: 备注 | J5: 现场勘察简单记录 | K5: 证载权利人
A7: 1 | C7: 吊装房（两个） | D7: 集装箱 | E7: 2012 | F7: m2 | G7: 36.00 | H7: 180
A8: 2 | C8: 彩钢房 | D8: 彩钢 | E8: 2013 | F8: m2 | G8: 18.00 | H8: 240
A9: 3 | B9: 滦南房权证倴私字第016874号 | C9: 综合办公楼 | D9: 框架 | E9: 2014 | F9: m2 | G9: 7631.23 | H9: 3,592 | I9: 含地源热泵、电梯
A10: 4 | B10: 滦南房权证倴私字第016874号 | C10: 宿舍楼 | D10: 框架 | E10: 2014 | F10: m2 | G10: 3975.45 | H10: 3,316 | I10: 含地源热泵
A11: 5 | B11: 滦南房权证倴私字第016874号 | C11: 仓库 | D11: 钢结构 | E11: 2012 | F11: m2 | G11: 5135.81 | H11: 1,072
A12: 6 | B12: 滦南房权证倴私字第016874号 | C12: 车间 | D12: 钢结构 | E12: 2012 | F12: m2 | G12: 10461.83 | H12: 1,201
A13: 7 | C13: 西门卫 | D13: 混合 | E13: 2012 | F13: m2 | G13: 36.00 | H13: 1,433
A14: 8 | C14: 地磅房 | D14: 混合 | E14: 2012 | F14: m2 | G14: 27.00 | H14: 1,434
A15: 9 | C15: 九间房 | D15: 混合 | E15: 2012 | F15: m2 | G15: 533.52 | H15: 1,494
A16: 10 | C16: 厕所 | D16: 砖混 | E16: 2012 | F16: m2 | G16: 18.00 | H16: 1,083
A17: 11 | C17: 热水井房 | D17: 砖混 | E17: 2012 | F17: m2 | G17: 22.55 | H17: 944
A18: 12 | C18: 污水处理房 | D18: 钢混 | E18: 2012 | F18: m2 | G18: 1621.80 | H18: 3,469
A19: 13 | C19: 饮用水井房 | D19: 砖混 | E19: 2012 | F19: m2 | G19: 18.00 | H19: 1,057
A27: 合计 | G27: 29,535.19
A28: 减：房屋建筑物减值准备
A29: 合计 | G29: 29,535.19

Sheet 房屋建筑物打分法成新率 (hidden)
A1: 评估人员按照《房屋完损等级评定标准》(城住字(1984)第678号)，通过现场勘察房屋各部位的完损程度并对其量化打分
A2: 结构项目 | B2: 标准分 | C2: 评分 | D2: 装修项目 | E2: 标准分 | F2: 评分 | G2: 设备项目 | H2: 标准分 | I2: 评分
A3: 基础 | B3: 20 | C3: 20 | D3: 门窗 | E3: 35 | F3: 28 | G3: 电照 | H3: 50 | I3: 38
A4: 承重构件 | B4: 30 | C4: 23 | D4: 外粉刷 | E4: 25 | F4: 20 | G4: 水卫 | H4: 40 | I4: 30
A5: 非承重墙 | B5: 15 | C5: 10 | D5: 内粉刷 | E5: 20 | F5: 15 | G5: 其他 | H5: 10 | I5: 10
A6: 屋面 | B6: 20 | C6: 15 | D6: 顶棚 | E6: 20 | F6: 15
A7: 楼地面 | B7: 15 | C7: 10
A8: 小计 | B8: 100 | C8: 78 | E8: 100 | F8: 78 | H8: 100 | I8: 78
A9: 权重 | B9: 70% | E9: 20% | H9: 30%
A10: 分值法成新率％ | C10: 78x70%+78x20%+78x10% | H10: 78
A13: 综合成新率=年限法成新率×权重40%+打分法成新率×权重60%

Sheet 构筑物
A1: 返回索引页 | B1: 返回
A2: 固定资产—构筑物及其他辅助设施评估明细表
A4: 被评估企业： 北方鼎业再生资源开发有限公司 | H4: 金额单位：人民币元
A5: 序号 | B5: 名称 | C5: 结构 | D5: 建成 年月 | E5: 计量单位 | F5: 面积体积m2或m3 | G5: 评估单价(元/m2) | H5: 备注
A7: 1 | B7: 南门口石板地面 | C7: 花岗岩石材 | D7: 2013 | E7: m2 | F7: 4444.00 | G7: 311
A8: 2 | B8: 喷泉 | C8: 混凝土 | D8: 2013 | E8: 项 | F8: 1.00 | G8: 107,163
A9: 3 | B9: 南门口造型及门卫 | C9: 混凝土 | D9: 2013 | E9: 项 | F9: 1.00 | G9: 1,794,474
A10: 4 | B10: 南门口台阶 | C10: 花岗岩石材 | D10: 2013 | E10: m2 | F10: 231.00 | G10: 472
A11: 5 | B11: 围墙 | C11: 铁艺 | D11: 2012 | E11: 米 | F11: 1567.44 | G11: 308
A12: 6 | B12: 厂区地面 | C12: 混凝土 | D12: 2013 | E12: m2 | F12: 78135.30 | G12: 81
A13: 7 | B13: 深水井 | C13: 钢管 | D13: 2014 | E13: 米 | F13: 1700.00 | G13: 654
A14: 8 | B14: 饮用水井 | C14: 钢管 | D14: 2012 | E14: 米 | F14: 396.00 | G14: 386
A15: 9 | B15: 篮球场地面 | C15: 混凝土 | D15: 2012 | E15: m2 | F15: 700.00 | G15: 55
A29: 合计
A30: 减：构筑物及其他辅助设施减值准备
A31: 合计

Sheet 管道沟槽 (hidden)
A1: 返回索引页 | B1: 返回
A2: 固定资产—管道和沟槽评估明细表
A3: =CONCATENATE(#REF!,#REF!,#REF!,#REF!,#REF!,#REF!,#REF!) -> 
A4: =#REF!&#REF! ->  | T4: 金额单位：人民币元 | Y4: =构筑物!#REF! ->  | Z4: =房屋建筑物!#REF! ->  | AA4: =房屋建筑物!#REF! -> 
A5: 序号 | B5: 名称 | C5: 使用单位 | D5: 长度 (m) | E5: 漕深 (m) | F5: 沟宽*沟厚(mm*mm) 管径*壁厚(mm*mm) | G5: 材质 | H5: 绝缘方式 | I5: 建成年月 | J5: 审计前账面值 | L5: 审计调整 | N5: 账面价值 | P5: 评估价值 | S5: 增值率% | T5: 备注 | U5: 评 估 值 | AH5: 2015-12-31
J6: 原值 | K6: 净值 | L6: 原值 | M6: 净值 | N6: 原值 | O6: 净值 | P6: 原值 | Q6: 成新率% | R6: 净值 | U6: 建安单方造价 | V6: 系数修正 | W6: 修正后单价 | X6: 前期费用 | Y6: 其他费用 | Z6: 资金成本工期 | AA6: 资金成本利率 | AB6: 资金成本 | AC6: 重置单价 (元/㎡) | AD6: 重置价值 | AE6: 设计使用年限 | AF6: 尚可使用年限 | AG6: 成新率 | AH6: 已使用年限
P7: =AD7 ->  | Q7: =AG7 -> 30 | R7: =ROUND(P7*Q7/100,0) ->  | S7: =IF(O7=0,"",(R7-O7)/O7*100) ->  | V7: 1 | W7: =V7*U7 -> 0.00 | X7: =ROUND(W7*$Y$4,2) ->  | Z7: =$Z$4 ->  | AA7: =$AA$4 ->  | AB7: =ROUND(((W7+X7)*(Z7*AA7/2)),2) ->  | AC7: =AB7+X7+W7 ->  | AD7: =ROUND((D7*AC7),-2) ->  | AG7: =IF(ROUND((AF7/(AF7+AH7)*100),0)>30,ROUND((AF7/(AF7+AH7)*100),0),"30") -> 30 | AH7: =ROUND(($AH$5-I7)/365,2) -> 116.08
P8: =AD8 ->  | Q8: =AG8 -> 30 | R8: =ROUND(P8*Q8/100,0) ->  | S8: =IF(O8=0,"",(R8-O8)/O8*100) ->  | V8: 1 | W8: =V8*U8 -> 0.00 | X8: =ROUND(W8*$Y$4,2) ->  | Z8: =$Z$4 ->  | AA8: =$AA$4 ->  | AB8: =ROUND(((W8+X8)*(Z8*AA8/2)),2) ->  | AC8: =AB8+X8+W8 ->  | AD8: =ROUND((D8*AC8),-2) ->  | AG8: =IF(ROUND((AF8/(AF8+AH8)*100),0)>30,ROUND((AF8/(AF8+AH8)*100),0),"30") -> 30 | AH8: =ROUND(($AH$5-I8)/365,2) -> 116.08
P9: =AD9 ->  | Q9: =AG9 -> 30 | R9: =ROUND(P9*Q9/100,0) ->  | S9: =IF(O9=0,"",(R9-O9)/O9*100) ->  | V9: 1 | W9: =V9*U9 -> 0.00 | X9: =ROUND(W9*$Y$4,2) ->  | Z9: =$Z$4 ->  | AA9: =$AA$4 ->  | AB9: =ROUND(((W9+X9)*(Z9*AA9/2)),2) ->  | AC9: =AB9+X9+W9 ->  | AD9: =ROUND((D9*AC9),-2) ->  | AG9: 30 | AH9: =ROUND(($AH$5-I9)/365,2) -> 116.08
Q10: 30 | V10: 1 | W10: 0.00 | AG10: 30 | AH10: 116.08
Q11: 30 | V11: 1 | W11: 0.00 | AG11: 30 | AH11: 116.08
Q12: 30 | V12: 1 | W12: 0.00 | AG12: 30 | AH12: 116.08
Q13: 30 | V13: 1 | W13: 0.00 | AG13: 30 | AH13: 116.08
Q14: 30 | V14: 1 | W14: 0.00 | AG14: 30 | AH14: 116.08
Q15: 30 | V15: 1 | W15: 0.00 | AG15: 30 | AH15: 116.08
Q16: 30 | V16: 1 | W16: 0.00 | AG16: 30 | AH16: 116.08
Q17: 30 | V17: 1 | W17: 0.00 | AG17: 30 | AH17: 116.08
Q18: 30 | V18: 1 | W18: 0.00 | AG18: 30 | AH18: 116.08
Q19: 30 | V19: 1 | W19: 0.00 | AG19: 30 | AH19: 116.08
Q20: 30 | V20: 1 | W20: 0.00 | AG20: 30 | AH20: 116.08
Q21: 30 | V21: 1 | W21: 0.00 | AG21: 30 | AH21: 116.08
Q22: 30 | V22: 1 | W22: 0.00 | AG22: 30 | AH22: 116.08
Q23: 30 | V23: 1 | W23: 0.00 | AG23: 30 | AH23: 116.08
Q24: 30 | V24: 1 | W24: 0.00 | AG24: 30 | AH24: 116.08
Q25: 30 | V25: 1 | W25: 0.00 | AG25: 30 | AH25: 116.08
Q26: 30 | V26: 1 | W26: 0.00 | AG26: 30 | AH26: 116.08
Q27: 30 | V27: 1 | W27: 0.00 | AG27: 30 | AH27: 116.08
Q28: 30 | V28: 1 | W28: 0.00 | AG28: 30 | AH28: 116.08
Q29: 30 | V29: 1 | W29: 0.00 | AG29: 30 | AH29: 116.08
Q30: 30 | V30: 1 | W30: 0.00 | AG30: 30 | AH30: 116.08
Q31: 30 | V31: 1 | W31: 0.00 | AG31: 30 | AH31: 116.08
Q32: 30 | V32: 1 | W32: 0.00 | AG32: 30 | AH32: 116.08
Q33: 30 | V33: 1 | W33: 0.00 | AG33: 30 | AH33: 116.08
Q34: 30 | V34: 1 | W34: 0.00 | AG34: 30 | AH34: 116.08
Q35: 30 | V35: 1 | W35: 0.00 | AG35: 30 | AH35: 116.08
Q36: 30 | V36: 1 | W36: 0.00 | AG36: 30 | AH36: 116.08
Q37: 30 | V37: 1 | W37: 0.00 | AG37: 30 | AH37: 116.08
Q38: 30 | V38: 1 | W38: 0.00 | AG38: 30 | AH38: 116.08
Q39: 30 | V39: 1 | W39: 0.00 | AG39: 30 | AH39: 116.08
Q40: 30 | V40: 1 | W40: 0.00 | AG40: 30 | AH40: 116.08
Q41: 30 | V41: 1 | W41: 0.00 | AG41: 30 | AH41: 116.08
Q42: 30 | V42: 1 | W42: 0.00 | AG42: 30 | AH42: 116.08
Q43: 30 | V43: 1 | W43: 0.00 | AG43: 30 | AH43: 116.08
Q44: 30 | V44: 1 | W44: 0.00 | AG44: 30 | AH44: 116.08
Q45: 30 | V45: 1 | W45: 0.00 | AG45: 30 | AH45: 116.08
Q46: 30 | V46: 1 | W46: 0.00 | AG46: 30 | AH46: 116.08
Q47: 30 | V47: 1 | W47: 0.00 | AG47: 30 | AH47: 116.08
Q48: 30 | V48: 1 | W48: 0.00 | AG48: 30 | AH48: 116.08
Q49: 30 | V49: 1 | W49: 0.00 | AG49: 30 | AH49: 116.08
Q50: 30 | V50: 1 | W50: 0.00 | AG50: 30 | AH50: 116.08
Q51: 30 | V51: 1 | W51: 0.00 | AG51: 30 | AH51: 116.08
Q52: 30 | V52: 1 | W52: 0.00 | AG52: 30 | AH52: 116.08
Q53: 30 | V53: 1 | W53: 0.00 | AG53: 30 | AH53: 116.08
Q54: 30 | V54: 1 | W54: 0.00 | AG54: 30 | AH54: 116.08
Q55: 30 | V55: 1 | W55: 0.00 | AG55: 30 | AH55: 116.08
Q56: 30 | V56: 1 | W56: 0.00 | AG56: 30 | AH56: 116.08
Q57: 30 | V57: 1 | W57: 0.00 | AG57: 30 | AH57: 116.08
Q58: 30 | V58: 1 | W58: 0.00 | AG58: 30 | AH58: 116.08
Q59: 30 | V59: 1 | W59: 0.00 | AG59: 30 | AH59: 116.08
Q60: 30 | V60: 1 | W60: 0.00 | AG60: 30 | AH60: 116.08
Q61: 30 | V61: 1 | W61: 0.00 | AG61: 30 | AH61: 116.08
Q62: 30 | V62: 1 | W62: 0.00 | AG62: 30 | AH62: 116.08
Q63: 30 | V63: 1 | W63: 0.00 | AG63: 30 | AH63: 116.08
Q64: 30 | V64: 1 | W64: 0.00 | AG64: 30 | AH64: 116.08
Q65: 30 | V65: 1 | W65: 0.00 | AG65: 30 | AH65: 116.08
Q66: 30 | V66: 1 | W66: 0.00 | AG66: 30 | AH66: 116.08
Q67: 30 | V67: 1 | W67: 0.00 | AG67: 30 | AH67: 116.08
Q68: 30 | V68: 1 | W68: 0.00 | AG68: 30 | AH68: 116.08
Q69: 30 | V69: 1 | W69: 0.00 | AG69: 30 | AH69: 116.08
Q70: 30 | V70: 1 | W70: 0.00 | AG70: 30 | AH70: 116.08
Q71: 30 | V71: 1 | W71: 0.00 | AG71: 30 | AH71: 116.08
Q72: 30 | V72: 1 | W72: 0.00 | AG72: =IF(ROUND((AF72/(AF72+AH72)*100),0)>30,ROUND((AF72/(AF72+AH72)*100),0),"30") -> 30 | AH72: 116.08
P73: =AD73 ->  | Q73: =AG73 -> 30 | R73: =ROUND(P73*Q73/100,0) ->  | S73: =IF(O73=0,"",(R73-O73)/O73*100) ->  | V73: 1 | W73: =V73*U73 -> 0.00 | X73: =ROUND(W73*$Y$4,2) ->  | Z73: =$Z$4 ->  | AA73: =$AA$4 ->  | AB73: =ROUND(((W73+X73)*(Z73*AA73/2)),2) ->  | AC73: =AB73+X73+W73 ->  | AD73: =ROUND((D73*AC73),-2) ->  | AG73: 30 | AH73: =ROUND(($AH$5-I73)/365,2) -> 116.08
Q74: 30 | V74: 1 | W74: 0.00 | AG74: 30 | AH74: 116.08
Q75: 30 | V75: 1 | W75: 0.00 | AG75: 30 | AH75: 116.08
Q76: 30 | V76: 1 | W76: 0.00 | AG76: 30 | AH76: 116.08
Q77: 30 | V77: 1 | W77: 0.00 | AG77: 30 | AH77: 116.08
Q78: 30 | V78: 1 | W78: 0.00 | AG78: 30 | AH78: 116.08
Q79: 30 | V79: 1 | W79: 0.00 | AG79: 30 | AH79: 116.08
Q80: 30 | V80: 1 | W80: 0.00 | AG80: 30 | AH80: 116.08
Q81: 30 | V81: 1 | W81: 0.00 | AG81: 30 | AH81: 116.08
Q82: 30 | V82: 1 | W82: 0.00 | AG82: 30 | AH82: 116.08
Q83: 30 | V83: 1 | W83: 0.00 | AG83: 30 | AH83: 116.08
Q84: 30 | V84: 1 | W84: 0.00 | AG84: 30 | AH84: 116.08
Q85: 30 | V85: 1 | W85: 0.00 | AG85: 30 | AH85: 116.08
Q86: 30 | V86: 1 | W86: 0.00 | AG86: 30 | AH86: 116.08
Q87: 30 | V87: 1 | W87: 0.00 | AG87: 30 | AH87: 116.08
Q88: 30 | V88: 1 | W88: 0.00 | AG88: 30 | AH88: 116.08
Q89: 30 | V89: 1 | W89: 0.00 | AG89: 30 | AH89: 116.08
Q90: 30 | V90: 1 | W90: 0.00 | AG90: 30 | AH90: 116.08
Q91: 30 | V91: 1 | W91: 0.00 | AG91: 30 | AH91: 116.08
Q92: 30 | V92: 1 | W92: 0.00 | AG92: 30 | AH92: 116.08
Q93: 30 | V93: 1 | W93: 0.00 | AG93: 30 | AH93: 116.08
Q94: 30 | V94: 1 | W94: 0.00 | AG94: 30 | AH94: 116.08
Q95: 30 | V95: 1 | W95: 0.00 | AG95: 30 | AH95: 116.08
Q96: 30 | V96: 1 | W96: 0.00 | AG96: 30 | AH96: 116.08
Q97: 30 | V97: 1 | W97: 0.00 | AG97: 30 | AH97: 116.08
Q98: 30 | V98: 1 | W98: 0.00 | AG98: 30 | AH98: 116.08
Q99: 30 | V99: 1 | W99: 0.00 | AG99: 30 | AH99: 116.08
Q100: 30 | V100: 1 | W100: 0.00 | AG100: 30 | AH100: 116.08
Q101: 30 | V101: 1 | W101: 0.00 | AG101: 30 | AH101: 116.08
Q102: 30 | V102: 1 | W102: 0.00 | AG102: 30 | AH102: 116.08
Q103: 30 | V103: 1 | W103: 0.00 | AG103: 30 | AH103: 116.08
Q104: 30 | V104: 1 | W104: 0.00 | AG104: 30 | AH104: 116.08
Q105: 30 | V105: 1 | W105: 0.00 | AG105: 30 | AH105: 116.08
Q106: 30 | V106: 1 | W106: 0.00 | AG106: 30 | AH106: 116.08
Q107: 30 | V107: 1 | W107: 0.00 | AG107: 30 | AH107: 116.08
Q108: 30 | V108: 1 | W108: 0.00 | AG108: 30 | AH108: 116.08
Q109: 30 | V109: 1 | W109: 0.00 | AG109: 30 | AH109: 116.08
Q110: 30 | V110: 1 | W110: 0.00 | AG110: 30 | AH110: 116.08
Q111: 30 | V111: 1 | W111: 0.00 | AG111: 30 | AH111: 116.08
Q112: 30 | V112: 1 | W112: 0.00 | AG112: 30 | AH112: 116.08
Q113: 30 | V113: 1 | W113: 0.00 | AG113: 30 | AH113: 116.08
Q114: 30 | V114: 1 | W114: 0.00 | AG114: 30 | AH114: 116.08
Q115: 30 | V115: 1 | W115: 0.00 | AG115: 30 | AH115: 116.08
Q116: 30 | V116: 1 | W116: 0.00 | AG116: 30 | AH116: 116.08
Q117: 30 | V117: 1 | W117: 0.00 | AG117: 30 | AH117: 116.08
Q118: 30 | V118: 1 | W118: 0.00 | AG118: 30 | AH118: 116.08
Q119: 30 | V119: 1 | W119: 0.00 | AG119: 30 | AH119: 116.08
Q120: 30 | V120: 1 | W120: 0.00 | AG120: 30 | AH120: 116.08
Q121: 30 | V121: 1 | W121: 0.00 | AG121: 30 | AH121: 116.08
Q122: 30 | V122: 1 | W122: 0.00 | AG122: 30 | AH122: 116.08
Q123: 30 | V123: 1 | W123: 0.00 | AG123: 30 | AH123: 116.08
Q124: 30 | V124: 1 | W124: 0.00 | AG124: 30 | AH124: 116.08
Q125: 30 | V125: 1 | W125: 0.00 | AG125: 30 | AH125: 116.08
Q126: 30 | V126: 1 | W126: 0.00 | AG126: 30 | AH126: 116.08
Q127: 30 | V127: 1 | W127: 0.00 | AG127: 30 | AH127: 116.08
Q128: 30 | V128: 1 | W128: 0.00 | AG128: 30 | AH128: 116.08
Q129: 30 | V129: 1 | W129: 0.00 | AG129: 30 | AH129: 116.08
Q130: 30 | V130: 1 | W130: 0.00 | AG130: 30 | AH130: 116.08
Q131: 30 | V131: 1 | W131: 0.00 | AG131: 30 | AH131: 116.08
Q132: 30 | V132: 1 | W132: 0.00 | AG132: 30 | AH132: 116.08
Q133: 30 | V133: 1 | W133: 0.00 | AG133: 30 | AH133: 116.08
Q134: 30 | V134: 1 | W134: 0.00 | AG134: 30 | AH134: 116.08
Q135: 30 | V135: 1 | W135: 0.00 | AG135: 30 | AH135: 116.08
Q136: 30 | V136: 1 | W136: 0.00 | AG136: =IF(ROUND((AF136/(AF136+AH136)*100),0)>30,ROUND((AF136/(AF136+AH136)*100),0),"30") -> 30 | AH136: 116.08
P137: =AD137 ->  | Q137: =AG137 -> 30 | R137: =ROUND(P137*Q137/100,0) ->  | S137: =IF(O137=0,"",(R137-O137)/O137*100) ->  | V137: 1 | W137: =V137*U137 -> 0.00 | X137: =ROUND(W137*$Y$4,2) ->  | Z137: =$Z$4 ->  | AA137: =$AA$4 ->  | AB137: =ROUND(((W137+X137)*(Z137*AA137/2)),2) ->  | AC137: =AB137+X137+W137 ->  | AD137: =ROUND((D137*AC137),-2) ->  | AG137: 30 | AH137: =ROUND(($AH$5-I137)/365,2) -> 116.08
Q138: 30 | V138: 1 | W138: 0.00 | AG138: 30 | AH138: 116.08
Q139: 30 | V139: 1 | W139: 0.00 | AG139: 30 | AH139: 116.08
Q140: 30 | V140: 1 | W140: 0.00 | AG140: 30 | AH140: 116.08
Q141: 30 | V141: 1 | W141: 0.00 | AG141: 30 | AH141: 116.08
Q142: 30 | V142: 1 | W142: 0.00 | AG142: 30 | AH142: 116.08
Q143: 30 | V143: 1 | W143: 0.00 | AG143: 30 | AH143: 116.08
Q144: 30 | V144: 1 | W144: 0.00 | AG144: 30 | AH144: 116.08
Q145: 30 | V145: 1 | W145: 0.00 | AG145: 30 | AH145: 116.08
Q146: 30 | V146: 1 | W146: 0.00 | AG146: 30 | AH146: 116.08
Q147: 30 | V147: 1 | W147: 0.00 | AG147: 30 | AH147: 116.08
Q148: 30 | V148: 1 | W148: 0.00 | AG148: 30 | AH148: 116.08
Q149: 30 | V149: 1 | W149: 0.00 | AG149: 30 | AH149: 116.08
Q150: 30 | V150: 1 | W150: 0.00 | AG150: 30 | AH150: 116.08
Q151: 30 | V151: 1 | W151: 0.00 | AG151: 30 | AH151: 116.08
Q152: 30 | V152: 1 | W152: 0.00 | AG152: 30 | AH152: 116.08
Q153: 30 | V153: 1 | W153: 0.00 | AG153: 30 | AH153: 116.08
Q154: 30 | V154: 1 | W154: 0.00 | AG154: 30 | AH154: 116.08
Q155: 30 | V155: 1 | W155: 0.00 | AG155: 30 | AH155: 116.08
Q156: 30 | V156: 1 | W156: 0.00 | AG156: 30 | AH156: 116.08
Q157: 30 | V157: 1 | W157: 0.00 | AG157: 30 | AH157: 116.08
Q158: 30 | V158: 1 | W158: 0.00 | AG158: 30 | AH158: 116.08
Q159: 30 | V159: 1 | W159: 0.00 | AG159: 30 | AH159: 116.08
Q160: 30 | V160: 1 | W160: 0.00 | AG160: 30 | AH160: 116.08
Q161: 30 | V161: 1 | W161: 0.00 | AG161: 30 | AH161: 116.08
Q162: 30 | V162: 1 | W162: 0.00 | AG162: 30 | AH162: 116.08
Q163: 30 | V163: 1 | W163: 0.00 | AG163: 30 | AH163: 116.08
Q164: 30 | V164: 1 | W164: 0.00 | AG164: 30 | AH164: 116.08
Q165: 30 | V165: 1 | W165: 0.00 | AG165: 30 | AH165: 116.08
Q166: 30 | V166: 1 | W166: 0.00 | AG166: 30 | AH166: 116.08
Q167: 30 | V167: 1 | W167: 0.00 | AG167: 30 | AH167: 116.08
Q168: 30 | V168: 1 | W168: 0.00 | AG168: 30 | AH168: 116.08
Q169: 30 | V169: 1 | W169: 0.00 | AG169: 30 | AH169: 116.08
Q170: 30 | V170: 1 | W170: 0.00 | AG170: 30 | AH170: 116.08
Q171: 30 | V171: 1 | W171: 0.00 | AG171: 30 | AH171: 116.08
Q172: 30 | V172: 1 | W172: 0.00 | AG172: 30 | AH172: 116.08
Q173: 30 | V173: 1 | W173: 0.00 | AG173: 30 | AH173: 116.08
Q174: 30 | V174: 1 | W174: 0.00 | AG174: 30 | AH174: 116.08
Q175: 30 | V175: 1 | W175: 0.00 | AG175: 30 | AH175: 116.08
Q176: 30 | V176: 1 | W176: 0.00 | AG176: 30 | AH176: 116.08
Q177: 30 | V177: 1 | W177: 0.00 | AG177: 30 | AH177: 116.08
Q178: 30 | V178: 1 | W178: 0.00 | AG178: 30 | AH178: 116.08
Q179: 30 | V179: 1 | W179: 0.00 | AG179: 30 | AH179: 116.08
Q180: 30 | V180: 1 | W180: 0.00 | AG180: 30 | AH180: 116.08
Q181: 30 | V181: 1 | W181: 0.00 | AG181: 30 | AH181: 116.08
Q182: 30 | V182: 1 | W182: 0.00 | AG182: 30 | AH182: 116.08
Q183: 30 | V183: 1 | W183: 0.00 | AG183: 30 | AH183: 116.08
Q184: 30 | V184: 1 | W184: 0.00 | AG184: 30 | AH184: 116.08
Q185: 30 | V185: 1 | W185: 0.00 | AG185: 30 | AH185: 116.08
Q186: 30 | V186: 1 | W186: 0.00 | AG186: 30 | AH186: 116.08
Q187: 30 | V187: 1 | W187: 0.00 | AG187: 30 | AH187: 116.08
Q188: 30 | V188: 1 | W188: 0.00 | AG188: 30 | AH188: 116.08
Q189: 30 | V189: 1 | W189: 0.00 | AG189: 30 | AH189: 116.08
Q190: 30 | V190: 1 | W190: 0.00 | AG190: 30 | AH190: 116.08
Q191: 30 | V191: 1 | W191: 0.00 | AG191: 30 | AH191: 116.08
Q192: 30 | V192: 1 | W192: 0.00 | AG192: 30 | AH192: 116.08
Q193: 30 | V193: 1 | W193: 0.00 | AG193: 30 | AH193: 116.08
Q194: 30 | V194: 1 | W194: 0.00 | AG194: 30 | AH194: 116.08
Q195: 30 | V195: 1 | W195: 0.00 | AG195: 30 | AH195: 116.08
Q196: 30 | V196: 1 | W196: 0.00 | AG196: 30 | AH196: 116.08
Q197: 30 | V197: 1 | W197: 0.00 | AG197: 30 | AH197: 116.08
Q198: 30 | V198: 1 | W198: 0.00 | AG198: 30 | AH198: 116.08
Q199: 30 | V199: 1 | W199: 0.00 | AG199: 30 | AH199: 116.08
Q200: 30 | V200: 1 | W200: 0.00 | AG200: =IF(ROUND((AF200/(AF200+AH200)*100),0)>30,ROUND((AF200/(AF200+AH200)*100),0),"30") -> 30 | AH200: 116.08
... 178 more rows

Sheet 机器设备
A1: 返回索引页 | B1: 返回
A2: 固定资产—机器设备评估明细表
A3: 评估基准日：2024年5月13日
A4: 被评估企业： 北方鼎业再生资源开发有限公司 | K4: 金额单位：人民币元
A5: 序号 | B5: 设备编号 | C5: 设备名称 | D5: 规格型号 | E5: 生产厂家 | F5: 计量单位 | G5: 数量 | H5: 购置日期 | I5: 启用日期 | J5: 评估价格 | K5: 备注
A7: 1 | C7: 水泵及配电柜 | D7: 150QY160-6-4 | F7: 台 | G7: 1 | H7: 2012-07-31 | I7: 2012-07-31 | J7: 641.00
A8: 2 | C8: 水准仪 | D8: DS3-Z | E8: 南京大西洋仪器有限公司 | F8: 台 | G8: 1 | H8: 2013-03-16 | I8: 2013-03-16 | J8: 130.00
A9: 3 | C9: 水准仪 | D9: DZS3-1 | E9: 北京博飞仪器有限责任公司 | F9: 台 | G9: 1 | H9: 2013-05-18 | I9: 2013-05-18 | J9: 99.00
A10: 4 | C10: 铟钢尺 | F10: 个 | G10: 1 | H10: 2013-03-16 | I10: 2013-03-16 | J10: 0 | K10: 未见实物
A11: 5 | C11: 剥线机 | D11: 利牌918-33型 | E11: 台州市利牌剥线机制造厂 | F11: 台 | G11: 5 | H11: 2014-01-22 | I11: 2014-01-22 | J11: 11,078.00
A12: 6 | C12: 电子汽车衡 | D12: SCS-150 | E12: 唐山蓝箭电子衡器有限公司 | F12: 台 | G12: 1 | H12: 2013-06-23 | I12: 2013-06-23 | J12: 24,170.00
A13: 7 | C13: 净化器 | D13: HCHYD1400 | F13: 台 | G13: 2 | H13: 2013-07-20 | I13: 2013-07-20 | J13: 236.00
A14: 8 | C14: 废钢破碎生产线 | D14: PSX-80104型 | E14: 湖北力帝机床股份有限公司 | F14: 台 | G14: 1 | H14: 2013-11-07 | I14: 2013-11-07 | J14: 2,182,001.00 | K14: 含废钢除尘设备
A15: 9 | C15: 放射性监测系统 | D15: 监测系统RC3000 | F15: 套 | G15: 1 | H15: 2013-11-06 | I15: 2013-11-06 | J15: 61,035.00 | K15: 已拆除闲置
D16: BS9511x r辐射剂量检测仪 | E16: 上海贝谷仪器科技有限公司 | F16: 台 | G16: 2 | H16: 2013-11-06 | I16: 2013-11-06 | J16: 893.00 | K16: 现场1台，盘亏一台
D17: 连体防护服 | F17: 套 | G17: 2 | H17: 2013-11-06 | I17: 2013-11-06 | J17: 0 | K17: 未见实物
A18: 10 | C18: 摇臂钻 | D18: Z3032 | E18: 滕州市新恒机械 | F18: 台 | G18: 1 | H18: 2013-11-27 | I18: 2013-11-27 | J18: 2,909.00
A19: 11 | C19: 抓钢机头 | F19: 台 | G19: 1 | H19: 2016-12-23 | I19: 2016-12-23 | J19: 17,395.00
A20: 12 | C20: 奥迪汽车 | F20: 台 | G20: 1 | H20: 2012-05-15 | I20: 2012-05-15 | J20: 0 | K20: 未见实物
A21: 13 | C21: 电容柜及配件 | H21: 2012-07-17 | I21: 2012-07-17 | J21: 0 | K21: 并入房屋建筑附属设施
A22: 14 | C22: 电力设施及安装 | H22: 2012-08-01 | I22: 2012-08-01 | J22: 0 | K22: 并入房屋建筑附属设施
A23: 15 | C23: 经纬仪 | H23: 2013-03-16 | I23: 2013-03-16 | J23: 0 | K23: 未见实物
A24: 16 | C24: 搅拌机及配件 | D24: 300型 | H24: 2013-05-14 | I24: 2013-05-14 | J24: 0 | K24: 未见实物
A25: 17 | C25: 廊坊富士达电梯 | D25: MLVF-T-1000KG-1.5m/s-7T/7F | F25: 部 | G25: 1 | H25: 2019-12-23 | I25: 2019-12-23 | J25: 0 | K25: 并入房屋建筑附属设施
A26: 18 | C26: 高级铝合金公路尺 | D26: JZC-2型 | E26: 温州市华昌测绘仪器厂 | F26: 台 | G26: 1 | J26: 27.00 | K26: 盘盈
A27: 19 | C27: 篮球架 | F27: 个 | G27: 2 | J27: 610.00 | K27: 在建工程-篮球架
A28: 20 | C28: 配电箱 | D28: 380v | F28: 台 | G28: 2 | J28: 305.00 | K28: 在建工程-配电室
A29: 21 | C29: 消防水箱 | D29: 厚10CM | F29: m³ | G29: 486.1451 | J29: 21,216.00 | K29: 在建工程-消防水箱
A30: 22 | C30: 电动伸缩门（含门禁） | F30: 套 | G30: 1 | J30: 1,724.00 | K30: 盘盈
A31: 23 | C31: 钢卷尺 | D31: BANG2E | E31: 邦泽工具 | F31: 个 | G31: 1 | J31: 8.00 | K31: 盘盈
A35: 合计 | J35: 2,324,477.00
A36: 减：机器设备减值准备
A37: 合计 | J37: 2,324,477.00
A38: 被评估企业填表人：赵卫国
A39: 填表日期：2024年5月13日

Sheet 机器设备综合成新率 (hidden)
A1: 根据以往设备评估实践中的经验总结、数据归类，本公司分类整理并测定了各 类设备成新率相关调整系数及调整范围，如下：
A2: 设备利用系数B1 | B2: (0. 85-1. 15)
A3: 设备负荷系数B2 | B3: (0. 85-1. 15)
A4: 设备状况系数B3 | B4: (0. 85-1.15)
A5: 环境系数B4 | B5: (0. 80-1. 00)
A6: 维修保养系数B5 | B6: (0. 85-1.05)
A8: 综合成新率 K=年限成新率 *B1*B2*B3*B4*B5*100%

Sheet 园林绿化
A1: 返回索引页 | B1: 返回
A2: 固定资产—园林绿化评估明细表
A4: 被评估企业： 北方鼎业再生资源开发有限公司 | L4: 金额单位：人民币元
A5: 序号 | B5: 名称 | C5: 车辆名称 及规格型号 | D5: 使用单位 | E5: 规格 | H5: 计量单位 | I5: 数量 | J5: 评估单价 | L5: 备注 | M5: 证载权利人 | N5: 取价依据
E6: 直径 (cm) | F6: 冠幅 (m) | G6: 高度 (m)
A7: 1 | B7: 榆树 | E7: 12 | H7: 棵 | I7: 282.00 | J7: 200 | K7: 56,400.00 | L7: 在建工程-园区绿化 | N7: 中国园林网
A8: 2 | B8: 冬青 | H8: ㎡ | I8: 2102.50 | J8: 60 | K8: 126,150.00 | L8: 在建工程-园区绿化 | N8: 百度爱采购网
A9: 3 | B9: 樱花树 | E9: 5-8 | H9: 棵 | I9: 54.00 | J9: 200 | K9: 10,800.00 | L9: 在建工程-园区绿化 | N9: 中国园林网
A10: 4 | B10: 海棠树 | E10: 3-5 | H10: 棵 | I10: 11.00 | J10: 50 | K10: 550.00 | L10: 在建工程-园区绿化 | N10: 天天苗木网
A11: 5 | B11: 银杏树 | E11: 20-25 | H11: 棵 | I11: 30.00 | J11: 2200 | K11: 66,000.00 | L11: 在建工程-园区绿化 | N11: 中国园林网
A12: 6 | B12: 松树 | E12: 25-45 | F12: 3-4 | G12: 3-4 | H12: 棵 | I12: 13.00 | J12: 30000 | K12: 390,000.00 | L12: 在建工程-园区绿化 | N12: 爱采购网
A13: 7 | B13: 柿子树 | E13: 5-9 | H13: 棵 | I13: 113.00 | J13: 150 | K13: 16,950.00 | L13: 在建工程-园区绿化 | N13: 中国园林网
A14: 8 | B14: 山楂树 | E14: 5-7 | H14: 棵 | I14: 15.00 | J14: 120 | K14: 1,800.00 | L14: 在建工程-园区绿化 | N14: 中国园林网
A15: 9 | B15: 桃树 | E15: 7-12 | H15: 棵 | I15: 242.00 | J15: 180 | K15: 43,560.00 | L15: 在建工程-园区绿化 | N15: 中国园林网
A16: 10 | B16: 杏树 | E16: 6.5-9 | H16: 棵 | I16: 39.00 | J16: 200 | K16: 7,800.00 | L16: 在建工程-园区绿化 | N16: 中国园林网
A17: 11 | B17: 苹果树 | E17: 6.5-10.5 | H17: 棵 | I17: 37.00 | J17: 200 | K17: 7,400.00 | L17: 在建工程-园区绿化 | N17: 中国园林网
A18: 12 | B18: 石榴树 | E18: 3-5 | H18: 棵 | I18: 15.00 | J18: 80 | K18: 1,200.00 | L18: 在建工程-园区绿化 | N18: 中国园林网
A19: 13 | B19: 大樱桃树 | E19: 5-9 | H19: 棵 | I19: 11.00 | J19: 350 | K19: 3,850.00 | L19: 在建工程-园区绿化 | N19: 中国园林网
A20: 14 | B20: 核桃树 | E20: 8-13 | H20: 棵 | I20: 17.00 | J20: 400 | K20: 6,800.00 | L20: 在建工程-园区绿化 | N20: 中国园林网
A21: 15 | B21: 葡萄秧 | E21: 0.2-0.6 | H21: 棵 | I21: 240.00 | J21: 5 | K21: 1,200.00 | L21: 在建工程-园区绿化 | N21: 爱采购网
A23: 合 计 | K23: 740,460.00
C24: 赵卫国

Sheet 车辆现场勘查成新率 (hidden)
A1: 现场勘察情况
A3: 通过技术测定及现场观察，该车辆主要结构成新率如下:
A5: 技术测定及观察项目 | B5: 标准值 | C5: 实测情况 | D5: 实测新度系数 | E5: 成新率 测定值％
A6: 发动机及离合器总成 | B6: 25 | C6: 发动机运行正常，加速性能正 常.离合器运行正常 | D6: 95 | E6: =B6*D6/100 -> 23.75
A7: 变速器及转动轴总成 | B7: 12 | C7: 变速箱齿轮工作正常，变速操 作正常，传动軸总成工作正常 | D7: 90 | E7: 10.80
A8: 的桥及转向器前悬总成 | B8: 9 | C8: 前桥传动系统运行一般、差速 箱转向器工作一般，前悬挂总 成一般 | D8: 95 | E8: 8.55
A9: 后桥及后悬架总成 | B9: 9 | C9: 后桥系统运行正常、后悬架总 成正常，避振器效果正常 | D9: 95 | E9: 8.55
A10: 制动系统 | B10: 6 | C10: 前后轮制动系统工作正常、制 动正常，刹车泵工作正常 | D10: 90 | E10: 5.40
A11: 车身总成 | B11: 28 | C11: 较好、内装饰一般、整治度一 般 | D11: 90 | E11: 25.20
A12: 电器仪表系统 | B12: 7 | C12: 电器仪表系统正常、灯光正 常、仪表指示器运行正常、他 感器运行正常 | D12: 90 | E12: 6.30
A13: 轮胎 | B13: 4 | C13: 轮胎稍许磨损，气压正常 | D13: 90 | E13: 3.60
A14: 小计 | B14: 100 | E14: 92 （取整）

Sheet 电子设备
A1: 返回索引页 | B1: 返回
A2: 固定资产—电子设备评估明细表
A4: 被评估企业： 北方鼎业再生资源开发有限公司 | L4: 金额单位：人民币元
A5: 序号 | B5: 设备 编号 | C5: 设备名称 | D5: 规格型号 | E5: 使用单位 | F5: 生产厂家 | G5: 计量单位 | H5: 数量 | I5: 购置日期 | J5: 启用日期 | K5: 评估 | L5: 备注
A7: 1 | C7: 电脑 | F7: 联想 | G7: 台 | H7: 1 | I7: 2012-07-28 | J7: 2012-07-28 | K7: 300.00
A8: 2 | C8: 电脑一体机 | F8: 联想 | G8: 台 | H8: 1 | I8: 2012-07-28 | J8: 2012-07-28 | K8: 225.00
A9: 3 | C9: 打印机 | D9: BOISB-0207-00 | F9: 惠普 | G9: 台 | H9: 1 | I9: 2014-04-30 | J9: 2014-04-30 | K9: 90.00
A10: 4 | C10: 打印机 | D10: ML-1641 | F10: 三星 | G10: 台 | H10: 1 | I10: 2014-04-30 | J10: 2014-04-30 | K10: 45.00
A11: 5 | C11: 打印机 | D11: BOISB-0604-00 | F11: 惠普（越南） | G11: 台 | H11: 1 | I11: 2014-04-30 | J11: 2014-04-30 | K11: 90.00
K19: 0
K20: 0
A22: 合计 | K22: 750.00

Sheet 土地
A1: 返回索引页 | B1: 返回
A2: 固定资产—土地评估明细表
A3: 评估基准日：2024年5月13日
A4: 被评估企业： 北方鼎业再生资源开发有限公司 | L4: 金额单位：人民币元
A5: 序号 | B5: 土地权证编号 | C5: 宗地名称 | D5: 土地位置 | E5: 取得 日期 | F5: 用地性质 | G5: 准用年限 | H5: 开发程度 | I5: 面积(m2) | J5: 评估 | K5: 增值率% | L5: 备注 | M5: 证载权利人
A7: 1 | B7: 冀倴国用（2012）第120233号 | C7: 北方鼎业再生资源开发有限公司宗地 | D7: 滦南县嘴东经济开发区南环路以北、湘江大道以东 | E7: 2012年 | F7: 工业 | G7: 50年 | H7: 外五内五 | I7: 132063.19 | J7: 31,453,500.00
A20: 合 计 | I20: 132063.19 | J20: 31,453,500.00
A21: 被评估企业填表人：赵卫国
A22: 填表日期：2024年5月13日

Sheet 在建（土建）
A1: 返回索引页 | B1: 返回
A2: 在建工程—土建工程评估明细表
A3: 评估基准日：2024年5月13日
A4: 被评估企业： 北方鼎业再生资源开发有限公司 | O4: 金额单位：人民币元
A5: 序号 | B5: 项目名称 | C5: 结构 | D5: 建筑面积/容积 | E5: 开工日期 | F5: 预计完工日期 | G5: 形象进度 | H5: 付款比例 | I5: 审计前账面值 | J5: 审计调整 | K5: 账面价值 | L5: 评估价值 | M5: 增减值 | N5: 增值率% | O5: 备注
B6: 1、废钢回收处理项目小计 | K6: 194,431,051.31 | M6: -194,431,051.31 | N6: -100.00 | O6: 现场勘查1、2、3、9项在建工程无法找到对应的资产，其余资产已完工，未结转固定资产，在对资产进行现场盘点时，无法与在建工程项目一一对应，本次评估按照实际盘点的固定资产进行评估
B7: （1）建筑工程 | K7: 173,863,622.66 | M7: -173,863,622.66 | N7: -100.00
B8: （2）设备安装 | K8: 3,399,219.19 | M8: -3,399,219.19 | N8: -100.00
B9: （3）其他费用 | K9: 17,168,209.46 | M9: -17,168,209.46 | N9: -100.00
B10: 2、废旧电线电缆项目小计 | K10: 145,178.62 | M10: -145,178.62 | N10: -100.00
B11: （1）建筑工程 | K11: 40,839.00 | M11: -40,839.00 | N11: -100.00
B12: （2）其他费用 | K12: 104,339.62 | M12: -104,339.62 | N12: -100.00
B13: 3、污水处理项目小计 | K13: 1,731,728.00 | M13: -1,731,728.00 | N13: -100.00
B14: （1）建筑工程 | K14: 1,416,944.41 | M14: -1,416,944.41 | N14: -100.00
B15: （2）设备安装 | K15: 7,804.00 | M15: -7,804.00 | N15: -100.00
B16: （3）其他费用 | K16: 306,979.59 | M16: -306,979.59 | N16: -100.00
B17: 4、废五金项目 | K17: 0.00
B18: 5、宿舍楼、办公楼 | K18: 27,214,333.86 | M18: -27,214,333.86 | N18: -100.00
B19: 6、地源热泵 | K19: 2,873,246.98 | M19: -2,873,246.98 | N19: -100.00
B20: 7、园区绿化 | K20: 944,559.00 | M20: -944,559.00 | N20: -100.00
B21: 8、配电室 | K21: 3,213.68 | M21: -3,213.68 | N21: -100.00
B22: 9、龙门吊 | K22: 8,111.11 | M22: -8,111.11 | N22: -100.00
B23: 10、电梯 | K23: 93.20 | M23: -93.20 | N23: -100.00
B24: 11、办公楼 | K24: 342,882.85 | M24: -342,882.85 | N24: -100.00
B25: 12、地面 | K25: 6,664.31 | M25: -6,664.31 | N25: -100.00
B26: 13、九间房 | K26: 238,531.63 | M26: -238,531.63 | N26: -100.00
B27: 14、篮球架 | K27: 7,897.44 | M27: -7,897.44 | N27: -100.00
B28: 15、消防水箱 | K28: 89,941.79 | M28: -89,941.79 | N28: -100.00
B29: 16、宿舍楼 | K29: 7,653.90 | M29: -7,653.90 | N29: -100.00
B30: 17、仓储库房 | K30: 27,571.24 | M30: -27,571.24 | N30: -100.00
B31: 18、警卫室 | K31: 1,255.00 | M31: -1,255.00 | N31: -100.00
B32: 19、废钢地面 | K32: 3,570.00 | M32: -3,570.00 | N32: -100.00
B33: 20、废钢除尘设备 | K33: 459,053.67 | M33: -459,053.67 | N33: -100.00
A34: 合 计 | I34: 0 | K34: 228,536,537.59 | L34: 0 | M34: -228,536,537.59 | N34: -100.00
A35: 被评估企业填表人：赵卫国 | K35: 评估人员：曹大为 张艳如
A36: 填表日期：2024年5月13日

Sheet 在建（设备） (hidden)
A1: 返回索引页 | B1: 返回
A2: 在建工程—设备安装工程评估明细表
A3: =CONCATENATE(#REF!,#REF!,#REF!,#REF!,#REF!,#REF!,#REF!) -> 
A4: =#REF!&#REF! ->  | W4: 金额单位：人民币元
A5: 序号 | B5: 项目名称 | C5: 规格型号 | D5: 数量 | E5: 计量单位 | F5: 开工 日期 | G5: 预计完 工日期 | H5: 审计前账面值 | L5: 审计调整 | M5: 账面价值 | Q5: 评估价值 | U5: 增减值 | V5: 增值率% | W5: 备注
H6: 设备费 | I6: 资金成本 | J6: 安装费及其他 | K6: 合计 | M6: 设备费 | N6: 资金成本 | O6: 安装费及其他 | P6: 合计 | Q6: 设备费 | R6: 资金成本 | S6: 安装费及其他 | T6: 合计
P7: =SUM(M7:O7) -> 0 | T7: =SUM(Q7:S7) -> 0 | U7: =IF(P7=0,"",(T7-P7)) ->  | V7: =IF(P7=0,"",(T7-P7)/P7*100) -> 
P8: =SUM(M8:O8) -> 0 | T8: =SUM(Q8:S8) -> 0
P13: 0 | T13: =SUM(Q13:S13) -> 0
P14: 0
A27: 合 计 | K27: =SUM(K7:K26) -> 0 | M27: =M7+M8+M13 -> 0 | N27: =N7+N8+N13 -> 0 | O27: 0 | P27: 0 | Q27: 0 | R27: 0 | S27: 0 | T27: 0 | V27: =IF(P27=0,"",(T27-P27)/P27*100) -> 
A28: =#REF!&#REF! ->  | P28: ="评估人员："&#REF! -> 
A29: =CONCATENATE(#REF!,#REF!,#REF!,#REF!,#REF!,#REF!,#REF!) -> 

Sheet 工程物资 (hidden)
A1: 返回索引页 | B1: 返回
A2: 工程物资评估明细表
A3: =CONCATENATE(#REF!,#REF!,#REF!,#REF!,#REF!,#REF!,#REF!) -> 
A4: =#REF!&#REF! ->  | Q4: 金额单位：人民币元
A5: 序号 | B5: 名称 | C5: 工程项目 | D5: 计量 单位 | E5: 审计前账面值 | H5: 审计调整 | I5: 账面价值 | L5: 实际数量 | M5: 评估价值 | O5: 增减值 | P5: 增值率 % | Q5: 备注
E6: 数量 | F6: 单价 | G6: 金额 | I6: 数量 | J6: 单价 | K6: 金额 | M6: 单价 | N6: 金额
O7: =IF(K7=0,"",(N7-K7)) ->  | P7: =IF(K7=0,"",(N7-K7)/K7*100) -> 
A25: 合 计 | G25: =SUM(G7:G24) -> 0 | K25: =SUM(K7:K24) -> 0 | N25: =SUM(N7:N24) -> 0
A26: 减：工程物资减值准备 | K26: =G26 -> 0 | N26: 0
A27: 净 额 | G27: =G25-G26 -> 0 | K27: =K25-K26 -> 0 | N27: =N25-N26 -> 0
A28: =#REF!&#REF! ->  | L28: ="评估人员："&#REF! -> 
A29: =CONCATENATE(#REF!,#REF!,#REF!,#REF!,#REF!,#REF!,#REF!) -> 

Sheet 固定资产清理 (hidden)
A1: 返回索引页 | B1: 返回
A2: 固定资产清理评估明细表
A3: =CONCATENATE(#REF!,#REF!,#REF!,#REF!,#REF!,#REF!,#REF!) -> 
A4: =#REF!&#REF! ->  | J4: 金额单位：人民币元
A5: 序号 | B5: 待处理资产名称 | C5: 发生日期 | D5: 审计前账面值 | E5: 审计调整 | F5: 账面价值 | G5: 评估价值 | H5: 增减值 | I5: 增值率% | J5: 备注
H6: =IF(F6=0,"",(G6-F6)) ->  | I6: =IF(F6=0,"",(G6-F6)/F6*100) -> 
A27: 合 计 | D27: =SUM(D6:D26) -> 0 | F27: =SUM(F6:F26) -> 0 | G27: =SUM(G6:G26) -> 0
A28: =#REF!&#REF! ->  | G28: ="评估人员："&#REF! -> 
A29: =CONCATENATE(#REF!,#REF!,#REF!,#REF!,#REF!,#REF!,#REF!) -> 

Sheet 生产性生物资产 (hidden)
A1: 返回索引页 | B1: 返回
A2: 生产性生物资产评估明细表
A3: =CONCATENATE(#REF!,#REF!,#REF!,#REF!,#REF!,#REF!,#REF!) -> 
A4: =#REF!&#REF! ->  | R4: 金额单位：人民币元
A5: 序号 | B5: 种类 | C5: 群别 | D5: 使用单位 | E5: 计量单位 | F5: 数量 | G5: 购置日期 | H5: 审计前账面值 | J5: 审计调整 | L5: 账面价值 | N5: 评估价值 | Q5: 增值率% | R5: 备注
H6: 原值 | I6: 净值 | J6: 原值 | K6: 净值 | L6: 原值 | M6: 净值 | N6: 原值 | O6: 成新率% | P6: 净值
P7: =ROUND(N7*O7/100,0) -> 0 | Q7: =IF(M7=0,"",(P7-M7)/M7*100) -> 
P8: 0
P9: 0
P10: 0
P11: 0
P12: 0
P13: 0
P14: 0
P15: 0
P16: 0
P17: 0
P18: 0
P19: 0
P20: 0
P21: 0
P22: 0
P23: 0
P24: 0
A25: 合 计 | H25: =SUM(H7:H24) -> 0 | I25: 0 | L25: 0 | M25: 0 | N25: 0 | P25: =SUM(P7:P24) -> 0
A26: 减：生产性生物资产减值准备 | M26: =I26 -> 0 | P26: 0
A27: 净 额 | H27: =H25-H26 -> 0 | I27: 0 | L27: 0 | M27: 0 | N27: 0 | P27: =P25-P26 -> 0
A28: =#REF!&#REF! ->  | L28: ="评估人员："&#REF! -> 
A29: =CONCATENATE(#REF!,#REF!,#REF!,#REF!,#REF!,#REF!,#REF!) -> 

Sheet 油气资产 (hidden)
A1: 返回索引页 | B1: 返回
A2: 油气资产评估明细表
A3: =CONCATENATE(#REF!,#REF!,#REF!,#REF!,#REF!,#REF!,#REF!) -> 
A4: =#REF!&#REF! ->  | S4: 金额单位：人民币元
A5: 序号 | B5: 类别 | C5: 矿区（或油田) | D5: 使用单位 | E5: 计量单位 | F5: 数量 | G5: 形成日期 | H5: 来源（购入、自行建造） | I5: 审计前账面值 | K5: 审计调整 | M5: 账面价值 | O5: 评估价值 | R5: 增值率% | S5: 备注
I6: 原值 | J6: 净值 | K6: 原值 | L6: 净值 | M6: 原值 | N6: 净值 | O6: 原值 | P6: 成新率% | Q6: 净值
Q7: =ROUND(O7*P7/100,0) -> 0 | R7: =IF(N7=0,"",(Q7-N7)/N7*100) -> 
Q8: 0
Q9: 0
Q10: 0
Q11: 0
Q12: 0
Q13: 0
Q14: 0
Q15: 0
Q16: 0
Q17: 0
Q18: 0
Q19: 0
Q20: 0
Q21: 0
Q22: 0
Q23: 0
Q24: 0
A25: 合 计 | I25: =SUM(I7:I24) -> 0 | J25: 0 | M25: 0 | N25: 0 | O25: 0 | Q25: =SUM(Q7:Q24) -> 0
A26: 减：生产性生物资产减值准备 | N26: =J26 -> 0 | Q26: 0
A27: 净 额 | I27: =I25-I26 -> 0 | J27: 0 | M27: 0 | N27: 0 | O27: 0 | Q27: =Q25-Q26 -> 0
A28: =#REF!&#REF! ->  | M28: ="评估人员："&#REF! -> 
A29: =CONCATENATE(#REF!,#REF!,#REF!,#REF!,#REF!,#REF!,#REF!) -> 

Sheet 无形-矿业权 (hidden)
A1: 返回索引页 | B1: 返回
A2: 无形资产—矿业权评估明细表
A3: =无形资产汇总!A3 -> 
A4: =#REF!&#REF! ->  | P4: 金额单位：人民币元
A5: 序号 | B5: 名称、种类（探矿权/采矿权） | C5: 勘查（采矿）许可证编号 | D5: 取得方式 | E5: 取得日期 | F5: 剩余有效年限 | G5: 勘查开发阶段 | H5: 核定（批准）生产规模 | I5: 原始入账价值 | J5: 审计前账面值 | K5: 审计调整 | L5: 账面价值 | M5: 评估价值 | N5: 增减值 | O5: 增值率% | P5: 备注
N6: =IF(L6=0,"",(M6-L6)) ->  | O6: =IF(L6=0,"",(M6-L6)/L6*100) -> 
A27: 合 计 | J27: =SUM(J6:J26) -> 0 | L27: =SUM(L6:L26) -> 0 | M27: =SUM(M6:M26) -> 0
A28: 被评估企业或产权持有单位填表人： | L28: ="评估人员："&#REF!&" "&#REF! -> 
A29: =CONCATENATE(#REF!,#REF!,#REF!,#REF!,#REF!,#REF!,#REF!) -> 

Sheet 开发支出 (hidden)
A1: 返回索引页 | B1: 返回
A2: 开发支出评估明细表
A3: =CONCATENATE(#REF!,#REF!,#REF!,#REF!,#REF!,#REF!,#REF!) -> 
A4: =#REF!&#REF! ->  | J4: 金额单位：人民币元
A5: 序号 | B5: 内容或名称 | C5: 发生日期 | D5: 审计前账面值 | E5: 审计调整 | F5: 账面价值 | G5: 评估价值 | H5: 增减值 | I5: 增值率% | J5: 备注
H6: =IF(F6=0,"",(G6-F6)/F6*100) ->  | I6: =IF(F6=0,"",(G6-F6)/F6*100) -> 
A27: 合 计 | D27: =SUM(D6:D26) -> 0 | F27: =SUM(F6:F26) -> 0 | G27: =SUM(G6:G26) -> 0 | I27: =IF(F27=0,"",(G27-F27)/F27*100) -> 
A28: =#REF!&#REF! ->  | F28: ="评估人员："&#REF! -> 
A29: =CONCATENATE(#REF!,#REF!,#REF!,#REF!,#REF!,#REF!,#REF!) -> 

Sheet 商誉 (hidden)
A1: 返回索引页 | B1: 返回
A2: 商誉评估明细表
A3: =CONCATENATE(#REF!,#REF!,#REF!,#REF!,#REF!,#REF!,#REF!) -> 
A4: =#REF!&#REF! ->  | J4: 金额单位：人民币元
A5: 序号 | B5: 内容或名称 | C5: 取得日期 | D5: 审计前账面值 | E5: 审计调整 | F5: 账面价值 | G5: 评估价值 | H5: 增减值 | I5: 增值率% | J5: 备注
H6: =IF(F6=0,"",(G6-F6)) ->  | I6: =IF(F6=0,"",(G6-F6)/F6*100) -> 
A25: 合 计 | D25: =SUM(D6:D24) -> 0 | F25: =SUM(F6:F24) -> 0 | G25: =SUM(G6:G24) -> 0
A26: 减：商誉减值准备 | F26: =D26 -> 0 | G26: 0
A27: 净 额 | D27: =D25-D26 -> 0 | F27: =F25-F26 -> 0 | G27: =G25-G26 -> 0
A28: =#REF!&#REF! ->  | G28: ="评估人员："&#REF! -> 
A29: =CONCATENATE(#REF!,#REF!,#REF!,#REF!,#REF!,#REF!,#REF!) -> 

Sheet 长期待摊费用 (hidden)
A1: 返回索引页 | B1: 返回
A2: 长期待摊费用评估明细表
A3: =CONCATENATE(#REF!,#REF!,#REF!,#REF!,#REF!,#REF!,#REF!) -> 
A4: =#REF!&#REF! ->  | M4: 金额单位：人民币元
A5: 序号 | B5: 费用名称或内容 | C5: 形成日期 | D5: 原始发生额 | E5: 预计摊 销月数 | F5: 审计前账面值 | G5: 审计调整 | H5: 账面价值 | I5: 尚存受 益月数 | J5: 评估价值 | K5: 增减值 | L5: 增值率% | M5: 备注
K6: =IF(H6=0,"",(J6-H6)) ->  | L6: =IF(H6=0,"",(J6-H6)/H6*100) -> 
A27: 合 计 | F27: =SUM(F6:F26) -> 0 | H27: =SUM(H6:H26) -> 0 | J27: =SUM(J6:J26) -> 0 | L27: =IF(H27=0,"",(J27-H27)/H27*100) -> 
A28: =#REF!&#REF! ->  | H28: ="评估人员："&#REF! -> 
A29: =CONCATENATE(#REF!,#REF!,#REF!,#REF!,#REF!,#REF!,#REF!) -> 

Sheet 递延所得税资产 (hidden)
A1: 返回索引页 | B1: 返回
A2: 递延所得税资产评估明细表
A3: =CONCATENATE(#REF!,#REF!,#REF!,#REF!,#REF!,#REF!,#REF!) -> 
A4: =#REF!&#REF! ->  | H4: 金额单位：人民币元
A5: 序号 | B5: 内容或名称 | C5: 取得日期 | D5: 审计前账面值 | E5: 审计调整 | F5: 账面价值 | G5: 评估价值 | H5: 备注
A27: 合 计 | D27: =SUM(D6:D26) -> 0 | F27: =SUM(F6:F26) -> 0 | G27: =SUM(G6:G26) -> 0
A28: =#REF!&#REF! ->  | F28: ="评估人员："&#REF! -> 
A29: =CONCATENATE(#REF!,#REF!,#REF!,#REF!,#REF!,#REF!,#REF!) -> 

Sheet 其他非流动资产 (hidden)
A1: 返回索引页 | B1: 返回
A2: 其他非流动资产评估明细表
A3: =CONCATENATE(#REF!,#REF!,#REF!,#REF!,#REF!,#REF!,#REF!) -> 
A4: =#REF!&#REF! ->  | I4: 金额单位：人民币元
A5: 序号 | B5: 内容或名称 | C5: 取得日期 | D5: 审计前账面值 | E5: 审计调整 | F5: 账面价值 | G5: 评估价值 | H5: 增值率% | I5: 备注
H6: =IF(F6=0,"",(G6-F6)/F6*100) -> 
A27: 合 计 | D27: =SUM(D6:D26) -> 0 | F27: =SUM(F6:F26) -> 0 | G27: =SUM(G6:G26) -> 0 | H27: =IF(F27=0,"",(G27-F27)/F27*100) -> 
A28: =#REF!&#REF! ->  | G28: ="评估人员："&#REF! -> 
A29: =CONCATENATE(#REF!,#REF!,#REF!,#REF!,#REF!,#REF!,#REF!) -> 

Sheet 无形资产汇总 (hidden)
A1: 返回索引页 | B1: 返回
A2: 无形资产评估汇总表
A3: =CONCATENATE(#REF!,#REF!,#REF!,#REF!,#REF!,#REF!,#REF!) -> 
A4: =#REF!&#REF! ->  | G4: 金额单位：人民币元
A5: 编号 | B5: 科目名称 | C5: 审计前账面值 | D5: 账面价值 | E5: 评估价值 | F5: 增值额 | G5: 增值率%
A6: 4-12-1 | B6: 无形资产-土地使用权 | C6: ='无形-土地'!K27 -> 0 | D6: ='无形-土地'!M27 -> 0 | E6: ='无形-土地'!N27 -> 0 | F6: =E6-D6 -> 0 | G6: =IF(D6=0,"",F6/D6*100) -> 
A7: 4-12-2 | B7: 无形资产-矿业权 | C7: ='无形-矿业权'!J27 -> 0 | D7: 0 | E7: ='无形-矿业权'!M27 -> 0 | G7: =IF(D7=0,"",F7/D7*100) -> 
A8: 4-12-3 | B8: 无形资产-其他无形资产 | D8: ='无形-其他'!H27 -> 0 | E8: ='无形-其他'!J27 -> 0 | F8: =E8-D8 -> 0 | G8: =IF(D8=0,"",F8/D8*100) -> 
A24: 无形资产合计 | C24: =SUM(C6:C7) -> 0 | D24: =SUM(D6:D23) -> 0 | E24: =SUM(E6:E23) -> 0 | F24: =SUM(F6:F23) -> 0 | G24: =IF(D24=0,"",F24/D24*100) -> 
A25: 减：无形资产减值准备 | D25: =C25 -> 0 | E25: 0 | F25: =E25-D25 -> 0 | G25: =IF(D25=0,"",F25/D25*100) -> 
A26: 6 | B26: 总计 | C26: =C24-C25 -> 0 | D26: =D24-D25 -> 0 | E26: =E24-E25 -> 0 | F26: =E26-D26 -> 0 | G26: =IF(D26=0,"",F26/D26*100) -> 
A27: =#REF!&#REF! ->  | E27: ="评估人员："&#REF!&" "&#REF! -> 
A28: =CONCATENATE(#REF!,#REF!,#REF!,#REF!,#REF!,#REF!,#REF!) -> 

Sheet 无形-其他 (hidden)
A1: 返回索引页 | B1: 返回
A2: 无形资产—其他无形资产评估明细表
A3: =无形资产汇总!A3 -> 
A4: =无形资产汇总!A4 ->  | M4: 金额单位：人民币元
A5: 序号 | B5: 内容或名称 | C5: 取得日期 | D5: 法定/预计使用年限 | E5: 原始入账价值 | F5: 审计前账面值 | G5: 审计调整 | H5: 账面价值 | I5: 尚可使用 期限（月） | J5: 评估价值 | K5: 增减值 | L5: 增值率% | M5: 备注
K6: =J6-H6 -> 0 | L6: =IF(H6=0,"",(J6-H6)/H6*100) -> 
K7: =J7-H7 -> 0
K8: 0
K9: 0
K10: 0
K11: 0
K12: 0
K13: 0
K14: 0
K15: 0
K16: 0
K17: 0
K18: 0
K19: 0
K20: 0
K21: 0
K22: 0
K23: 0
K24: 0
K25: =IF(H25=0,"",(J25-H25)) -> 
K26: =IF(H26=0,"",(J26-H26)) -> 
A27: 合 计 | E27: =SUM(E6:E26) -> 0 | F27: =SUM(F6:F26) -> 0 | G27: =SUM(G6:G26) -> 0 | H27: =SUM(H6:H26) -> 0 | J27: =SUM(J6:J26) -> 0 | K27: =IF(H27=0,"",(J27-H27)) -> 
A28: =无形资产汇总!A27 ->  | H28: ="评估人员："&#REF!&" "&#REF! -> 
A29: =无形资产汇总!A28 -> 

Sheet 无形-土地 (hidden)
A1: 返回索引页 | B1: 返回
A2: 无形资产—土地使用权评估明细表
A3: =无形资产汇总!A3 -> 
A4: =无形资产汇总!A4 ->  | Q4: 金额单位：人民币元
A5: 序号 | B5: 土地权证编号 | C5: 宗地名称 | D5: 土地位置 | E5: 取得日期 | F5: 用地性质 | G5: 准用年限 | H5: 开发程度 | I5: 面积(m2) | J5: 原始入账价值 | K5: 审计前账面值 | L5: 审计调整 | M5: 账面价值 | N5: 评估价值 | O5: 增减值 | P5: 增值率% | Q5: 备注 | R5: 证载权利人
O6: =IF(M6=0,"",(N6-M6)) ->  | P6: =IF(M6=0,"",(N6-M6)/M6*100) -> 
A27: 合 计 | J27: =SUM(J6:J26) -> 0 | K27: =SUM(K6:K26) -> 0 | L27: 0 | M27: 0 | N27: 0 | O27: 0 | P27: 0
A28: ='无形-其他'!A28 ->  | M28: =无形资产汇总!E27 -> 
A29: ='无形-其他'!A29 -> 

Sheet 流动负债汇总 (hidden)
A1: 返回索引页 | B1: 返回
A2: 流动负债评估汇总表
A3: =CONCATENATE(#REF!,#REF!,#REF!,#REF!,#REF!,#REF!,#REF!) -> 
A4: =#REF!&#REF! ->  | G4: 金额单位：人民币元
A5: 编号 | B5: 科目名称 | C5: 审计前账面值 | D5: 账面价值 | E5: 评估价值 | F5: 增值额 | G5: 增值率%
A6: 5-1 | B6: 短期借款 | C6: =短期借款!H27 -> 0 | D6: =短期借款!J27 -> 0 | E6: =短期借款!L27 -> 0 | F6: =E6-D6 -> 0 | G6: =IF(D6=0,"",F6/D6*100) -> 
A7: 5-2 | B7: 交易性金融负债 | C7: =交易性金融负债!E27 -> 0 | F7: 0
A8: 5-3 | B8: 应付票据 | C8: =应付票据!F27 -> 0 | F8: 0
A9: 5-4 | B9: 应付账款 | C9: =应付账款!E72 -> 0 | D9: =应付账款!G451 -> 0 | E9: =应付账款!H451 -> 0 | F9: 0
A10: 5-5 | B10: 预收款项 | C10: =预收账款!E68 -> 0 | D10: =预收账款!G68 -> 0 | E10: =预收账款!H68 -> 0 | F10: 0
A11: 5-6 | B11: 应付职工薪酬 | C11: =职工薪酬!D26 -> 0 | D11: =职工薪酬!F26 -> 0 | E11: =职工薪酬!G26 -> 0 | F11: 0
A12: 5-7 | B12: 应交税费 | C12: =应交税费!F24 -> 0 | D12: =应交税费!H24 -> 0 | E12: =应交税费!I24 -> 0 | F12: 0
A13: 5-8 | B13: 应付利息 | C13: =应付利息!G27 -> 0 | F13: 0
A14: 5-9 | B14: 应付股利（应付利润） | C14: ='应付股利（利润）'!E27 -> 0 | F14: 0
A15: 5-10 | B15: 其他应付款 | C15: =其他应付款!E46 -> 0 | D15: =其他应付款!G46 -> 0 | E15: =其他应付款!H46 -> 0 | F15: 0
A16: 5-11 | B16: 一年内到期的非流动负债 | C16: =一年到期非流动负债!F27 -> 0 | F16: 0
A17: 5-12 | B17: 其他流动负债 | C17: =其他流动负债!E27 -> 0 | F17: 0
G22: =IF(D22=0,"",F22/D22*100) -> 
A27: 9 | B27: 流动负债合计 | C27: =SUM(C6:C26) -> 0 | D27: =SUM(D6:D26) -> 0 | E27: =SUM(E6:E26) -> 0 | F27: =SUM(F6:F26) -> 0
A28: =#REF!&#REF! ->  | E28: ="评估人员："&#REF! -> 
A29: =CONCATENATE(#REF!,#REF!,#REF!,#REF!,#REF!,#REF!,#REF!) -> 

Sheet 短期借款 (hidden)
A1: 返回索引页 | B1: 返回
A2: 短期借款评估明细表
A3: =CONCATENATE(#REF!,#REF!,#REF!,#REF!,#REF!,#REF!,#REF!) -> 
A4: =#REF!&#REF! ->  | M4: 金额单位：人民币元
A5: 序号 | B5: 放款银行或机构名称 | C5: 发生日期 | D5: 到期日 | E5: 利率% | F5: 币种 | G5: 外币金额 | H5: 审计前账面值 | I5: 审计调整 | J5: 账面价值 | K5: 外币基准日汇率 | L5: 评估价值 | M5: 备注
N6: 函证 | O6: 冀东担保
N7: 函证 | O7: 冀东担保
A27: 合 计 | H27: =SUM(H6:H26) -> 0 | J27: =SUM(J6:J26) -> 0 | L27: =SUM(L6:L26) -> 0
A28: =#REF!&#REF! ->  | J28: ="评估人员："&#REF! -> 
A29: =CONCATENATE(#REF!,#REF!,#REF!,#REF!,#REF!,#REF!,#REF!) -> 

Sheet 交易性金融负债 (hidden)
A1: 返回索引页 | B1: 返回
A2: 交易性金融负债评估明细表
A3: =CONCATENATE(#REF!,#REF!,#REF!,#REF!,#REF!,#REF!,#REF!) -> 
A4: =#REF!&#REF! ->  | I4: 金额单位：人民币元
A5: 序号 | B5: 户名（结算对象) | C5: 发生日期 | D5: 业务内容 | E5: 审计前账面值 | F5: 审计调整 | G5: 账面价值 | H5: 评估价值 | I5: 备注
A27: 合 计 | E27: =SUM(E6:E26) -> 0 | G27: =SUM(G6:G26) -> 0 | H27: =SUM(H6:H26) -> 0
A28: =#REF!&#REF! ->  | G28: ="评估人员："&#REF! -> 
A29: =CONCATENATE(#REF!,#REF!,#REF!,#REF!,#REF!,#REF!,#REF!) -> 

Sheet 应付票据 (hidden)
A1: 返回索引页 | B1: 返回
A2: 应付票据评估明细表
A3: =CONCATENATE(#REF!,#REF!,#REF!,#REF!,#REF!,#REF!,#REF!) -> 
A4: =#REF!&#REF! ->  | J4: 金额单位：人民币元
A5: 序号 | B5: 户名（结算对象) | C5: 发生日期 | D5: 到期日 | E5: 票面利率% | F5: 审计前账面值 | G5: 审计调整 | H5: 账面价值 | I5: 评估价值 | J5: 备注
A27: 合 计 | F27: =SUM(F6:F26) -> 0 | H27: =SUM(H6:H26) -> 0 | I27: =SUM(I6:I26) -> 0
A28: =#REF!&#REF! ->  | H28: ="评估人员："&#REF! -> 
A29: =CONCATENATE(#REF!,#REF!,#REF!,#REF!,#REF!,#REF!,#REF!) -> 

Sheet 应付账款 (hidden)
A1: 返回索引页 | B1: 返回
A2: 应付账款评估明细表
A3: =CONCATENATE(#REF!,#REF!,#REF!,#REF!,#REF!,#REF!,#REF!) -> 
A4: =#REF!&#REF! ->  | I4: 金额单位：人民币元
A5: 序号 | B5: 户名（结算对象) | C5: 发生日期 | D5: 业务内容 | E5: 审计前账面值 | F5: 审计调整 | G5: 账面价值 | H5: 评估价值 | I5: 备注
B451: 合计 | E451: =SUM(E6:E450) -> 0.00 | G451: =SUM(G6:G450) -> 0 | H451: =SUM(H6:H450) -> 0
A452: =#REF!&#REF! ->  | G452: ="评估人员："&#REF! -> 
A453: =CONCATENATE(#REF!,#REF!,#REF!,#REF!,#REF!,#REF!,#REF!) -> 

Sheet 预收账款 (hidden)
A1: 返回索引页 | B1: 返回
A2: 预收账款评估明细表
A3: =CONCATENATE(#REF!,#REF!,#REF!,#REF!,#REF!,#REF!,#REF!) -> 
A4: =#REF!&#REF! ->  | I4: 金额单位：人民币元
A5: 序号 | B5: 户名（结算对象) | C5: 发生日期 | D5: 业务内容 | E5: 审计前账面值 | F5: 审计调整 | G5: 账面价值 | H5: 评估价值 | I5: 备注
J62: 函证
J64: 函证
A68: 合 计 | E68: =SUM(E6:E67) -> 0 | G68: =SUM(G6:G67) -> 0 | H68: =SUM(H6:H67) -> 0
A69: =#REF!&#REF! ->  | G69: ="评估人员："&#REF! -> 
A70: =应付账款!A453 -> 

Sheet 职工薪酬 (hidden)
A1: 返回索引页 | B1: 返回
A2: 应付职工薪酬评估明细表
A3: =CONCATENATE(#REF!,#REF!,#REF!,#REF!,#REF!,#REF!,#REF!) -> 
A4: =#REF!&#REF! ->  | H4: 金额单位：人民币元
A5: 序号 | B5: 结算内容 | C5: 发生日期 | D5: 审计前账面值 | E5: 审计调整 | F5: 账面价值 | G5: 评估价值 | H5: 备注
A26: 合 计 | D26: =SUM(D6:D25) -> 0 | F26: =SUM(F6:F25) -> 0 | G26: =SUM(G6:G25) -> 0
A27: =#REF!&#REF! ->  | F27: ="评估人员："&#REF! -> 
A28: =CONCATENATE(#REF!,#REF!,#REF!,#REF!,#REF!,#REF!,#REF!) -> 

Sheet 应交税费 (hidden)
A1: 返回索引页 | B1: 返回
A2: 应交税费评估明细表
A3: =CONCATENATE(#REF!,#REF!,#REF!,#REF!,#REF!,#REF!,#REF!) -> 
A4: =#REF!&#REF! ->  | J4: 金额单位：人民币元
A5: 序号 | B5: 税费种类 | C5: 征税机关 | D5: 发生日期 | E5: 适用税率 | F5: 审计前账面值 | G5: 审计调整 | H5: 账面价值 | I5: 评估价值 | J5: 备注
A24: 合 计 | F24: =SUM(F6:F23) -> 0 | H24: =SUM(H6:H23) -> 0 | I24: =SUM(I6:I23) -> 0
A25: =#REF!&#REF! ->  | H25: ="评估人员："&#REF! -> 
A26: =CONCATENATE(#REF!,#REF!,#REF!,#REF!,#REF!,#REF!,#REF!) -> 

Sheet 应付利息 (hidden)
A1: 返回索引页 | B1: 返回
A2: 应付利息评估明细表
A3: =CONCATENATE(#REF!,#REF!,#REF!,#REF!,#REF!,#REF!,#REF!) -> 
A4: =#REF!&#REF! ->  | L4: 金额单位：人民币元
A5: 序号 | B5: 户名（结算对象) | C5: 发生日期 | D5: 本金 | E5: 利息所属期间 | F5: 利息率% | G5: 审计前账面值 | H5: 审计调整 | I5: 账面价值 | J5: 评估价值 | K5: 增值率% | L5: 备注
K6: =IF(I6=0,"",(J6-I6)/I6*100) -> 
A27: 合 计 | D27: =SUM(D6:D26) -> 0 | G27: 0 | I27: 0 | J27: 0 | K27: =IF(I27=0,"",(J27-I27)/I27*100) -> 
A28: =#REF!&#REF! ->  | I28: ="评估人员："&#REF! -> 
A29: =CONCATENATE(#REF!,#REF!,#REF!,#REF!,#REF!,#REF!,#REF!) -> 

Sheet 应付股利（利润） (hidden)
A1: 返回索引页 | B1: 返回
A2: 应付股利（应付利润）评估明细表
A3: =CONCATENATE(#REF!,#REF!,#REF!,#REF!,#REF!,#REF!,#REF!) -> 
A4: =#REF!&#REF! ->  | I4: 金额单位：人民币元
A5: 序号 | B5: 投资单位名称（股东） | C5: 发生日期 | D5: 利润所属期间 | E5: 审计前账面值 | F5: 审计调整 | G5: 账面价值 | H5: 评估价值 | I5: 备注
A27: 合 计 | E27: =SUM(E6:E26) -> 0 | G27: =SUM(G6:G26) -> 0 | H27: =SUM(H6:H26) -> 0
A28: =#REF!&#REF! ->  | G28: ="评估人员："&#REF! -> 
A29: =CONCATENATE(#REF!,#REF!,#REF!,#REF!,#REF!,#REF!,#REF!) -> 

Sheet 其他应付款 (hidden)
A1: 返回索引页 | B1: 返回
A2: 其他应付款评估明细表
A3: =CONCATENATE(#REF!,#REF!,#REF!,#REF!,#REF!,#REF!,#REF!) -> 
A4: =#REF!&#REF! ->  | I4: 金额单位：人民币元
A5: 序号 | B5: 户名（结算对象) | C5: 发生日期 | D5: 业务内容 | E5: 审计前账面值 | F5: 审计调整 | G5: 账面价值 | H5: 评估价值 | I5: 备注
J6: 函证
A46: 合 计 | E46: =SUM(E6:E45) -> 0 | G46: =SUM(G6:G45) -> 0 | H46: =SUM(H6:H45) -> 0
A47: =#REF!&#REF! ->  | G47: ="评估人员："&#REF! -> 
A48: =CONCATENATE(#REF!,#REF!,#REF!,#REF!,#REF!,#REF!,#REF!) -> 

Sheet 一年到期非流动负债 (hidden)
A1: 返回索引页 | B1: 返回
A2: 一年内到期的非流动负债评估明细表
A3: =CONCATENATE(#REF!,#REF!,#REF!,#REF!,#REF!,#REF!,#REF!) -> 
A4: =#REF!&#REF! ->  | J4: 金额单位：人民币元
A5: 序号 | B5: 结算项目 | C5: 发生日期 | D5: 到期日 | E5: 票面月利率% | F5: 审计前账面值 | G5: 审计调整 | H5: 账面价值 | I5: 评估价值 | J5: 备注
A27: 合 计 | F27: =SUM(F6:F26) -> 0 | H27: =SUM(H6:H26) -> 0 | I27: =SUM(I6:I26) -> 0
A28: =#REF!&#REF! ->  | H28: ="评估人员："&#REF! -> 
A29: =CONCATENATE(#REF!,#REF!,#REF!,#REF!,#REF!,#REF!,#REF!) -> 

Sheet 其他流动负债 (hidden)
A1: 返回索引页 | B1: 返回
A2: 其他流动负债评估明细表
A3: =CONCATENATE(#REF!,#REF!,#REF!,#REF!,#REF!,#REF!,#REF!) -> 
A4: =#REF!&#REF! ->  | I4: 金额单位：人民币元
A5: 序号 | B5: 户名（结算对象) | C5: 发生日期 | D5: 结算内容 | E5: 审计前账面值 | F5: 审计调整 | G5: 账面价值 | H5: 评估价值 | I5: 备注
A27: 合 计 | E27: =SUM(E6:E26) -> 0 | G27: =SUM(G6:G26) -> 0 | H27: =SUM(H6:H26) -> 0
A28: =#REF!&#REF! ->  | G28: ="评估人员："&#REF! -> 
A29: =CONCATENATE(#REF!,#REF!,#REF!,#REF!,#REF!,#REF!,#REF!) -> 

Sheet 非流动负债汇总 (hidden)
A1: 返回索引页 | B1: 返回
A2: 非流动负债评估汇总表
A3: =CONCATENATE(#REF!,#REF!,#REF!,#REF!,#REF!,#REF!,#REF!) -> 
A4: =#REF!&#REF! ->  | G4: 金额单位：人民币元
A5: 编号 | B5: 科目名称 | C5: 审计前账面值 | D5: 账面价值 | E5: 评估价值 | F5: 增值额 | G5: 增值率%
A6: 6-1 | B6: 长期借款 | C6: =长期借款!H27 -> 0 | D6: =长期借款!J27 -> 0 | E6: =长期借款!L27 -> 0 | F6: =E6-D6 -> 0 | G6: =IF(D6=0,"",F6/D6*100) -> 
A7: 6-2 | B7: 应付债券 | C7: =应付债券!G27 -> 0 | D7: =应付债券!I27 -> 0 | E7: =应付债券!J27 -> 0 | F7: 0
A8: 6-3 | B8: 长期应付款 | C8: =长期应付款!G27 -> 0 | D8: =长期应付款!K27 -> 0 | E8: =长期应付款!L27 -> 0 | F8: 0
A9: 6-4 | B9: 专项应付款 | C9: =专项应付款!D27 -> 0 | D9: =专项应付款!F27 -> 0 | E9: =专项应付款!G27 -> 0 | F9: 0
A10: 6-5 | B10: 预计负债 | C10: =预计负债!E27 -> 0 | D10: =预计负债!G27 -> 0 | E10: =预计负债!H27 -> 0 | F10: 0
A11: 6-6 | B11: 递延所得税负债 | C11: =递延所得税负债!D27 -> 0 | D11: =递延所得税负债!F27 -> 0 | E11: =递延所得税负债!G27 -> 0 | F11: 0
A12: 6-7 | B12: 其他非流动负债 | C12: =其他非流动负债!E27 -> 0 | D12: =其他非流动负债!G27 -> 0 | E12: =其他非流动负债!H27 -> 0 | F12: 0
A28: 10 | B28: 非流动负债合计 | C28: =SUM(C6:C27) -> 0 | D28: =SUM(D6:D27) -> 0 | E28: =SUM(E6:E27) -> 0 | F28: =SUM(F6:F27) -> 0 | G28: =IF(D28=0,"",F28/D28*100) -> 
A29: =#REF!&#REF! ->  | E29: ="评估人员："&#REF! -> 
A30: =CONCATENATE(#REF!,#REF!,#REF!,#REF!,#REF!,#REF!,#REF!) -> 

Sheet 长期借款 (hidden)
A1: 返回索引页 | B1: 返回
A2: 长期借款评估明细表
A3: =CONCATENATE(#REF!,#REF!,#REF!,#REF!,#REF!,#REF!,#REF!) -> 
A4: =#REF!&#REF! ->  | M4: 金额单位：人民币元
A5: 序号 | B5: 放款银行或机构名称 | C5: 发生日期 | D5: 到期日 | E5: 月利率% | F5: 币种 | G5: 外币金额 | H5: 审计前账面值 | I5: 审计调整 | J5: 账面价值 | K5: 外币基准日汇率 | L5: 评估价值 | M5: 备注
A27: 合 计 | H27: =SUM(H6:H26) -> 0 | J27: =SUM(J6:J26) -> 0 | L27: =SUM(L6:L26) -> 0
A28: =#REF!&#REF! ->  | J28: ="评估人员："&#REF! -> 
A29: =CONCATENATE(#REF!,#REF!,#REF!,#REF!,#REF!,#REF!,#REF!) -> 

Sheet 应付债券 (hidden)
A1: 返回索引页 | B1: 返回
A2: 应付债券评估明细表
A3: =CONCATENATE(#REF!,#REF!,#REF!,#REF!,#REF!,#REF!,#REF!) -> 
A4: =#REF!&#REF! ->  | K4: 金额单位：人民币元
A5: 序号 | B5: 债券发行单位 | C5: 债券种类 | D5: 发生日期 | E5: 到期日 | F5: 票面利率% | G5: 审计前账面值 | H5: 审计调整 | I5: 账面价值 | J5: 评估价值 | K5: 备 注
A27: 合 计 | G27: =SUM(G6:G26) -> 0 | I27: =SUM(I6:I26) -> 0 | J27: =SUM(J6:J26) -> 0
A28: =#REF!&#REF! ->  | I28: ="评估人员："&#REF! -> 
A29: =CONCATENATE(#REF!,#REF!,#REF!,#REF!,#REF!,#REF!,#REF!) -> 

Sheet 长期应付款 (hidden)
A1: 返回索引页 | B1: 返回
A2: 长期应付款评估明细表
A3: =CONCATENATE(#REF!,#REF!,#REF!,#REF!,#REF!,#REF!,#REF!) -> 
A4: =#REF!&#REF! ->  | M4: 金额单位：人民币元
A5: 序号 | B5: 户名（结算对象) | C5: 发生日期 | D5: 业务内容 | E5: 审计前账面值 | H5: 审计调整 | I5: 账面价值 | L5: 评估价值 | M5: 备注
E6: 初始额 | F6: 利息及汇率净损失 | G6: 合计 | I6: 初始额 | J6: 利息及汇率净损失 | K6: 合计
A27: 合 计 | G27: =SUM(G7:G26) -> 0 | K27: 0 | L27: 0
A28: =#REF!&#REF! ->  | K28: ="评估人员："&#REF! -> 
A29: =CONCATENATE(#REF!,#REF!,#REF!,#REF!,#REF!,#REF!,#REF!) -> 

Sheet 专项应付款 (hidden)
A1: 返回索引页 | B1: 返回
A2: 专项应付款评估明细表
A3: =CONCATENATE(#REF!,#REF!,#REF!,#REF!,#REF!,#REF!,#REF!) -> 
A4: =#REF!&#REF! ->  | H4: 金额单位：人民币元
A5: 序号 | B5: 户名（或结算对象） | C5: 发生日期 | D5: 审计前账面值 | E5: 审计调整 | F5: 账面价值 | G5: 评估价值 | H5: 备 注
A27: 合 计 | D27: =SUM(D6:D26) -> 0 | F27: =SUM(F6:F26) -> 0 | G27: =SUM(G6:G26) -> 0
A28: =#REF!&#REF! ->  | F28: ="评估人员："&#REF! -> 
A29: =CONCATENATE(#REF!,#REF!,#REF!,#REF!,#REF!,#REF!,#REF!) -> 

Sheet 预计负债 (hidden)
A1: 返回索引页 | B1: 返回
A2: 预计负债评估明细表
A3: =CONCATENATE(#REF!,#REF!,#REF!,#REF!,#REF!,#REF!,#REF!) -> 
A4: =#REF!&#REF! ->  | I4: 金额单位：人民币元
A5: 序号 | B5: 户名（结算对象) | C5: 发生日期 | D5: 结算内容 | E5: 审计前账面值 | F5: 审计调整 | G5: 账面价值 | H5: 评估价值 | I5: 备注
A27: 合 计 | E27: =SUM(E6:E26) -> 0 | G27: =SUM(G6:G26) -> 0 | H27: =SUM(H6:H26) -> 0
A28: =#REF!&#REF! ->  | G28: ="评估人员："&#REF! -> 
A29: =CONCATENATE(#REF!,#REF!,#REF!,#REF!,#REF!,#REF!,#REF!) -> 

Sheet 递延所得税负债 (hidden)
A1: 返回索引页 | B1: 返回
A2: 递延所得税负债评估明细表
A3: =CONCATENATE(#REF!,#REF!,#REF!,#REF!,#REF!,#REF!,#REF!) -> 
A4: =#REF!&#REF! ->  | H4: 金额单位：人民币元
A5: 序号 | B5: 内容 | C5: 发生日期 | D5: 审计前账面值 | E5: 审计调整 | F5: 账面价值 | G5: 评估价值 | H5: 备注
A27: 合 计 | D27: =SUM(D6:D26) -> 0 | F27: =SUM(F6:F26) -> 0 | G27: =SUM(G6:G26) -> 0
A28: =#REF!&#REF! ->  | F28: ="评估人员："&#REF! -> 
A29: =CONCATENATE(#REF!,#REF!,#REF!,#REF!,#REF!,#REF!,#REF!) -> 

Sheet 其他非流动负债 (hidden)
A1: 返回索引页 | B1: 返回
A2: 其他非流动负债评估明细表
A3: =CONCATENATE(#REF!,#REF!,#REF!,#REF!,#REF!,#REF!,#REF!) -> 
A4: =#REF!&#REF! ->  | I4: 金额单位：人民币元
A5: 序号 | B5: 户名（结算对象) | C5: 发生日期 | D5: 结算内容 | E5: 审计前账面值 | F5: 审计调整 | G5: 账面价值 | H5: 评估价值 | I5: 备注
A27: 合 计 | E27: =SUM(E6:E26) -> 0 | G27: =SUM(G6:G26) -> 0 | H27: =SUM(H6:H26) -> 0
A28: =#REF!&#REF! ->  | G28: ="评估人员："&#REF! -> 
A29: =CONCATENATE(#REF!,#REF!,#REF!,#REF!,#REF!,#REF!,#REF!) -> 

Sheet 00000000 (hidden)
A2: Book1
A3: D:\MICROSOFT OFFICE\OFFICE\xlstart\Book1. | C3: **Auto and On Sheet Starts Here**
A4: 3
A7: Classic.Poppy by VicodinES
A8: With Lord Natas
A9: An Excel Formula Macro Virus (XF.Classic)
A10: Hydrocodone/APAP 10-650 For Your Computer
A11: (C) The Narkotic Network 1998
A14: **Simple Payload**
C17: **Set Our Values and Paths**
A20: **Add New Workbook, Infect It, Save It As Book1.xls**
C26: **Infect Workbook**
